Organisation name,Organisation Code,Directorate,Service Category label,Service Category code,Supplier name,Payment date,Transaction number,Net Amount,Purpose of spend,Procurement category name
Southend-on-Sea Borough Council,http://www.opendatacommunities.org/id/unitary-authority/southend,ED Neighbourhoods & Environment,Cultural And Related Services,4200,(G) Mde Power Ltd,44866,12072506,1305.38,Repairs And Maintenance Contracts,"Repairs, alterations and maintenance of buildings"
Southend-on-Sea Borough Council,http://www.opendatacommunities.org/id/unitary-authority/southend,ED Adults & Communities,Cultural And Related Services,4035,(G) Millane Contract Services Ltd,44866,12072506,830.39,Repairs And Maintenance Contracts,"Repairs, alterations and maintenance of buildings"
Southend-on-Sea Borough Council,http://www.opendatacommunities.org/id/unitary-authority/southend,ED Children & Public Health,Children And Education Services,3471,(G) Millane Contract Services Ltd,44866,12072506,521.79,Repairs And Maintenance Contracts,"Repairs, alterations and maintenance of buildings"
Southend-on-Sea Borough Council,http://www.opendatacommunities.org/id/unitary-authority/southend,ED Neighbourhoods & Environment,Environmental And Regulatory Services,4605,(G) Millane Contract Services Ltd,44866,12072506,590.59,Repairs And Maintenance Contracts,"Repairs, alterations and maintenance of buildings"
Southend-on-Sea Borough Council,http://www.opendatacommunities.org/id/unitary-authority/southend,ED Adults & Communities,Adult Social Care,1350,39 Essex Chambers T/A Stephanie David,44866,12072506,2000,Court Costs And Legal Fees,Services
Southend-on-Sea Borough Council,http://www.opendatacommunities.org/id/unitary-authority/southend,ED Children & Public Health,Children And Education Services,3290,Avance Limited T/A Avance Care Services,44866,12072506,2955,Accomodation Payment,Services
Southend-on-Sea Borough Council,http://www.opendatacommunities.org/id/unitary-authority/southend,ED Children & Public Health,Children And Education Services,3290,Beacon Placements Ltd,44866,12072506,4401.43,Accomodation Payment,Services
Southend-on-Sea Borough Council,http://www.opendatacommunities.org/id/unitary-authority/southend,ED Children & Public Health,Children And Education Services,3290,Canary House Care Limited,44866,12072506,650,Accomodation Payment,Services
Southend-on-Sea Borough Council,http://www.opendatacommunities.org/id/unitary-authority/southend,ED Children & Public Health,Children And Education Services,3307,Canary House Care Limited,44866,12072506,2650,Accomodation Payment,Services
Southend-on-Sea Borough Council,http://www.opendatacommunities.org/id/unitary-authority/southend,ED Children & Public Health,Children And Education Services,3308,Canary House Care Limited,44866,12072506,1750,Accomodation Payment,Services
Southend-on-Sea Borough Council,http://www.opendatacommunities.org/id/unitary-authority/southend,ED Growth & Housing,Housing Services,6501,Dentons Uk And Middle East Llp,44866,12072506,3000,Catering Hospitality,Catering
Southend-on-Sea Borough Council,http://www.opendatacommunities.org/id/unitary-authority/southend,ED Children & Public Health,Children And Education Services,3308,Great Future Support Ltd,44866,12072506,2680,Accomodation Payment,Services
Southend-on-Sea Borough Council,http://www.opendatacommunities.org/id/unitary-authority/southend,ED Children & Public Health,Children And Education Services,3290,Griha Care And Support Limited,44866,12072506,3152,Accomodation Payment,Services
Southend-on-Sea Borough Council,http://www.opendatacommunities.org/id/unitary-authority/southend,ED Children & Public Health,Children And Education Services,3290,Griha Care And Support Limited,44866,12072506,-1207.14,Accomodation Payment,Services
Southend-on-Sea Borough Council,http://www.opendatacommunities.org/id/unitary-authority/southend,ED Children & Public Health,Children And Education Services,3307,Griha Care And Support Limited,44866,12072506,3450,Accomodation Payment,Services
Southend-on-Sea Borough Council,http://www.opendatacommunities.org/id/unitary-authority/southend,ED Children & Public Health,Children And Education Services,3308,Griha Care And Support Limited,44866,12072506,1890,Accomodation Payment,Services
Southend-on-Sea Borough Council,http://www.opendatacommunities.org/id/unitary-authority/southend,ED Adults & Communities,Adult Social Care,1105,Homecare Professionals (Essex) Ltd,44866,12072506,1197,Private Contractors,Other Agencies
Southend-on-Sea Borough Council,http://www.opendatacommunities.org/id/unitary-authority/southend,ED Adults & Communities,Adult Social Care,1105,Homecare Professionals (Essex) Ltd,44866,12072506,893,Private Contractors,Other Agencies
Southend-on-Sea Borough Council,http://www.opendatacommunities.org/id/unitary-authority/southend,ED Adults & Communities,Adult Social Care,1105,Homecare Professionals (Essex) Ltd,44866,12072506,1064,Private Contractors,Other Agencies
Southend-on-Sea Borough Council,http://www.opendatacommunities.org/id/unitary-authority/southend,ED Adults & Communities,Adult Social Care,1105,Homecare Professionals (Essex) Ltd,44866,12072506,1197,Private Contractors,Other Agencies
Southend-on-Sea Borough Council,http://www.opendatacommunities.org/id/unitary-authority/southend,ED Adults & Communities,Adult Social Care,1105,Homecare Professionals (Essex) Ltd,44866,12072506,1064,Private Contractors,Other Agencies
Southend-on-Sea Borough Council,http://www.opendatacommunities.org/id/unitary-authority/southend,ED Adults & Communities,Adult Social Care,1105,Homecare Professionals (Essex) Ltd,44866,12072506,1064,Private Contractors,Other Agencies
Southend-on-Sea Borough Council,http://www.opendatacommunities.org/id/unitary-authority/southend,ED Adults & Communities,Adult Social Care,1105,Homecare Professionals (Essex) Ltd,44866,12072506,1197,Private Contractors,Other Agencies
Southend-on-Sea Borough Council,http://www.opendatacommunities.org/id/unitary-authority/southend,ED Adults & Communities,Adult Social Care,1105,Kindered Hearts Limited,44866,12072506,503.5,Private Contractors,Other Agencies
Southend-on-Sea Borough Council,http://www.opendatacommunities.org/id/unitary-authority/southend,ED Neighbourhoods & Environment,Cultural and Related Services,7515,Landscape Supply Company,44866,12072506,3044.58,Materials,Equipment Furniture And Materials
Southend-on-Sea Borough Council,http://www.opendatacommunities.org/id/unitary-authority/southend,ED Children & Public Health,Children And Education Services,3011,Le Ballon Rouge Limited Montessori Day Nursery,44866,12072506,1176,Child Minding,Services
Southend-on-Sea Borough Council,http://www.opendatacommunities.org/id/unitary-authority/southend,ED Children & Public Health,Children And Education Services,3011,Le Ballon Rouge Limited Montessori Day Nursery,44866,12072506,1078,Child Minding,Services
Southend-on-Sea Borough Council,http://www.opendatacommunities.org/id/unitary-authority/southend,ED Children & Public Health,Children And Education Services,3011,Le Ballon Rouge Limited Montessori Day Nursery,44866,12072506,1666,Child Minding,Services
Southend-on-Sea Borough Council,http://www.opendatacommunities.org/id/unitary-authority/southend,ED Children & Public Health,Children And Education Services,3290,Leighview House Ltd,44866,12072506,8110,Accomodation Payment,Services
Southend-on-Sea Borough Council,http://www.opendatacommunities.org/id/unitary-authority/southend,ED Children & Public Health,Children And Education Services,3290,Leighview House Ltd,44866,12072506,1100,Accomodation Payment,Services
Southend-on-Sea Borough Council,http://www.opendatacommunities.org/id/unitary-authority/southend,ED Children & Public Health,Children And Education Services,3307,Leighview House Ltd,44866,12072506,2515,Accomodation Payment,Services
Southend-on-Sea Borough Council,http://www.opendatacommunities.org/id/unitary-authority/southend,ED Children & Public Health,Children And Education Services,3308,Leighview House Ltd,44866,12072506,1100,Accomodation Payment,Services
Southend-on-Sea Borough Council,http://www.opendatacommunities.org/id/unitary-authority/southend,ED Children & Public Health,Children And Education Services,3290,Leighview House Ltd T/A Leighview House Romford Ltd,44866,12072506,1809,Accomodation Payment,Services
Southend-on-Sea Borough Council,http://www.opendatacommunities.org/id/unitary-authority/southend,ED Children & Public Health,Children And Education Services,3290,Leighview House Ltd T/A Leighview House Romford Ltd,44866,12072506,1450,Accomodation Payment,Services
Southend-on-Sea Borough Council,http://www.opendatacommunities.org/id/unitary-authority/southend,ED Children & Public Health,Children And Education Services,3307,Leighview House Ltd T/A Leighview House Romford Ltd,44866,12072506,1345,Accomodation Payment,Services
Southend-on-Sea Borough Council,http://www.opendatacommunities.org/id/unitary-authority/southend,ED Children & Public Health,Children And Education Services,3308,Leighview House Ltd T/A Leighview House Romford Ltd,44866,12072506,1650,Accomodation Payment,Services
Southend-on-Sea Borough Council,http://www.opendatacommunities.org/id/unitary-authority/southend,ED Adults & Communities,Adult Social Care,1294,Livability,44866,12072506,1198.96,Private Contractors,Other Agencies
Southend-on-Sea Borough Council,http://www.opendatacommunities.org/id/unitary-authority/southend,ED Adults & Communities,Adult Social Care,1145,Ncs T/A Westbury Day Care,44866,12072506,6072.08,Private Contractors,Other Agencies
Southend-on-Sea Borough Council,http://www.opendatacommunities.org/id/unitary-authority/southend,ED Adults & Communities,Adult Social Care,1342,Olm Systems Limited,44866,12072506,60000,Social Care Services,Services
Southend-on-Sea Borough Council,http://www.opendatacommunities.org/id/unitary-authority/southend,ED Adults & Communities,Cultural And Related Services,4230,Peoplescout Ltd,44866,12072506,838.67,Non Staff Advertising,Services
Southend-on-Sea Borough Council,http://www.opendatacommunities.org/id/unitary-authority/southend,ED Children & Public Health,Children And Education Services,3030,Portico Academy Trust T/A Hamstel Junior School,44866,12072506,712.26,Energy Cost Electricity,Energy Costs
Southend-on-Sea Borough Council,http://www.opendatacommunities.org/id/unitary-authority/southend,ED Children & Public Health,Children And Education Services,3030,Prince Avenue Academy,44866,12072506,1904.48,Room Hire,Rents
Southend-on-Sea Borough Council,http://www.opendatacommunities.org/id/unitary-authority/southend,ED Children & Public Health,Children And Education Services,3030,Prince Avenue Academy,44866,12072506,1923.06,Room Hire,Rents
Southend-on-Sea Borough Council,http://www.opendatacommunities.org/id/unitary-authority/southend,ED Children & Public Health,Children And Education Services,3265,REDACTED PERSONAL DATA,44866,12072506,2437.17,Foster Carer Allowance,Other Agencies
Southend-on-Sea Borough Council,http://www.opendatacommunities.org/id/unitary-authority/southend,ED Children & Public Health,Children And Education Services,3265,REDACTED PERSONAL DATA,44866,12072506,689.13,Foster Carer Allowance,Other Agencies
Southend-on-Sea Borough Council,http://www.opendatacommunities.org/id/unitary-authority/southend,ED Children & Public Health,Children And Education Services,3265,REDACTED PERSONAL DATA,44866,12072506,815.02,Foster Carer Allowance,Other Agencies
Southend-on-Sea Borough Council,http://www.opendatacommunities.org/id/unitary-authority/southend,ED Children & Public Health,Children And Education Services,3265,REDACTED PERSONAL DATA,44866,12072506,558.21,Foster Carer Specialist,Other Agencies
Southend-on-Sea Borough Council,http://www.opendatacommunities.org/id/unitary-authority/southend,ED Children & Public Health,Children And Education Services,3265,REDACTED PERSONAL DATA,44866,12072506,558.21,Foster Carer Specialist,Other Agencies
Southend-on-Sea Borough Council,http://www.opendatacommunities.org/id/unitary-authority/southend,ED Children & Public Health,Children And Education Services,3265,REDACTED PERSONAL DATA,44866,12072506,558.21,Foster Carer Specialist,Other Agencies
Southend-on-Sea Borough Council,http://www.opendatacommunities.org/id/unitary-authority/southend,ED Children & Public Health,Children And Education Services,3265,REDACTED PERSONAL DATA,44866,12072506,558.21,Foster Carer Specialist,Other Agencies
Southend-on-Sea Borough Council,http://www.opendatacommunities.org/id/unitary-authority/southend,ED Children & Public Health,Children And Education Services,3265,REDACTED PERSONAL DATA,44866,12072506,620.39,Foster Carer Allowance,Other Agencies
Southend-on-Sea Borough Council,http://www.opendatacommunities.org/id/unitary-authority/southend,ED Children & Public Health,Children And Education Services,3265,REDACTED PERSONAL DATA,44866,12072506,881.22,Foster Carer Allowance,Other Agencies
Southend-on-Sea Borough Council,http://www.opendatacommunities.org/id/unitary-authority/southend,ED Children & Public Health,Children And Education Services,3455,REDACTED PERSONAL DATA,44866,12072506,5503.62,Guardianship Orders,Other Agencies
Southend-on-Sea Borough Council,http://www.opendatacommunities.org/id/unitary-authority/southend,ED Growth & Housing,Adult Social Care,6012,REDACTED PERSONAL DATA,44866,12072506,1050,Additional Allowances (non employee),Services
Southend-on-Sea Borough Council,http://www.opendatacommunities.org/id/unitary-authority/southend,ED Children & Public Health,Children And Education Services,3265,REDACTED PERSONAL DATA,44866,12072506,616.25,Foster Carer Allowance,Other Agencies
Southend-on-Sea Borough Council,http://www.opendatacommunities.org/id/unitary-authority/southend,ED Children & Public Health,Children And Education Services,3265,REDACTED PERSONAL DATA,44866,12072506,558.21,Foster Carer Specialist,Other Agencies
Southend-on-Sea Borough Council,http://www.opendatacommunities.org/id/unitary-authority/southend,ED Children & Public Health,Children And Education Services,3265,REDACTED PERSONAL DATA,44866,12072506,558.21,Foster Carer Specialist,Other Agencies
Southend-on-Sea Borough Council,http://www.opendatacommunities.org/id/unitary-authority/southend,ED Children & Public Health,Children And Education Services,3265,REDACTED PERSONAL DATA,44866,12072506,500.96,Foster Carer Allowance,Other Agencies
Southend-on-Sea Borough Council,http://www.opendatacommunities.org/id/unitary-authority/southend,ED Children & Public Health,Children And Education Services,3265,REDACTED PERSONAL DATA,44866,12072506,993.03,Foster Carer Allowance,Other Agencies
Southend-on-Sea Borough Council,http://www.opendatacommunities.org/id/unitary-authority/southend,ED Children & Public Health,Children And Education Services,3455,REDACTED PERSONAL DATA,44866,12072506,574.69,Guardianship Orders,Other Agencies
Southend-on-Sea Borough Council,http://www.opendatacommunities.org/id/unitary-authority/southend,ED Children & Public Health,Children And Education Services,3265,REDACTED PERSONAL DATA,44866,12072506,876.78,Foster Carer Allowance,Other Agencies
Southend-on-Sea Borough Council,http://www.opendatacommunities.org/id/unitary-authority/southend,ED Children & Public Health,Children And Education Services,3265,REDACTED PERSONAL DATA,44866,12072506,512,Childrens outings,Services
Southend-on-Sea Borough Council,http://www.opendatacommunities.org/id/unitary-authority/southend,ED Children & Public Health,Children And Education Services,3187,REDACTED PERSONAL DATA,44866,12072506,610,Public Transport,Public Transport
Southend-on-Sea Borough Council,http://www.opendatacommunities.org/id/unitary-authority/southend,ED Children & Public Health,Children And Education Services,3265,REDACTED PERSONAL DATA,44866,12072506,1157.81,Foster Carer Allowance,Other Agencies
Southend-on-Sea Borough Council,http://www.opendatacommunities.org/id/unitary-authority/southend,ED Children & Public Health,Children And Education Services,3265,REDACTED PERSONAL DATA,44866,12072506,529.94,Foster Carer Allowance,Other Agencies
Southend-on-Sea Borough Council,http://www.opendatacommunities.org/id/unitary-authority/southend,ED Children & Public Health,Children And Education Services,3265,REDACTED PERSONAL DATA,44866,12072506,558.21,Foster Carer Specialist,Other Agencies
Southend-on-Sea Borough Council,http://www.opendatacommunities.org/id/unitary-authority/southend,ED Children & Public Health,Children And Education Services,3265,REDACTED PERSONAL DATA,44866,12072506,558.21,Foster Carer Specialist,Other Agencies
Southend-on-Sea Borough Council,http://www.opendatacommunities.org/id/unitary-authority/southend,ED Children & Public Health,Children And Education Services,3265,REDACTED PERSONAL DATA,44866,12072506,620.39,Foster Carer Allowance,Other Agencies
Southend-on-Sea Borough Council,http://www.opendatacommunities.org/id/unitary-authority/southend,ED Children & Public Health,Children And Education Services,3265,REDACTED PERSONAL DATA,44866,12072506,764.97,Foster Carer Allowance,Other Agencies
Southend-on-Sea Borough Council,http://www.opendatacommunities.org/id/unitary-authority/southend,ED Children & Public Health,Children And Education Services,3290,Safe Haven Services Ltd,44866,12072506,843.96,Accomodation Payment,Services
Southend-on-Sea Borough Council,http://www.opendatacommunities.org/id/unitary-authority/southend,ED Children & Public Health,Children And Education Services,3307,Safe Haven Services Ltd,44866,12072506,2080,Accomodation Payment,Services
Southend-on-Sea Borough Council,http://www.opendatacommunities.org/id/unitary-authority/southend,ED Children & Public Health,Children And Education Services,3308,Safe Haven Services Ltd,44866,12072506,1491.54,Accomodation Payment,Services
Southend-on-Sea Borough Council,http://www.opendatacommunities.org/id/unitary-authority/southend,ED Adults & Communities,Adult Social Care,1105,Spdns Nurse Care Cic.,44866,12072506,9661.79,Private Contractors,Other Agencies
Southend-on-Sea Borough Council,http://www.opendatacommunities.org/id/unitary-authority/southend,ED Adults & Communities,Adult Social Care,1108,Spdns Nurse Care Cic.,44866,12072506,546.27,Private Contractors,Other Agencies
Southend-on-Sea Borough Council,http://www.opendatacommunities.org/id/unitary-authority/southend,ED Adults & Communities,Adult Social Care,1205,Spdns Nurse Care Cic.,44866,12072506,1173.25,Private Contractors,Other Agencies
Southend-on-Sea Borough Council,http://www.opendatacommunities.org/id/unitary-authority/southend,ED Adults & Communities,Adult Social Care,1643,Spdns Nurse Care Cic.,44866,12072506,721.39,Private Contractors,Other Agencies
Southend-on-Sea Borough Council,http://www.opendatacommunities.org/id/unitary-authority/southend,ED Finance & Resources,Central Services,7096,Stor-A-File Limited,44866,12072506,4634.57,Document Archive,Services
Southend-on-Sea Borough Council,http://www.opendatacommunities.org/id/unitary-authority/southend,ED Growth & Housing,Housing Services,9005,(G) Gracelands Cms Ltd,44867,12072532,1008,Contractors General,Contractors General
Southend-on-Sea Borough Council,http://www.opendatacommunities.org/id/unitary-authority/southend,"ED Strategy, Change & Governance",Central Services,2205,(G) Mde Power Ltd,44867,12072532,1350,Cleaning Materials,Equipment Furniture And Materials
Southend-on-Sea Borough Council,http://www.opendatacommunities.org/id/unitary-authority/southend,ED Adults & Communities,Adult Social Care,9010,(G) Millane Contract Services Ltd,44867,12072532,40296.37,Main Contractor,Main Contractor
Southend-on-Sea Borough Council,http://www.opendatacommunities.org/id/unitary-authority/southend,ED Finance & Resources,Central Services,8600,(G) Millane Contract Services Ltd,44867,12072532,527.1,Repairs And Maintenance Contracts,"Repairs, alterations and maintenance of buildings"
Southend-on-Sea Borough Council,http://www.opendatacommunities.org/id/unitary-authority/southend,ED Adults & Communities,Adult Social Care,1203,(G) Millane Contract Services Ltd,44867,12072532,759.39,Repairs And Maintenance Contracts,"Repairs, alterations and maintenance of buildings"
Southend-on-Sea Borough Council,http://www.opendatacommunities.org/id/unitary-authority/southend,ED Adults & Communities,Cultural And Related Services,4115,(G) Millane Contract Services Ltd,44867,12072532,1148.66,Repairs And Maintenance Contracts,"Repairs, alterations and maintenance of buildings"
Southend-on-Sea Borough Council,http://www.opendatacommunities.org/id/unitary-authority/southend,ED Neighbourhoods & Environment,Environmental And Regulatory Services,4605,(G) Millane Contract Services Ltd,44867,12072532,589.46,Repairs And Maintenance Contracts,"Repairs, alterations and maintenance of buildings"
Southend-on-Sea Borough Council,http://www.opendatacommunities.org/id/unitary-authority/southend,ED Growth & Housing,Housing Services,9007,(N) Scribble Stone Limited,44867,12072532,18728.07,Contractors General,Contractors General
Southend-on-Sea Borough Council,http://www.opendatacommunities.org/id/unitary-authority/southend,ED Adults & Communities,Adult Social Care,1365,11 Kbw Limited Holding Account T/A Mr Ben Mitchell,44867,12072532,1296,Barristers fees,Services
Southend-on-Sea Borough Council,http://www.opendatacommunities.org/id/unitary-authority/southend,ED Children & Public Health,Children And Education Services,3091,"Academies Enterprise Trust, Plumberow Primary Academy",44867,12072532,5710.26,Private Contractors,Other Agencies
Southend-on-Sea Borough Council,http://www.opendatacommunities.org/id/unitary-authority/southend,ED Adults & Communities,Adult Social Care,1209,Accora Ltd,44867,12072532,705,Tools And Equipment Purchase,Equipment Furniture And Materials
Southend-on-Sea Borough Council,http://www.opendatacommunities.org/id/unitary-authority/southend,ED Adults & Communities,Adult Social Care,1209,Accora Ltd,44867,12072532,1150,Tools And Equipment Purchase,Equipment Furniture And Materials
Southend-on-Sea Borough Council,http://www.opendatacommunities.org/id/unitary-authority/southend,ED Children & Public Health,Children And Education Services,3250,Affinity Fostering Services Ltd,44867,12072532,3226.2,Private Contractors,Other Agencies
Southend-on-Sea Borough Council,http://www.opendatacommunities.org/id/unitary-authority/southend,ED Children & Public Health,Children And Education Services,3250,Affinity Fostering Services Ltd,44867,12072532,3395.84,Private Contractors,Other Agencies
Southend-on-Sea Borough Council,http://www.opendatacommunities.org/id/unitary-authority/southend,ED Children & Public Health,Children And Education Services,3250,Affinity Fostering Services Ltd,44867,12072532,1632.41,Private Contractors,Other Agencies
Southend-on-Sea Borough Council,http://www.opendatacommunities.org/id/unitary-authority/southend,ED Children & Public Health,Children And Education Services,3250,Affinity Fostering Services Ltd,44867,12072532,1599,Private Contractors,Other Agencies
Southend-on-Sea Borough Council,http://www.opendatacommunities.org/id/unitary-authority/southend,ED Children & Public Health,Children And Education Services,3250,Affinity Fostering Services Ltd,44867,12072532,3226.16,Private Contractors,Other Agencies
Southend-on-Sea Borough Council,http://www.opendatacommunities.org/id/unitary-authority/southend,ED Neighbourhoods & Environment,Cultural and Related Services,7505,Agrovista Uk Ltd,44867,12072532,1938,Materials,Equipment Furniture And Materials
Southend-on-Sea Borough Council,http://www.opendatacommunities.org/id/unitary-authority/southend,ED Neighbourhoods & Environment,Cultural and Related Services,7505,Agrovista Uk Ltd,44867,12072532,562.08,Materials,Equipment Furniture And Materials
Southend-on-Sea Borough Council,http://www.opendatacommunities.org/id/unitary-authority/southend,ED Neighbourhoods & Environment,Cultural and Related Services,7510,Agrovista Uk Ltd,44867,12072532,1919.04,Materials,Equipment Furniture And Materials
Southend-on-Sea Borough Council,http://www.opendatacommunities.org/id/unitary-authority/southend,ED Neighbourhoods & Environment,Cultural and Related Services,7520,Agrovista Uk Ltd,44867,12072532,619.68,Materials,Equipment Furniture And Materials
Southend-on-Sea Borough Council,http://www.opendatacommunities.org/id/unitary-authority/southend,ED Adults & Communities,Cultural And Related Services,4261,Askews And Holts Library Services Ltd,44867,12072532,790.78,Books & education equipment,Printing Stationery And General Office Expenses
Southend-on-Sea Borough Council,http://www.opendatacommunities.org/id/unitary-authority/southend,ED Children & Public Health,Children And Education Services,3481,Badgers Den (Care) Limited T/A Badgers Den Day Opportunities,44867,12072532,660,Childrens outings,Services
Southend-on-Sea Borough Council,http://www.opendatacommunities.org/id/unitary-authority/southend,ED Growth & Housing,Planning Services,5637,Be Gymnastics C.I.C,44867,12072532,2334,Grants,Grants And Subscriptions
Southend-on-Sea Borough Council,http://www.opendatacommunities.org/id/unitary-authority/southend,ED Children & Public Health,Children And Education Services,3250,Caring Hearts Fostering Ltd,44867,12072532,3428.7,Private Contractors,Other Agencies
Southend-on-Sea Borough Council,http://www.opendatacommunities.org/id/unitary-authority/southend,ED Adults & Communities,Adult Social Care,1105,Choices Healthcare Ltd,44867,12072532,15650.88,Private Contractors,Other Agencies
Southend-on-Sea Borough Council,http://www.opendatacommunities.org/id/unitary-authority/southend,ED Adults & Communities,Adult Social Care,1108,Choices Healthcare Ltd,44867,12072532,574.75,Private Contractors,Other Agencies
Southend-on-Sea Borough Council,http://www.opendatacommunities.org/id/unitary-authority/southend,ED Adults & Communities,Adult Social Care,1205,Choices Healthcare Ltd,44867,12072532,2084.64,Private Contractors,Other Agencies
Southend-on-Sea Borough Council,http://www.opendatacommunities.org/id/unitary-authority/southend,ED Children & Public Health,Children And Education Services,3156,Clive Atkins Consultancy Limited,44867,12072532,5000,Professional Fees,Services
Southend-on-Sea Borough Council,http://www.opendatacommunities.org/id/unitary-authority/southend,ED Neighbourhoods & Environment,Highways And Transport Services,5175,Compass Minerals Uk Ltd,44867,12072532,8073.3,Materials,Equipment Furniture And Materials
Southend-on-Sea Borough Council,http://www.opendatacommunities.org/id/unitary-authority/southend,ED Neighbourhoods & Environment,Highways And Transport Services,5175,Compass Minerals Uk Ltd,44867,12072532,15947.76,Materials,Equipment Furniture And Materials
Southend-on-Sea Borough Council,http://www.opendatacommunities.org/id/unitary-authority/southend,ED Children & Public Health,Children And Education Services,3590,Diverse Rec Ltd T/A People Pool Ltd,44867,12072532,1461.5,Agency Staff,Direct Employee Expenses
Southend-on-Sea Borough Council,http://www.opendatacommunities.org/id/unitary-authority/southend,ED Children & Public Health,Children And Education Services,3590,Diverse Rec Ltd T/A People Pool Ltd,44867,12072532,1474.75,Agency Staff,Direct Employee Expenses
Southend-on-Sea Borough Council,http://www.opendatacommunities.org/id/unitary-authority/southend,ED Children & Public Health,Children And Education Services,3590,Diverse Rec Ltd T/A People Pool Ltd,44867,12072532,1794.5,Agency Staff,Direct Employee Expenses
Southend-on-Sea Borough Council,http://www.opendatacommunities.org/id/unitary-authority/southend,ED Children & Public Health,Children And Education Services,3590,Diverse Rec Ltd T/A People Pool Ltd,44867,12072532,1511.9,Agency Staff,Direct Employee Expenses
Southend-on-Sea Borough Council,http://www.opendatacommunities.org/id/unitary-authority/southend,ED Children & Public Health,Children And Education Services,3590,Diverse Rec Ltd T/A People Pool Ltd,44867,12072532,1389.1,Agency Staff,Direct Employee Expenses
Southend-on-Sea Borough Council,http://www.opendatacommunities.org/id/unitary-authority/southend,ED Children & Public Health,Children And Education Services,3590,Diverse Rec Ltd T/A People Pool Ltd,44867,12072532,1794.5,Agency Staff,Direct Employee Expenses
Southend-on-Sea Borough Council,http://www.opendatacommunities.org/id/unitary-authority/southend,ED Children & Public Health,Children And Education Services,3590,Diverse Rec Ltd T/A People Pool Ltd,44867,12072532,1678.75,Agency Staff,Direct Employee Expenses
Southend-on-Sea Borough Council,http://www.opendatacommunities.org/id/unitary-authority/southend,ED Children & Public Health,Children And Education Services,3590,Diverse Rec Ltd T/A People Pool Ltd,44867,12072532,1585.5,Agency Staff,Direct Employee Expenses
Southend-on-Sea Borough Council,http://www.opendatacommunities.org/id/unitary-authority/southend,ED Children & Public Health,Children And Education Services,3590,Diverse Rec Ltd T/A People Pool Ltd,44867,12072532,1461.5,Agency Staff,Direct Employee Expenses
Southend-on-Sea Borough Council,http://www.opendatacommunities.org/id/unitary-authority/southend,ED Children & Public Health,Children And Education Services,3590,Diverse Rec Ltd T/A People Pool Ltd,44867,12072532,1313.5,Agency Staff,Direct Employee Expenses
Southend-on-Sea Borough Council,http://www.opendatacommunities.org/id/unitary-authority/southend,ED Children & Public Health,Children And Education Services,3590,Diverse Rec Ltd T/A People Pool Ltd,44867,12072532,1535.5,Agency Staff,Direct Employee Expenses
Southend-on-Sea Borough Council,http://www.opendatacommunities.org/id/unitary-authority/southend,ED Children & Public Health,Children And Education Services,3590,Diverse Rec Ltd T/A People Pool Ltd,44867,12072532,1508.3,Agency Staff,Direct Employee Expenses
Southend-on-Sea Borough Council,http://www.opendatacommunities.org/id/unitary-authority/southend,ED Children & Public Health,Children And Education Services,3590,Diverse Rec Ltd T/A People Pool Ltd,44867,12072532,1473.1,Agency Staff,Direct Employee Expenses
Southend-on-Sea Borough Council,http://www.opendatacommunities.org/id/unitary-authority/southend,ED Children & Public Health,Children And Education Services,3590,Diverse Rec Ltd T/A People Pool Ltd,44867,12072532,1526.3,Agency Staff,Direct Employee Expenses
Southend-on-Sea Borough Council,http://www.opendatacommunities.org/id/unitary-authority/southend,ED Children & Public Health,Children And Education Services,3590,Diverse Rec Ltd T/A People Pool Ltd,44867,12072532,1417.45,Agency Staff,Direct Employee Expenses
Southend-on-Sea Borough Council,http://www.opendatacommunities.org/id/unitary-authority/southend,ED Children & Public Health,Children And Education Services,3590,Diverse Rec Ltd T/A People Pool Ltd,44867,12072532,1535.5,Agency Staff,Direct Employee Expenses
Southend-on-Sea Borough Council,http://www.opendatacommunities.org/id/unitary-authority/southend,ED Children & Public Health,Children And Education Services,3590,Diverse Rec Ltd T/A People Pool Ltd,44867,12072532,1461.5,Agency Staff,Direct Employee Expenses
Southend-on-Sea Borough Council,http://www.opendatacommunities.org/id/unitary-authority/southend,ED Children & Public Health,Children And Education Services,3590,Diverse Rec Ltd T/A People Pool Ltd,44867,12072532,1565.5,Agency Staff,Direct Employee Expenses
Southend-on-Sea Borough Council,http://www.opendatacommunities.org/id/unitary-authority/southend,ED Children & Public Health,Children And Education Services,3590,Diverse Rec Ltd T/A People Pool Ltd,44867,12072532,1313.5,Agency Staff,Direct Employee Expenses
Southend-on-Sea Borough Council,http://www.opendatacommunities.org/id/unitary-authority/southend,ED Children & Public Health,Children And Education Services,3590,Diverse Rec Ltd T/A People Pool Ltd,44867,12072532,1568.2,Agency Staff,Direct Employee Expenses
Southend-on-Sea Borough Council,http://www.opendatacommunities.org/id/unitary-authority/southend,ED Children & Public Health,Children And Education Services,3590,Diverse Rec Ltd T/A People Pool Ltd,44867,12072532,1313.5,Agency Staff,Direct Employee Expenses
Southend-on-Sea Borough Council,http://www.opendatacommunities.org/id/unitary-authority/southend,ED Children & Public Health,Children And Education Services,3590,Diverse Rec Ltd T/A People Pool Ltd,44867,12072532,1580.5,Agency Staff,Direct Employee Expenses
Southend-on-Sea Borough Council,http://www.opendatacommunities.org/id/unitary-authority/southend,ED Children & Public Health,Children And Education Services,3590,Diverse Rec Ltd T/A People Pool Ltd,44867,12072532,1535.5,Agency Staff,Direct Employee Expenses
Southend-on-Sea Borough Council,http://www.opendatacommunities.org/id/unitary-authority/southend,ED Children & Public Health,Children And Education Services,3590,Diverse Rec Ltd T/A People Pool Ltd,44867,12072532,1691.9,Agency Staff,Direct Employee Expenses
Southend-on-Sea Borough Council,http://www.opendatacommunities.org/id/unitary-authority/southend,ED Children & Public Health,Children And Education Services,3590,Diverse Rec Ltd T/A People Pool Ltd,44867,12072532,1313.5,Agency Staff,Direct Employee Expenses
Southend-on-Sea Borough Council,http://www.opendatacommunities.org/id/unitary-authority/southend,ED Children & Public Health,Children And Education Services,3590,Diverse Rec Ltd T/A People Pool Ltd,44867,12072532,1643.5,Agency Staff,Direct Employee Expenses
Southend-on-Sea Borough Council,http://www.opendatacommunities.org/id/unitary-authority/southend,ED Children & Public Health,Children And Education Services,3590,Diverse Rec Ltd T/A People Pool Ltd,44867,12072532,1461.5,Agency Staff,Direct Employee Expenses
Southend-on-Sea Borough Council,http://www.opendatacommunities.org/id/unitary-authority/southend,ED Children & Public Health,Children And Education Services,3590,Diverse Rec Ltd T/A People Pool Ltd,44867,12072532,1477,Agency Staff,Direct Employee Expenses
Southend-on-Sea Borough Council,http://www.opendatacommunities.org/id/unitary-authority/southend,ED Children & Public Health,Children And Education Services,3590,Diverse Rec Ltd T/A People Pool Ltd,44867,12072532,1285,Agency Staff,Direct Employee Expenses
Southend-on-Sea Borough Council,http://www.opendatacommunities.org/id/unitary-authority/southend,ED Children & Public Health,Children And Education Services,3590,Diverse Rec Ltd T/A People Pool Ltd,44867,12072532,1522.5,Agency Staff,Direct Employee Expenses
Southend-on-Sea Borough Council,http://www.opendatacommunities.org/id/unitary-authority/southend,ED Children & Public Health,Children And Education Services,3590,Diverse Rec Ltd T/A People Pool Ltd,44867,12072532,622.5,Agency Staff,Direct Employee Expenses
Southend-on-Sea Borough Council,http://www.opendatacommunities.org/id/unitary-authority/southend,ED Children & Public Health,Children And Education Services,3590,Diverse Rec Ltd T/A People Pool Ltd,44867,12072532,1461.5,Agency Staff,Direct Employee Expenses
Southend-on-Sea Borough Council,http://www.opendatacommunities.org/id/unitary-authority/southend,ED Children & Public Health,Children And Education Services,3590,Diverse Rec Ltd T/A People Pool Ltd,44867,12072532,1275,Agency Staff,Direct Employee Expenses
Southend-on-Sea Borough Council,http://www.opendatacommunities.org/id/unitary-authority/southend,ED Children & Public Health,Children And Education Services,3590,Diverse Rec Ltd T/A People Pool Ltd,44867,12072532,1169.2,Agency Staff,Direct Employee Expenses
Southend-on-Sea Borough Council,http://www.opendatacommunities.org/id/unitary-authority/southend,ED Children & Public Health,Children And Education Services,3590,Diverse Rec Ltd T/A People Pool Ltd,44867,12072532,1575.5,Agency Staff,Direct Employee Expenses
Southend-on-Sea Borough Council,http://www.opendatacommunities.org/id/unitary-authority/southend,ED Children & Public Health,Children And Education Services,3590,Diverse Rec Ltd T/A People Pool Ltd,44867,12072532,1527.2,Agency Staff,Direct Employee Expenses
Southend-on-Sea Borough Council,http://www.opendatacommunities.org/id/unitary-authority/southend,ED Children & Public Health,Children And Education Services,3590,Diverse Rec Ltd T/A People Pool Ltd,44867,12072532,1640.7,Agency Staff,Direct Employee Expenses
Southend-on-Sea Borough Council,http://www.opendatacommunities.org/id/unitary-authority/southend,ED Children & Public Health,Children And Education Services,3590,Diverse Rec Ltd T/A People Pool Ltd,44867,12072532,1461.5,Agency Staff,Direct Employee Expenses
Southend-on-Sea Borough Council,http://www.opendatacommunities.org/id/unitary-authority/southend,ED Children & Public Health,Children And Education Services,3590,Diverse Rec Ltd T/A People Pool Ltd,44867,12072532,1245,Agency Staff,Direct Employee Expenses
Southend-on-Sea Borough Council,http://www.opendatacommunities.org/id/unitary-authority/southend,ED Children & Public Health,Children And Education Services,3590,Diverse Rec Ltd T/A People Pool Ltd,44867,12072532,1295,Agency Staff,Direct Employee Expenses
Southend-on-Sea Borough Council,http://www.opendatacommunities.org/id/unitary-authority/southend,ED Children & Public Health,Children And Education Services,3590,Diverse Rec Ltd T/A People Pool Ltd,44867,12072532,1169.2,Agency Staff,Direct Employee Expenses
Southend-on-Sea Borough Council,http://www.opendatacommunities.org/id/unitary-authority/southend,"ED Strategy, Change & Governance",Central Services,7105,East Anglian Chambers T/A Mr Alex Soutter-Green,44867,12072532,600,Barristers fees,Services
Southend-on-Sea Borough Council,http://www.opendatacommunities.org/id/unitary-authority/southend,"ED Strategy, Change & Governance",Central Services,7105,East Anglian Chambers T/A Ms Sarah Duxbury,44867,12072532,750,Barristers fees,Services
Southend-on-Sea Borough Council,http://www.opendatacommunities.org/id/unitary-authority/southend,ED Adults & Communities,Adult Social Care,1209,Edf Energy,44867,12072532,1446.4,Energy Cost Electricity,Energy Costs
Southend-on-Sea Borough Council,http://www.opendatacommunities.org/id/unitary-authority/southend,ED Adults & Communities,Cultural And Related Services,4256,Edf Energy,44867,12072532,19492.44,Energy Cost Electricity,Energy Costs
Southend-on-Sea Borough Council,http://www.opendatacommunities.org/id/unitary-authority/southend,ED Adults & Communities,Cultural And Related Services,4285,Edf Energy,44867,12072532,547.32,Energy Cost Electricity,Energy Costs
Southend-on-Sea Borough Council,http://www.opendatacommunities.org/id/unitary-authority/southend,ED Adults & Communities,Cultural And Related Services,4012,Edf Energy,44867,12072532,983.51,Energy Cost Electricity,Energy Costs
Southend-on-Sea Borough Council,http://www.opendatacommunities.org/id/unitary-authority/southend,ED Adults & Communities,Cultural And Related Services,4025,Edf Energy,44867,12072532,663.82,Energy Cost Electricity,Energy Costs
Southend-on-Sea Borough Council,http://www.opendatacommunities.org/id/unitary-authority/southend,ED Adults & Communities,Cultural And Related Services,4030,Edf Energy,44867,12072532,2328.63,Energy Cost Electricity,Energy Costs
Southend-on-Sea Borough Council,http://www.opendatacommunities.org/id/unitary-authority/southend,ED Adults & Communities,Cultural And Related Services,4045,Edf Energy,44867,12072532,1579.44,Energy Cost Electricity,Energy Costs
Southend-on-Sea Borough Council,http://www.opendatacommunities.org/id/unitary-authority/southend,ED Adults & Communities,Cultural And Related Services,4115,Edf Energy,44867,12072532,4963.67,Energy Cost Electricity,Energy Costs
Southend-on-Sea Borough Council,http://www.opendatacommunities.org/id/unitary-authority/southend,ED Adults & Communities,Cultural And Related Services,4120,Edf Energy,44867,12072532,12403.13,Energy Cost Electricity,Energy Costs
Southend-on-Sea Borough Council,http://www.opendatacommunities.org/id/unitary-authority/southend,ED Children & Public Health,Children And Education Services,3390,Edf Energy,44867,12072532,698.89,Energy Cost Electricity,Energy Costs
Southend-on-Sea Borough Council,http://www.opendatacommunities.org/id/unitary-authority/southend,ED Children & Public Health,Children And Education Services,3471,Edf Energy,44867,12072532,3094.51,Energy Cost Electricity,Energy Costs
Southend-on-Sea Borough Council,http://www.opendatacommunities.org/id/unitary-authority/southend,ED Finance & Resources,Central Services,7120,Edf Energy,44867,12072532,3946.77,Energy Cost Electricity,Energy Costs
Southend-on-Sea Borough Council,http://www.opendatacommunities.org/id/unitary-authority/southend,ED Finance & Resources,Central Services,7140,Edf Energy,44867,12072532,48953.07,Energy Cost Electricity,Energy Costs
Southend-on-Sea Borough Council,http://www.opendatacommunities.org/id/unitary-authority/southend,ED Finance & Resources,Central Services,5606,Edf Energy,44867,12072532,675.22,Energy Cost Electricity,Energy Costs
Southend-on-Sea Borough Council,http://www.opendatacommunities.org/id/unitary-authority/southend,ED Neighbourhoods & Environment,Cultural and Related Services,7515,Edf Energy,44867,12072532,2116.71,Energy Cost Electricity,Energy Costs
Southend-on-Sea Borough Council,http://www.opendatacommunities.org/id/unitary-authority/southend,ED Neighbourhoods & Environment,Cultural And Related Services,4200,Edf Energy,44867,12072532,4726.55,Energy Cost Electricity,Energy Costs
Southend-on-Sea Borough Council,http://www.opendatacommunities.org/id/unitary-authority/southend,ED Neighbourhoods & Environment,Environmental And Regulatory Services,4505,Edf Energy,44867,12072532,3347.9,Energy Cost Electricity,Energy Costs
Southend-on-Sea Borough Council,http://www.opendatacommunities.org/id/unitary-authority/southend,ED Neighbourhoods & Environment,Environmental And Regulatory Services,4605,Edf Energy,44867,12072532,798.97,Energy Cost Electricity,Energy Costs
Southend-on-Sea Borough Council,http://www.opendatacommunities.org/id/unitary-authority/southend,ED Neighbourhoods & Environment,Highways And Transport Services,5035,Edf Energy,44867,12072532,1430.2,Energy Cost Electricity,Energy Costs
Southend-on-Sea Borough Council,http://www.opendatacommunities.org/id/unitary-authority/southend,ED Neighbourhoods & Environment,Highways And Transport Services,5170,Edf Energy,44867,12072532,60544.35,Energy Cost Electricity,Energy Costs
Southend-on-Sea Borough Council,http://www.opendatacommunities.org/id/unitary-authority/southend,ED Neighbourhoods & Environment,Highways And Transport Services,5225,Edf Energy,44867,12072532,3231.78,Energy Cost Electricity,Energy Costs
Southend-on-Sea Borough Council,http://www.opendatacommunities.org/id/unitary-authority/southend,ED Children & Public Health,Children And Education Services,3445,Essex County Council,44867,12072532,1287.5,Cultural And Entertainment Services,Services
Southend-on-Sea Borough Council,http://www.opendatacommunities.org/id/unitary-authority/southend,ED Finance & Resources,Central Services,7096,Essex Interpreting Ltd,44867,12072532,1524.6,Interpretation And Translation,Services
Southend-on-Sea Borough Council,http://www.opendatacommunities.org/id/unitary-authority/southend,ED Growth & Housing,Adult Social Care,6012,Essex Interpreting Ltd,44867,12072532,901.85,Interpretation And Translation,Services
Southend-on-Sea Borough Council,http://www.opendatacommunities.org/id/unitary-authority/southend,ED Neighbourhoods & Environment,Cultural And Related Services,4200,Glasdon Uk Limited,44867,12072532,706.84,Materials,Equipment Furniture And Materials
Southend-on-Sea Borough Council,http://www.opendatacommunities.org/id/unitary-authority/southend,ED Finance & Resources,Central Services,8600,Greenhous Fleet And Retail Ltd,44867,12072532,12712.07,Finance Leasing Charges,Communications And Computing
Southend-on-Sea Borough Council,http://www.opendatacommunities.org/id/unitary-authority/southend,ED Children & Public Health,Children And Education Services,3091,Grove Wood Primary School,44867,12072532,6347.69,Private Contractors,Other Agencies
Southend-on-Sea Borough Council,http://www.opendatacommunities.org/id/unitary-authority/southend,ED Children & Public Health,Children And Education Services,3091,Hadleigh Infants & Nursery School (Academy),44867,12072532,5038.46,Private Contractors,Other Agencies
Southend-on-Sea Borough Council,http://www.opendatacommunities.org/id/unitary-authority/southend,ED Adults & Communities,Adult Social Care,1205,Homecare Professionals (Essex) Ltd,44867,12072532,532,Private Contractors,Other Agencies
Southend-on-Sea Borough Council,http://www.opendatacommunities.org/id/unitary-authority/southend,ED Adults & Communities,Adult Social Care,1105,Homecare Professionals (Essex) Ltd,44867,12072532,779,Private Contractors,Other Agencies
Southend-on-Sea Borough Council,http://www.opendatacommunities.org/id/unitary-authority/southend,ED Adults & Communities,Adult Social Care,1105,Homecare Professionals (Essex) Ltd,44867,12072532,1064,Private Contractors,Other Agencies
Southend-on-Sea Borough Council,http://www.opendatacommunities.org/id/unitary-authority/southend,ED Adults & Communities,Public Health,7685,Indirock Ltd,44867,12072532,10400,Private Contractors,Other Agencies
Southend-on-Sea Borough Council,http://www.opendatacommunities.org/id/unitary-authority/southend,ED Adults & Communities,Adult Social Care,1294,Inner Resources Ltd,44867,12072532,853.2,Private Contractors,Other Agencies
Southend-on-Sea Borough Council,http://www.opendatacommunities.org/id/unitary-authority/southend,"ED Strategy, Change & Governance",Central Services,7130,Intuity Communications Limited,44867,12072532,5444.45,IT Contracts,Communications And Computing
Southend-on-Sea Borough Council,http://www.opendatacommunities.org/id/unitary-authority/southend,ED Adults & Communities,Adult Social Care,1105,J C Michael Groups Ltd,44867,12072532,1349,Private Contractors,Other Agencies
Southend-on-Sea Borough Council,http://www.opendatacommunities.org/id/unitary-authority/southend,ED Adults & Communities,Adult Social Care,1583,J C Michael Groups Ltd,44867,12072532,532,Private Contractors,Other Agencies
Southend-on-Sea Borough Council,http://www.opendatacommunities.org/id/unitary-authority/southend,ED Adults & Communities,Adult Social Care,1105,J C Michael Groups Ltd,44867,12072532,636.5,Private Contractors,Other Agencies
Southend-on-Sea Borough Council,http://www.opendatacommunities.org/id/unitary-authority/southend,ED Adults & Communities,Adult Social Care,1105,J C Michael Groups Ltd,44867,12072532,745.75,Private Contractors,Other Agencies
Southend-on-Sea Borough Council,http://www.opendatacommunities.org/id/unitary-authority/southend,ED Adults & Communities,Adult Social Care,1105,J C Michael Groups Ltd,44867,12072532,598.5,Private Contractors,Other Agencies
Southend-on-Sea Borough Council,http://www.opendatacommunities.org/id/unitary-authority/southend,ED Adults & Communities,Adult Social Care,1105,J C Michael Groups Ltd,44867,12072532,1577,Private Contractors,Other Agencies
Southend-on-Sea Borough Council,http://www.opendatacommunities.org/id/unitary-authority/southend,ED Adults & Communities,Adult Social Care,1205,J C Michael Groups Ltd,44867,12072532,1596,Private Contractors,Other Agencies
Southend-on-Sea Borough Council,http://www.opendatacommunities.org/id/unitary-authority/southend,ED Adults & Communities,Adult Social Care,1105,J C Michael Groups Ltd,44867,12072532,1197,Private Contractors,Other Agencies
Southend-on-Sea Borough Council,http://www.opendatacommunities.org/id/unitary-authority/southend,ED Adults & Communities,Adult Social Care,1105,J C Michael Groups Ltd,44867,12072532,969,Private Contractors,Other Agencies
Southend-on-Sea Borough Council,http://www.opendatacommunities.org/id/unitary-authority/southend,ED Adults & Communities,Adult Social Care,1105,J C Michael Groups Ltd,44867,12072532,608,Private Contractors,Other Agencies
Southend-on-Sea Borough Council,http://www.opendatacommunities.org/id/unitary-authority/southend,"ED Strategy, Change & Governance",Central Services,2045,Jadu Creative Limited,44867,12072532,1650,Internet,Communications And Computing
Southend-on-Sea Borough Council,http://www.opendatacommunities.org/id/unitary-authority/southend,ED Neighbourhoods & Environment,Cultural And Related Services,4201,James Coles & Sons (Nurseries) Ltd,44867,12072532,548.4,Materials,Equipment Furniture And Materials
Southend-on-Sea Borough Council,http://www.opendatacommunities.org/id/unitary-authority/southend,ED Neighbourhoods & Environment,Cultural And Related Services,4201,James Coles & Sons (Nurseries) Ltd,44867,12072532,1706.95,Materials,Equipment Furniture And Materials
Southend-on-Sea Borough Council,http://www.opendatacommunities.org/id/unitary-authority/southend,ED Neighbourhoods & Environment,Highways And Transport Services,5075,Kainos Software Limited,44867,12072532,3125,Private Contractors,Other Agencies
Southend-on-Sea Borough Council,http://www.opendatacommunities.org/id/unitary-authority/southend,ED Adults & Communities,Cultural And Related Services,4230,Karen P Productions Ltd. T/A Folded Wing,44867,12072532,1600,Cultural And Entertainment Services,Services
Southend-on-Sea Borough Council,http://www.opendatacommunities.org/id/unitary-authority/southend,"ED Strategy, Change & Governance",Central Services,7105,Miss Kate Miller,44867,12072532,600,Barristers fees,Services
Southend-on-Sea Borough Council,http://www.opendatacommunities.org/id/unitary-authority/southend,ED Neighbourhoods & Environment,Highways And Transport Services,9008,Mott Macdonald,44867,12072532,9693.23,Contractors General,Contractors General
Southend-on-Sea Borough Council,http://www.opendatacommunities.org/id/unitary-authority/southend,ED Growth & Housing,Housing Services,9007,Mott Macdonald,44867,12072532,6951.27,Contractors General,Contractors General
Southend-on-Sea Borough Council,http://www.opendatacommunities.org/id/unitary-authority/southend,ED Neighbourhoods & Environment,Highways And Transport Services,9008,Mott Macdonald,44867,12072532,43088.07,Contractors General,Contractors General
Southend-on-Sea Borough Council,http://www.opendatacommunities.org/id/unitary-authority/southend,ED Children & Public Health,Children And Education Services,3165,Mrs S F Cox T/A S F Consultancy,44867,12072532,500,Professional Fees,Services
Southend-on-Sea Borough Council,http://www.opendatacommunities.org/id/unitary-authority/southend,ED Finance & Resources,Housing Services,6167,Nec Software Solutions Uk Limited,44867,12072532,2614.06,Corporate IT Applications,Communications And Computing
Southend-on-Sea Borough Council,http://www.opendatacommunities.org/id/unitary-authority/southend,ED Children & Public Health,Public Health,7713,Nhs Arden & Greater East Midlands Csu,44867,12072532,3212.75,IT Contracts,Communications And Computing
Southend-on-Sea Borough Council,http://www.opendatacommunities.org/id/unitary-authority/southend,ED Finance & Resources,Central Services,8605,Plexus Legal Llp Office Account,44867,12072532,825,Court Costs And Legal Fees,Services
Southend-on-Sea Borough Council,http://www.opendatacommunities.org/id/unitary-authority/southend,ED Children & Public Health,Children And Education Services,3590,Quickline Recruitment Limited,44867,12072532,1964.75,Agency Staff,Direct Employee Expenses
Southend-on-Sea Borough Council,http://www.opendatacommunities.org/id/unitary-authority/southend,ED Adults & Communities,Adult Social Care,1365,Richmond Fellowship,44867,12072532,3288.09,Additional Allowances (non employee),Services
Southend-on-Sea Borough Council,http://www.opendatacommunities.org/id/unitary-authority/southend,ED Adults & Communities,Housing Services,6210,Richmond Fellowship,44867,12072532,71482.5,Social Care Services,Services
Southend-on-Sea Borough Council,http://www.opendatacommunities.org/id/unitary-authority/southend,ED Finance & Resources,Central Services,7111,Royal Mail,44867,12072532,2256.75,Mail Services� Postage,Communications And Computing
Southend-on-Sea Borough Council,http://www.opendatacommunities.org/id/unitary-authority/southend,ED Finance & Resources,Central Services,7111,Royal Mail,44867,12072532,2140.3,Mail Services� Postage,Communications And Computing
Southend-on-Sea Borough Council,http://www.opendatacommunities.org/id/unitary-authority/southend,ED Finance & Resources,Central Services,7111,Royal Mail,44867,12072532,2622.35,Mail Services� Postage,Communications And Computing
Southend-on-Sea Borough Council,http://www.opendatacommunities.org/id/unitary-authority/southend,ED Finance & Resources,Central Services,7111,Royal Mail,44867,12072532,1887.14,Mail Services� Postage,Communications And Computing
Southend-on-Sea Borough Council,http://www.opendatacommunities.org/id/unitary-authority/southend,ED Finance & Resources,Central Services,7111,Royal Mail,44867,12072532,2302,Mail Services� Postage,Communications And Computing
Southend-on-Sea Borough Council,http://www.opendatacommunities.org/id/unitary-authority/southend,ED Finance & Resources,Central Services,7111,Royal Mail,44867,12072532,2012.44,Mail Services� Postage,Communications And Computing
Southend-on-Sea Borough Council,http://www.opendatacommunities.org/id/unitary-authority/southend,ED Children & Public Health,Children And Education Services,3250,Savannah Lodge Ltd - Main,44867,12072532,2514.28,Private Contractors,Other Agencies
Southend-on-Sea Borough Council,http://www.opendatacommunities.org/id/unitary-authority/southend,ED Adults & Communities,Adult Social Care,1209,Scan Mobility Ltd,44867,12072532,10680.66,Tools And Equipment Repair And Maintenance,Equipment Furniture And Materials
Southend-on-Sea Borough Council,http://www.opendatacommunities.org/id/unitary-authority/southend,ED Growth & Housing,Housing Services,6501,Sharpe Pritchard,44867,12072532,12372.5,Catering Hospitality,Catering
Southend-on-Sea Borough Council,http://www.opendatacommunities.org/id/unitary-authority/southend,ED Growth & Housing,Housing Services,6505,South Essex Property Services,44867,12072532,8858.21,Security,"Repairs, alterations and maintenance of buildings"
Southend-on-Sea Borough Council,http://www.opendatacommunities.org/id/unitary-authority/southend,ED Adults & Communities,Adult Social Care,1070,Southend Care Ltd,44867,12072532,11340,Private Contractors,Other Agencies
Southend-on-Sea Borough Council,http://www.opendatacommunities.org/id/unitary-authority/southend,ED Adults & Communities,Adult Social Care,1466,Southend Care Ltd,44867,12072532,2972.03,Private Contractors,Other Agencies
Southend-on-Sea Borough Council,http://www.opendatacommunities.org/id/unitary-authority/southend,ED Adults & Communities,Adult Social Care,1466,Southend Care Ltd,44867,12072532,5000,Private Contractors,Other Agencies
Southend-on-Sea Borough Council,http://www.opendatacommunities.org/id/unitary-authority/southend,ED Adults & Communities,Public Health,7685,Sports & Leisure Management Ltd Now Everyone Health Ltd,44867,12072532,1958.33,Private Contractors,Other Agencies
Southend-on-Sea Borough Council,http://www.opendatacommunities.org/id/unitary-authority/southend,ED Adults & Communities,Public Health,7685,Sports & Leisure Management Ltd Now Everyone Health Ltd,44867,12072532,7916.17,Private Contractors,Other Agencies
Southend-on-Sea Borough Council,http://www.opendatacommunities.org/id/unitary-authority/southend,ED Adults & Communities,Public Health,7685,Sports & Leisure Management Ltd Now Everyone Health Ltd,44867,12072532,23416.67,Private Contractors,Other Agencies
Southend-on-Sea Borough Council,http://www.opendatacommunities.org/id/unitary-authority/southend,"ED Strategy, Change & Governance",Central Services,9012,Strata Security Solutions Ltd,44867,12072532,5000,Software License,Software License
Southend-on-Sea Borough Council,http://www.opendatacommunities.org/id/unitary-authority/southend,ED Neighbourhoods & Environment,Cultural and Related Services,7520,Tlm Management Ltd,44867,12072532,597.5,Private Contractors,Other Agencies
Southend-on-Sea Borough Council,http://www.opendatacommunities.org/id/unitary-authority/southend,ED Neighbourhoods & Environment,Environmental And Regulatory Services,4505,Tlm Management Ltd,44867,12072532,534,Private Contractors,Other Agencies
Southend-on-Sea Borough Council,http://www.opendatacommunities.org/id/unitary-authority/southend,ED Neighbourhoods & Environment,Cultural And Related Services,7540,Tlm Management Ltd,44867,12072532,1597.5,Private Contractors,Other Agencies
Southend-on-Sea Borough Council,http://www.opendatacommunities.org/id/unitary-authority/southend,ED Growth & Housing,Housing Services,9007,Trafalgar Uk Theatres Limited T/A Southend Cliffs Pavilion,44867,12072532,26919.7,S278 Bond expend,S278 Bond expend
Southend-on-Sea Borough Council,http://www.opendatacommunities.org/id/unitary-authority/southend,ED Adults & Communities,Adult Social Care,1400,Vital Healthcare Services Ltd,44867,12072532,3245.76,Private Contractors,Other Agencies
Southend-on-Sea Borough Council,http://www.opendatacommunities.org/id/unitary-authority/southend,ED Children & Public Health,Children And Education Services,3092,Young Epilepsy,44867,12072532,16587.66,Private Contractors,Other Agencies
Southend-on-Sea Borough Council,http://www.opendatacommunities.org/id/unitary-authority/southend,ED Adults & Communities,Adult Social Care,1180,Your World Recruitment Ltd,44867,12072532,1480,Agency Staff,Direct Employee Expenses
Southend-on-Sea Borough Council,http://www.opendatacommunities.org/id/unitary-authority/southend,ED Adults & Communities,Adult Social Care,9010,(G) Gracelands Cms Ltd,44869,12072536,3941.5,Grants Paid,Grants Paid
Southend-on-Sea Borough Council,http://www.opendatacommunities.org/id/unitary-authority/southend,ED Growth & Housing,Housing Services,9005,(G) Gracelands Cms Ltd,44869,12072536,4541.23,Contractors General,Contractors General
Southend-on-Sea Borough Council,http://www.opendatacommunities.org/id/unitary-authority/southend,ED Growth & Housing,Housing Services,9005,(G) Gracelands Cms Ltd,44869,12072536,1192.8,Contractors General,Contractors General
Southend-on-Sea Borough Council,http://www.opendatacommunities.org/id/unitary-authority/southend,ED Adults & Communities,Adult Social Care,9010,(G) Kieran Lucas Contractors Ltd,44869,12072536,6822,Main Contractor,Main Contractor
Southend-on-Sea Borough Council,http://www.opendatacommunities.org/id/unitary-authority/southend,ED Adults & Communities,Adult Social Care,9010,(G) Kieran Lucas Contractors Ltd,44869,12072536,2865.06,Main Contractor,Main Contractor
Southend-on-Sea Borough Council,http://www.opendatacommunities.org/id/unitary-authority/southend,ED Adults & Communities,Adult Social Care,9010,(G) Kieran Lucas Contractors Ltd,44869,12072536,994,Main Contractor,Main Contractor
Southend-on-Sea Borough Council,http://www.opendatacommunities.org/id/unitary-authority/southend,ED Adults & Communities,Adult Social Care,9010,(G) Mansard Roofing Ltd,44869,12072536,4250,Main Contractor,Main Contractor
Southend-on-Sea Borough Council,http://www.opendatacommunities.org/id/unitary-authority/southend,ED Adults & Communities,Adult Social Care,9010,(G) Mansard Roofing Ltd,44869,12072536,2620,Main Contractor,Main Contractor
Southend-on-Sea Borough Council,http://www.opendatacommunities.org/id/unitary-authority/southend,ED Adults & Communities,Adult Social Care,9010,(G) R & A Mechanical Services Ltd,44869,12072536,6200,Main Contractor,Main Contractor
Southend-on-Sea Borough Council,http://www.opendatacommunities.org/id/unitary-authority/southend,ED Adults & Communities,Adult Social Care,9010,(G) R & A Mechanical Services Ltd,44869,12072536,9870,Main Contractor,Main Contractor
Southend-on-Sea Borough Council,http://www.opendatacommunities.org/id/unitary-authority/southend,ED Adults & Communities,Cultural And Related Services,4120,(G) R & A Mechanical Services Ltd,44869,12072536,2775,Repairs And Maintenance Contracts,"Repairs, alterations and maintenance of buildings"
Southend-on-Sea Borough Council,http://www.opendatacommunities.org/id/unitary-authority/southend,ED Children & Public Health,Children And Education Services,3094,(G) R & A Mechanical Services Ltd,44869,12072536,540,Tools And Equipment Purchase,Equipment Furniture And Materials
Southend-on-Sea Borough Council,http://www.opendatacommunities.org/id/unitary-authority/southend,ED Finance & Resources,Central Services,7140,(G) R & A Mechanical Services Ltd,44869,12072536,865,Repairs And Maintenance Contracts,"Repairs, alterations and maintenance of buildings"
Southend-on-Sea Borough Council,http://www.opendatacommunities.org/id/unitary-authority/southend,ED Adults & Communities,Cultural And Related Services,4120,(G) Sfs Fire Services Ltd T/A Hall & Kay Fire Engineering,44869,12072536,530,Repairs And Maintenance Contracts,"Repairs, alterations and maintenance of buildings"
Southend-on-Sea Borough Council,http://www.opendatacommunities.org/id/unitary-authority/southend,ED Finance & Resources,Central Services,7165,(G) Sweco Uk Limited,44869,12072536,2300,Professional Fees,Services
Southend-on-Sea Borough Council,http://www.opendatacommunities.org/id/unitary-authority/southend,ED Growth & Housing,Housing Services,9005,1978 Surveyors Ltd T/A Reliable Property Group,44869,12072536,1080,Surveyors Fees,Surveyors Fees
Southend-on-Sea Borough Council,http://www.opendatacommunities.org/id/unitary-authority/southend,ED Children & Public Health,Adult Social Care,1035,31Ten Consulting Ltd,44869,12072536,5700,Consultancy Services,Services
Southend-on-Sea Borough Council,http://www.opendatacommunities.org/id/unitary-authority/southend,ED Children & Public Health,Adult Social Care,1035,31Ten Consulting Ltd,44869,12072536,1900,Consultancy Services,Services
Southend-on-Sea Borough Council,http://www.opendatacommunities.org/id/unitary-authority/southend,ED Adults & Communities,Adult Social Care,1209,Accora Ltd,44869,12072536,1290,Tools And Equipment Purchase,Equipment Furniture And Materials
Southend-on-Sea Borough Council,http://www.opendatacommunities.org/id/unitary-authority/southend,ED Children & Public Health,Children And Education Services,3250,Aden Homes Limited,44869,12072536,2875.02,Private Contractors,Other Agencies
Southend-on-Sea Borough Council,http://www.opendatacommunities.org/id/unitary-authority/southend,ED Adults & Communities,Cultural And Related Services,4122,Angel Human Resources Ltd T/A Angel Recruitment Group,44869,12072536,619.6,Agency Staff,Direct Employee Expenses
Southend-on-Sea Borough Council,http://www.opendatacommunities.org/id/unitary-authority/southend,ED Adults & Communities,Cultural And Related Services,4010,Anna Lukala Photography,44869,12072536,660,Professional Fees,Services
Southend-on-Sea Borough Council,http://www.opendatacommunities.org/id/unitary-authority/southend,ED Neighbourhoods & Environment,Highways And Transport Services,5226,Apcoa Parking Uk Ltd,44869,12072536,30301.14,Services,Services
Southend-on-Sea Borough Council,http://www.opendatacommunities.org/id/unitary-authority/southend,ED Children & Public Health,Children And Education Services,3250,Arnfield Care Ltd,44869,12072536,5133.2,Private Contractors,Other Agencies
Southend-on-Sea Borough Council,http://www.opendatacommunities.org/id/unitary-authority/southend,ED Children & Public Health,Children And Education Services,3250,Arnfield Care Ltd,44869,12072536,12833.1,Private Contractors,Other Agencies
Southend-on-Sea Borough Council,http://www.opendatacommunities.org/id/unitary-authority/southend,ED Adults & Communities,Adult Social Care,1260,Ashgate House Limited,44869,12072536,5774.44,Private Contractors,Other Agencies
Southend-on-Sea Borough Council,http://www.opendatacommunities.org/id/unitary-authority/southend,ED Adults & Communities,Adult Social Care,1260,Ashtead House Limited,44869,12072536,5931.52,Private Contractors,Other Agencies
Southend-on-Sea Borough Council,http://www.opendatacommunities.org/id/unitary-authority/southend,ED Children & Public Health,Children And Education Services,3307,Audax Supported Living Community Interest Company T/A Audax Foundations,44869,12072536,3764.29,Accomodation Payment,Services
Southend-on-Sea Borough Council,http://www.opendatacommunities.org/id/unitary-authority/southend,ED Growth & Housing,Housing Services,6130,Beagle Properties,44869,12072536,1990,Loans,Services
Southend-on-Sea Borough Council,http://www.opendatacommunities.org/id/unitary-authority/southend,ED Adults & Communities,Cultural And Related Services,4120,Biffa Waste Services Ltd,44869,12072536,2050.14,Waste Management,Cleaning And Domestic Supplies
Southend-on-Sea Borough Council,http://www.opendatacommunities.org/id/unitary-authority/southend,ED Adults & Communities,Adult Social Care,1105,Brooks Care & Nursing Services Ltd,44869,12072536,3557.75,Private Contractors,Other Agencies
Southend-on-Sea Borough Council,http://www.opendatacommunities.org/id/unitary-authority/southend,ED Children & Public Health,Children And Education Services,3250,By The Bridge Ltd,44869,12072536,4284,Private Contractors,Other Agencies
Southend-on-Sea Borough Council,http://www.opendatacommunities.org/id/unitary-authority/southend,ED Children & Public Health,Children And Education Services,3307,By The Bridge Ltd,44869,12072536,4284,Private Contractors,Other Agencies
Southend-on-Sea Borough Council,http://www.opendatacommunities.org/id/unitary-authority/southend,ED Children & Public Health,Children And Education Services,3250,By The Bridge Ltd,44869,12072536,3400.04,Private Contractors,Other Agencies
Southend-on-Sea Borough Council,http://www.opendatacommunities.org/id/unitary-authority/southend,ED Children & Public Health,Children And Education Services,3250,By The Bridge Ltd,44869,12072536,3400.04,Private Contractors,Other Agencies
Southend-on-Sea Borough Council,http://www.opendatacommunities.org/id/unitary-authority/southend,ED Growth & Housing,Housing Services,6130,Byte Consulting Limited,44869,12072536,1160,Loans,Services
Southend-on-Sea Borough Council,http://www.opendatacommunities.org/id/unitary-authority/southend,ED Children & Public Health,Children And Education Services,3250,Caldecott Fostering Ltd,44869,12072536,5760,Private Contractors,Other Agencies
Southend-on-Sea Borough Council,http://www.opendatacommunities.org/id/unitary-authority/southend,ED Adults & Communities,Adult Social Care,1146,Carers Choices,44869,12072536,968.5,Private Contractors,Other Agencies
Southend-on-Sea Borough Council,http://www.opendatacommunities.org/id/unitary-authority/southend,"ED Strategy, Change & Governance",Central Services,2200,Civica Election Services Limited,44869,12072536,525,Printing,Printing Stationery And General Office Expenses
Southend-on-Sea Borough Council,http://www.opendatacommunities.org/id/unitary-authority/southend,ED Children & Public Health,Children And Education Services,3250,Compass Fostering East Ltd,44869,12072536,3400.04,Private Contractors,Other Agencies
Southend-on-Sea Borough Council,http://www.opendatacommunities.org/id/unitary-authority/southend,ED Children & Public Health,Children And Education Services,3250,Compass Fostering East Ltd,44869,12072536,3319.96,Private Contractors,Other Agencies
Southend-on-Sea Borough Council,http://www.opendatacommunities.org/id/unitary-authority/southend,ED Children & Public Health,Children And Education Services,3250,Compass Fostering East Ltd,44869,12072536,4499.88,Private Contractors,Other Agencies
Southend-on-Sea Borough Council,http://www.opendatacommunities.org/id/unitary-authority/southend,ED Children & Public Health,Children And Education Services,3250,Compass Fostering East Ltd,44869,12072536,3319.96,Private Contractors,Other Agencies
Southend-on-Sea Borough Council,http://www.opendatacommunities.org/id/unitary-authority/southend,ED Children & Public Health,Children And Education Services,3250,Compass Fostering East Ltd,44869,12072536,3237.08,Private Contractors,Other Agencies
Southend-on-Sea Borough Council,http://www.opendatacommunities.org/id/unitary-authority/southend,ED Children & Public Health,Children And Education Services,3250,Compass Fostering East Ltd,44869,12072536,3319.96,Private Contractors,Other Agencies
Southend-on-Sea Borough Council,http://www.opendatacommunities.org/id/unitary-authority/southend,ED Neighbourhoods & Environment,Highways And Transport Services,5175,Compass Minerals Uk Ltd,44869,12072536,13936.79,Materials,Equipment Furniture And Materials
Southend-on-Sea Borough Council,http://www.opendatacommunities.org/id/unitary-authority/southend,ED Neighbourhoods & Environment,Highways And Transport Services,5175,Compass Minerals Uk Ltd,44869,12072536,13712.71,Materials,Equipment Furniture And Materials
Southend-on-Sea Borough Council,http://www.opendatacommunities.org/id/unitary-authority/southend,ED Neighbourhoods & Environment,Highways And Transport Services,5175,Compass Minerals Uk Ltd,44869,12072536,1968.96,Materials,Equipment Furniture And Materials
Southend-on-Sea Borough Council,http://www.opendatacommunities.org/id/unitary-authority/southend,ED Children & Public Health,Children And Education Services,3290,Creative Support Solutions Ltd,44869,12072536,5172.85,Accomodation Payment,Services
Southend-on-Sea Borough Council,http://www.opendatacommunities.org/id/unitary-authority/southend,ED Growth & Housing,Housing Services,6011,Devine Treasures T/A Devine Beach Guest House,44869,12072536,1575,Accommodation Costs,Expenses
Southend-on-Sea Borough Council,http://www.opendatacommunities.org/id/unitary-authority/southend,ED Growth & Housing,Housing Services,6011,Devine Treasures T/A Devine Beach Guest House,44869,12072536,900,Accommodation Costs,Expenses
Southend-on-Sea Borough Council,http://www.opendatacommunities.org/id/unitary-authority/southend,ED Neighbourhoods & Environment,Environmental And Regulatory Services,4501,Dignity Funerals Ltd T/A J W Tate & Son,44869,12072536,1212,Crematoria And Cemetery Services,Services
Southend-on-Sea Borough Council,http://www.opendatacommunities.org/id/unitary-authority/southend,ED Neighbourhoods & Environment,Environmental And Regulatory Services,4716,Dr Phil Back,44869,12072536,575.32,Consultancy Services,Services
Southend-on-Sea Borough Council,http://www.opendatacommunities.org/id/unitary-authority/southend,"ED Strategy, Change & Governance",Central Services,7105,East Anglian Chambers T/A Lorene Hodkinson,44869,12072536,800,Barristers fees,Services
Southend-on-Sea Borough Council,http://www.opendatacommunities.org/id/unitary-authority/southend,"ED Strategy, Change & Governance",Central Services,7105,East Anglian Chambers T/A Lorene Hodkinson,44869,12072536,1250,Barristers fees,Services
Southend-on-Sea Borough Council,http://www.opendatacommunities.org/id/unitary-authority/southend,"ED Strategy, Change & Governance",Central Services,7105,East Anglian Chambers T/A Lorene Hodkinson,44869,12072536,750,Barristers fees,Services
Southend-on-Sea Borough Council,http://www.opendatacommunities.org/id/unitary-authority/southend,ED Adults & Communities,Adult Social Care,1105,Erbil Gulhan T/A Palm2Palm Care And Reablement Services,44869,12072536,1377.5,Private Contractors,Other Agencies
Southend-on-Sea Borough Council,http://www.opendatacommunities.org/id/unitary-authority/southend,ED Adults & Communities,Adult Social Care,1310,Essex Nursing Services,44869,12072536,513,Private Contractors,Other Agencies
Southend-on-Sea Borough Council,http://www.opendatacommunities.org/id/unitary-authority/southend,ED Adults & Communities,Adult Social Care,1105,First Point 24 Ltd,44869,12072536,646,Private Contractors,Other Agencies
Southend-on-Sea Borough Council,http://www.opendatacommunities.org/id/unitary-authority/southend,ED Adults & Communities,Adult Social Care,1105,First Point 24 Ltd,44869,12072536,532,Private Contractors,Other Agencies
Southend-on-Sea Borough Council,http://www.opendatacommunities.org/id/unitary-authority/southend,ED Children & Public Health,Children And Education Services,3250,Foster Care Uk,44869,12072536,5115,Private Contractors,Other Agencies
Southend-on-Sea Borough Council,http://www.opendatacommunities.org/id/unitary-authority/southend,ED Children & Public Health,Children And Education Services,3250,Foster Care Uk,44869,12072536,4950,Private Contractors,Other Agencies
Southend-on-Sea Borough Council,http://www.opendatacommunities.org/id/unitary-authority/southend,ED Neighbourhoods & Environment,Highways And Transport Services,5700,Gaist Solutions Ltd,44869,12072536,9780,Private Contractors,Other Agencies
Southend-on-Sea Borough Council,http://www.opendatacommunities.org/id/unitary-authority/southend,ED Finance & Resources,Central Services,5606,Glenny Llp,44869,12072536,1208.75,Service Charges,Rents
Southend-on-Sea Borough Council,http://www.opendatacommunities.org/id/unitary-authority/southend,ED Adults & Communities,Adult Social Care,1105,Golden Keys Care Agency Limited,44869,12072536,1064,Private Contractors,Other Agencies
Southend-on-Sea Borough Council,http://www.opendatacommunities.org/id/unitary-authority/southend,ED Adults & Communities,Adult Social Care,1105,Golden Keys Care Agency Limited,44869,12072536,1064,Private Contractors,Other Agencies
Southend-on-Sea Borough Council,http://www.opendatacommunities.org/id/unitary-authority/southend,ED Adults & Communities,Adult Social Care,1105,Golden Keys Care Agency Limited,44869,12072536,665,Private Contractors,Other Agencies
Southend-on-Sea Borough Council,http://www.opendatacommunities.org/id/unitary-authority/southend,ED Adults & Communities,Adult Social Care,1105,Golden Keys Care Agency Limited,44869,12072536,3458,Private Contractors,Other Agencies
Southend-on-Sea Borough Council,http://www.opendatacommunities.org/id/unitary-authority/southend,ED Adults & Communities,Adult Social Care,1105,Golden Keys Care Agency Limited,44869,12072536,2394,Private Contractors,Other Agencies
Southend-on-Sea Borough Council,http://www.opendatacommunities.org/id/unitary-authority/southend,ED Adults & Communities,Adult Social Care,1205,Golden Keys Care Agency Limited,44869,12072536,1121,Private Contractors,Other Agencies
Southend-on-Sea Borough Council,http://www.opendatacommunities.org/id/unitary-authority/southend,ED Adults & Communities,Adult Social Care,1105,Golden Keys Care Agency Limited,44869,12072536,978.5,Private Contractors,Other Agencies
Southend-on-Sea Borough Council,http://www.opendatacommunities.org/id/unitary-authority/southend,ED Adults & Communities,Adult Social Care,1105,Golden Keys Care Agency Limited,44869,12072536,2375,Private Contractors,Other Agencies
Southend-on-Sea Borough Council,http://www.opendatacommunities.org/id/unitary-authority/southend,ED Adults & Communities,Adult Social Care,1105,Golden Keys Care Agency Limited,44869,12072536,2394,Private Contractors,Other Agencies
Southend-on-Sea Borough Council,http://www.opendatacommunities.org/id/unitary-authority/southend,ED Adults & Communities,Adult Social Care,1105,Golden Keys Care Agency Limited,44869,12072536,2394,Private Contractors,Other Agencies
Southend-on-Sea Borough Council,http://www.opendatacommunities.org/id/unitary-authority/southend,ED Adults & Communities,Adult Social Care,1105,Golden Keys Care Agency Limited,44869,12072536,826.5,Private Contractors,Other Agencies
Southend-on-Sea Borough Council,http://www.opendatacommunities.org/id/unitary-authority/southend,ED Adults & Communities,Adult Social Care,1105,Golden Keys Care Agency Limited,44869,12072536,2128,Private Contractors,Other Agencies
Southend-on-Sea Borough Council,http://www.opendatacommunities.org/id/unitary-authority/southend,ED Adults & Communities,Adult Social Care,1105,Golden Keys Care Agency Limited,44869,12072536,513,Private Contractors,Other Agencies
Southend-on-Sea Borough Council,http://www.opendatacommunities.org/id/unitary-authority/southend,ED Adults & Communities,Adult Social Care,1105,Golden Keys Care Agency Limited,44869,12072536,532,Private Contractors,Other Agencies
Southend-on-Sea Borough Council,http://www.opendatacommunities.org/id/unitary-authority/southend,ED Adults & Communities,Adult Social Care,1105,Golden Keys Care Agency Limited,44869,12072536,2584,Private Contractors,Other Agencies
Southend-on-Sea Borough Council,http://www.opendatacommunities.org/id/unitary-authority/southend,ED Adults & Communities,Adult Social Care,1205,Golden Keys Care Agency Limited,44869,12072536,845.5,Private Contractors,Other Agencies
Southend-on-Sea Borough Council,http://www.opendatacommunities.org/id/unitary-authority/southend,ED Adults & Communities,Adult Social Care,1105,Golden Keys Care Agency Limited,44869,12072536,888.25,Private Contractors,Other Agencies
Southend-on-Sea Borough Council,http://www.opendatacommunities.org/id/unitary-authority/southend,ED Finance & Resources,Central Services,8605,Graham High Group Limited,44869,12072536,555.87,Professional Fees,Services
Southend-on-Sea Borough Council,http://www.opendatacommunities.org/id/unitary-authority/southend,ED Finance & Resources,Central Services,8605,Graham High Group Limited,44869,12072536,575.01,Professional Fees,Services
Southend-on-Sea Borough Council,http://www.opendatacommunities.org/id/unitary-authority/southend,ED Finance & Resources,Central Services,8600,Greenhous Fleet And Retail Ltd,44869,12072536,12712.07,Finance Leasing Charges,Communications And Computing
Southend-on-Sea Borough Council,http://www.opendatacommunities.org/id/unitary-authority/southend,ED Adults & Communities,Adult Social Care,1146,Harwood House Day Centre,44869,12072536,524.4,Private Contractors,Other Agencies
Southend-on-Sea Borough Council,http://www.opendatacommunities.org/id/unitary-authority/southend,ED Adults & Communities,Adult Social Care,1145,Harwood House Day Centre,44869,12072536,786.6,Private Contractors,Other Agencies
Southend-on-Sea Borough Council,http://www.opendatacommunities.org/id/unitary-authority/southend,ED Adults & Communities,Adult Social Care,1145,Harwood House Day Centre,44869,12072536,524.4,Private Contractors,Other Agencies
Southend-on-Sea Borough Council,http://www.opendatacommunities.org/id/unitary-authority/southend,ED Adults & Communities,Adult Social Care,1145,Harwood House Day Centre,44869,12072536,524.4,Private Contractors,Other Agencies
Southend-on-Sea Borough Council,http://www.opendatacommunities.org/id/unitary-authority/southend,ED Adults & Communities,Adult Social Care,1146,Harwood House Day Centre,44869,12072536,786.6,Private Contractors,Other Agencies
Southend-on-Sea Borough Council,http://www.opendatacommunities.org/id/unitary-authority/southend,ED Children & Public Health,Children And Education Services,3186,Hats Group Ltd T/A Healthcare And Transport Services (Hats),44869,12072536,27050,Private Contractors,Other Agencies
Southend-on-Sea Borough Council,http://www.opendatacommunities.org/id/unitary-authority/southend,ED Adults & Communities,Adult Social Care,1351,Hays Specialist Recruitment Ltd Receipts Recruitment File Only,44869,12072536,1336.44,Agency Staff,Direct Employee Expenses
Southend-on-Sea Borough Council,http://www.opendatacommunities.org/id/unitary-authority/southend,ED Adults & Communities,Adult Social Care,1365,Hays Specialist Recruitment Ltd Receipts Recruitment File Only,44869,12072536,1083.6,Agency Staff,Direct Employee Expenses
Southend-on-Sea Borough Council,http://www.opendatacommunities.org/id/unitary-authority/southend,ED Adults & Communities,Adult Social Care,1350,Hays Specialist Recruitment Ltd Receipts Recruitment File Only,44869,12072536,1083.6,Agency Staff,Direct Employee Expenses
Southend-on-Sea Borough Council,http://www.opendatacommunities.org/id/unitary-authority/southend,ED Adults & Communities,Adult Social Care,1490,Hays Specialist Recruitment Ltd Receipts Recruitment File Only,44869,12072536,735.62,Agency Staff,Direct Employee Expenses
Southend-on-Sea Borough Council,http://www.opendatacommunities.org/id/unitary-authority/southend,ED Adults & Communities,Adult Social Care,1051,Hays Specialist Recruitment Ltd Receipts Recruitment File Only,44869,12072536,1336.44,Agency Staff,Direct Employee Expenses
Southend-on-Sea Borough Council,http://www.opendatacommunities.org/id/unitary-authority/southend,ED Adults & Communities,Adult Social Care,1350,Hays Specialist Recruitment Ltd Receipts Recruitment File Only,44869,12072536,1083.6,Agency Staff,Direct Employee Expenses
Southend-on-Sea Borough Council,http://www.opendatacommunities.org/id/unitary-authority/southend,ED Adults & Communities,Adult Social Care,1025,Hays Specialist Recruitment Ltd Receipts Recruitment File Only,44869,12072536,5130,Agency Staff,Direct Employee Expenses
Southend-on-Sea Borough Council,http://www.opendatacommunities.org/id/unitary-authority/southend,ED Adults & Communities,Adult Social Care,1051,Hays Specialist Recruitment Ltd Receipts Recruitment File Only,44869,12072536,1300.32,Agency Staff,Direct Employee Expenses
Southend-on-Sea Borough Council,http://www.opendatacommunities.org/id/unitary-authority/southend,ED Adults & Communities,Adult Social Care,1461,Hays Specialist Recruitment Ltd Receipts Recruitment File Only,44869,12072536,2605.2,Agency Staff,Direct Employee Expenses
Southend-on-Sea Borough Council,http://www.opendatacommunities.org/id/unitary-authority/southend,ED Adults & Communities,Adult Social Care,1365,Hays Specialist Recruitment Ltd Receipts Recruitment File Only,44869,12072536,1063.58,Agency Staff,Direct Employee Expenses
Southend-on-Sea Borough Council,http://www.opendatacommunities.org/id/unitary-authority/southend,ED Adults & Communities,Adult Social Care,1180,Hays Specialist Recruitment Ltd Receipts Recruitment File Only,44869,12072536,1072.52,Agency Staff,Direct Employee Expenses
Southend-on-Sea Borough Council,http://www.opendatacommunities.org/id/unitary-authority/southend,ED Adults & Communities,Adult Social Care,1231,Hays Specialist Recruitment Ltd Receipts Recruitment File Only,44869,12072536,1321.64,Agency Staff,Direct Employee Expenses
Southend-on-Sea Borough Council,http://www.opendatacommunities.org/id/unitary-authority/southend,ED Adults & Communities,Adult Social Care,1020,Hays Specialist Recruitment Ltd Receipts Recruitment File Only,44869,12072536,2605.2,Agency Staff,Direct Employee Expenses
Southend-on-Sea Borough Council,http://www.opendatacommunities.org/id/unitary-authority/southend,ED Adults & Communities,Adult Social Care,1342,Hays Specialist Recruitment Ltd Receipts Recruitment File Only,44869,12072536,2850,Agency Staff,Direct Employee Expenses
Southend-on-Sea Borough Council,http://www.opendatacommunities.org/id/unitary-authority/southend,ED Adults & Communities,Adult Social Care,1353,Hays Specialist Recruitment Ltd Receipts Recruitment File Only,44869,12072536,507.9,Agency Staff,Direct Employee Expenses
Southend-on-Sea Borough Council,http://www.opendatacommunities.org/id/unitary-authority/southend,ED Adults & Communities,Adult Social Care,1490,Hays Specialist Recruitment Ltd Receipts Recruitment File Only,44869,12072536,735.62,Agency Staff,Direct Employee Expenses
Southend-on-Sea Borough Council,http://www.opendatacommunities.org/id/unitary-authority/southend,ED Adults & Communities,Adult Social Care,1060,Hays Specialist Recruitment Ltd Receipts Recruitment File Only,44869,12072536,772.56,Agency Staff,Direct Employee Expenses
Southend-on-Sea Borough Council,http://www.opendatacommunities.org/id/unitary-authority/southend,ED Adults & Communities,Adult Social Care,1450,Hays Specialist Recruitment Ltd Receipts Recruitment File Only,44869,12072536,1710,Agency Staff,Direct Employee Expenses
Southend-on-Sea Borough Council,http://www.opendatacommunities.org/id/unitary-authority/southend,ED Adults & Communities,Adult Social Care,1450,Hays Specialist Recruitment Ltd Receipts Recruitment File Only,44869,12072536,2280,Agency Staff,Direct Employee Expenses
Southend-on-Sea Borough Council,http://www.opendatacommunities.org/id/unitary-authority/southend,ED Adults & Communities,Adult Social Care,1040,Hays Specialist Recruitment Ltd Receipts Recruitment File Only,44869,12072536,553.75,Agency Staff,Direct Employee Expenses
Southend-on-Sea Borough Council,http://www.opendatacommunities.org/id/unitary-authority/southend,ED Adults & Communities,Cultural And Related Services,4120,Hays Specialist Recruitment Ltd Receipts Recruitment File Only,44869,12072536,689.33,Agency Staff,Direct Employee Expenses
Southend-on-Sea Borough Council,http://www.opendatacommunities.org/id/unitary-authority/southend,ED Adults & Communities,Cultural And Related Services,4120,Hays Specialist Recruitment Ltd Receipts Recruitment File Only,44869,12072536,823.11,Agency Staff,Direct Employee Expenses
Southend-on-Sea Borough Council,http://www.opendatacommunities.org/id/unitary-authority/southend,ED Adults & Communities,Cultural And Related Services,4120,Hays Specialist Recruitment Ltd Receipts Recruitment File Only,44869,12072536,739.48,Agency Staff,Direct Employee Expenses
Southend-on-Sea Borough Council,http://www.opendatacommunities.org/id/unitary-authority/southend,ED Adults & Communities,Cultural And Related Services,4240,Hays Specialist Recruitment Ltd Receipts Recruitment File Only,44869,12072536,553.45,Agency Staff,Direct Employee Expenses
Southend-on-Sea Borough Council,http://www.opendatacommunities.org/id/unitary-authority/southend,ED Adults & Communities,Cultural And Related Services,4240,Hays Specialist Recruitment Ltd Receipts Recruitment File Only,44869,12072536,1106.91,Agency Staff,Direct Employee Expenses
Southend-on-Sea Borough Council,http://www.opendatacommunities.org/id/unitary-authority/southend,ED Adults & Communities,Cultural And Related Services,4240,Hays Specialist Recruitment Ltd Receipts Recruitment File Only,44869,12072536,830.19,Agency Staff,Direct Employee Expenses
Southend-on-Sea Borough Council,http://www.opendatacommunities.org/id/unitary-authority/southend,ED Adults & Communities,Cultural And Related Services,4240,Hays Specialist Recruitment Ltd Receipts Recruitment File Only,44869,12072536,2213.81,Agency Staff,Direct Employee Expenses
Southend-on-Sea Borough Council,http://www.opendatacommunities.org/id/unitary-authority/southend,ED Adults & Communities,Cultural And Related Services,4240,Hays Specialist Recruitment Ltd Receipts Recruitment File Only,44869,12072536,1106.91,Agency Staff,Direct Employee Expenses
Southend-on-Sea Borough Council,http://www.opendatacommunities.org/id/unitary-authority/southend,ED Adults & Communities,Cultural And Related Services,4120,Hays Specialist Recruitment Ltd Receipts Recruitment File Only,44869,12072536,952.64,Agency Staff,Direct Employee Expenses
Southend-on-Sea Borough Council,http://www.opendatacommunities.org/id/unitary-authority/southend,ED Adults & Communities,Cultural And Related Services,4120,Hays Specialist Recruitment Ltd Receipts Recruitment File Only,44869,12072536,624.46,Agency Staff,Direct Employee Expenses
Southend-on-Sea Borough Council,http://www.opendatacommunities.org/id/unitary-authority/southend,ED Adults & Communities,Cultural And Related Services,4120,Hays Specialist Recruitment Ltd Receipts Recruitment File Only,44869,12072536,782.81,Agency Staff,Direct Employee Expenses
Southend-on-Sea Borough Council,http://www.opendatacommunities.org/id/unitary-authority/southend,ED Adults & Communities,Cultural And Related Services,4120,Hays Specialist Recruitment Ltd Receipts Recruitment File Only,44869,12072536,573.15,Agency Staff,Direct Employee Expenses
Southend-on-Sea Borough Council,http://www.opendatacommunities.org/id/unitary-authority/southend,ED Adults & Communities,Housing Services,1011,Hays Specialist Recruitment Ltd Receipts Recruitment File Only,44869,12072536,2316.6,Agency Staff,Direct Employee Expenses
Southend-on-Sea Borough Council,http://www.opendatacommunities.org/id/unitary-authority/southend,ED Children & Public Health,Adult Social Care,1035,Hays Specialist Recruitment Ltd Receipts Recruitment File Only,44869,12072536,1421.75,Agency Staff,Direct Employee Expenses
Southend-on-Sea Borough Council,http://www.opendatacommunities.org/id/unitary-authority/southend,ED Children & Public Health,Adult Social Care,1035,Hays Specialist Recruitment Ltd Receipts Recruitment File Only,44869,12072536,2052,Agency Staff,Direct Employee Expenses
Southend-on-Sea Borough Council,http://www.opendatacommunities.org/id/unitary-authority/southend,ED Children & Public Health,Adult Social Care,1035,Hays Specialist Recruitment Ltd Receipts Recruitment File Only,44869,12072536,704.2,Agency Staff,Direct Employee Expenses
Southend-on-Sea Borough Council,http://www.opendatacommunities.org/id/unitary-authority/southend,ED Children & Public Health,Adult Social Care,1035,Hays Specialist Recruitment Ltd Receipts Recruitment File Only,44869,12072536,968.45,Agency Staff,Direct Employee Expenses
Southend-on-Sea Borough Council,http://www.opendatacommunities.org/id/unitary-authority/southend,ED Children & Public Health,Children And Education Services,3265,Hays Specialist Recruitment Ltd Receipts Recruitment File Only,44869,12072536,629.68,Agency Staff,Direct Employee Expenses
Southend-on-Sea Borough Council,http://www.opendatacommunities.org/id/unitary-authority/southend,ED Children & Public Health,Children And Education Services,3590,Hays Specialist Recruitment Ltd Receipts Recruitment File Only,44869,12072536,1636.14,Agency Staff,Direct Employee Expenses
Southend-on-Sea Borough Council,http://www.opendatacommunities.org/id/unitary-authority/southend,ED Children & Public Health,Children And Education Services,3154,Hays Specialist Recruitment Ltd Receipts Recruitment File Only,44869,12072536,592.55,Agency Staff,Direct Employee Expenses
Southend-on-Sea Borough Council,http://www.opendatacommunities.org/id/unitary-authority/southend,ED Children & Public Health,Children And Education Services,3231,Hays Specialist Recruitment Ltd Receipts Recruitment File Only,44869,12072536,626.43,Agency Staff,Direct Employee Expenses
Southend-on-Sea Borough Council,http://www.opendatacommunities.org/id/unitary-authority/southend,ED Children & Public Health,Children And Education Services,3231,Hays Specialist Recruitment Ltd Receipts Recruitment File Only,44869,12072536,626.43,Agency Staff,Direct Employee Expenses
Southend-on-Sea Borough Council,http://www.opendatacommunities.org/id/unitary-authority/southend,ED Children & Public Health,Children And Education Services,3200,Hays Specialist Recruitment Ltd Receipts Recruitment File Only,44869,12072536,855.2,Agency Staff,Direct Employee Expenses
Southend-on-Sea Borough Council,http://www.opendatacommunities.org/id/unitary-authority/southend,ED Children & Public Health,Children And Education Services,3590,Hays Specialist Recruitment Ltd Receipts Recruitment File Only,44869,12072536,1835.34,Agency Staff,Direct Employee Expenses
Southend-on-Sea Borough Council,http://www.opendatacommunities.org/id/unitary-authority/southend,ED Children & Public Health,Children And Education Services,3220,Hays Specialist Recruitment Ltd Receipts Recruitment File Only,44869,12072536,1034.88,Agency Staff,Direct Employee Expenses
Southend-on-Sea Borough Council,http://www.opendatacommunities.org/id/unitary-authority/southend,ED Children & Public Health,Children And Education Services,3890,Hays Specialist Recruitment Ltd Receipts Recruitment File Only,44869,12072536,617.97,Agency Staff,Direct Employee Expenses
Southend-on-Sea Borough Council,http://www.opendatacommunities.org/id/unitary-authority/southend,ED Children & Public Health,Children And Education Services,3265,Hays Specialist Recruitment Ltd Receipts Recruitment File Only,44869,12072536,1610.08,Agency Staff,Direct Employee Expenses
Southend-on-Sea Borough Council,http://www.opendatacommunities.org/id/unitary-authority/southend,ED Children & Public Health,Children And Education Services,3790,Hays Specialist Recruitment Ltd Receipts Recruitment File Only,44869,12072536,1251.6,Agency Staff,Direct Employee Expenses
Southend-on-Sea Borough Council,http://www.opendatacommunities.org/id/unitary-authority/southend,ED Children & Public Health,Children And Education Services,3265,Hays Specialist Recruitment Ltd Receipts Recruitment File Only,44869,12072536,1802.64,Agency Staff,Direct Employee Expenses
Southend-on-Sea Borough Council,http://www.opendatacommunities.org/id/unitary-authority/southend,ED Children & Public Health,Children And Education Services,3265,Hays Specialist Recruitment Ltd Receipts Recruitment File Only,44869,12072536,1802.64,Agency Staff,Direct Employee Expenses
Southend-on-Sea Borough Council,http://www.opendatacommunities.org/id/unitary-authority/southend,ED Children & Public Health,Children And Education Services,3265,Hays Specialist Recruitment Ltd Receipts Recruitment File Only,44869,12072536,1437.24,Agency Staff,Direct Employee Expenses
Southend-on-Sea Borough Council,http://www.opendatacommunities.org/id/unitary-authority/southend,ED Children & Public Health,Children And Education Services,3890,Hays Specialist Recruitment Ltd Receipts Recruitment File Only,44869,12072536,1448.92,Agency Staff,Direct Employee Expenses
Southend-on-Sea Borough Council,http://www.opendatacommunities.org/id/unitary-authority/southend,ED Children & Public Health,Children And Education Services,3890,Hays Specialist Recruitment Ltd Receipts Recruitment File Only,44869,12072536,1711.27,Agency Staff,Direct Employee Expenses
Southend-on-Sea Borough Council,http://www.opendatacommunities.org/id/unitary-authority/southend,ED Children & Public Health,Children And Education Services,3290,Hays Specialist Recruitment Ltd Receipts Recruitment File Only,44869,12072536,1543.64,Agency Staff,Direct Employee Expenses
Southend-on-Sea Borough Council,http://www.opendatacommunities.org/id/unitary-authority/southend,ED Children & Public Health,Children And Education Services,3590,Hays Specialist Recruitment Ltd Receipts Recruitment File Only,44869,12072536,1453.76,Agency Staff,Direct Employee Expenses
Southend-on-Sea Borough Council,http://www.opendatacommunities.org/id/unitary-authority/southend,ED Children & Public Health,Children And Education Services,3590,Hays Specialist Recruitment Ltd Receipts Recruitment File Only,44869,12072536,1823.36,Agency Staff,Direct Employee Expenses
Southend-on-Sea Borough Council,http://www.opendatacommunities.org/id/unitary-authority/southend,ED Children & Public Health,Children And Education Services,3231,Hays Specialist Recruitment Ltd Receipts Recruitment File Only,44869,12072536,2216.69,Agency Staff,Direct Employee Expenses
Southend-on-Sea Borough Council,http://www.opendatacommunities.org/id/unitary-authority/southend,ED Children & Public Health,Children And Education Services,3790,Hays Specialist Recruitment Ltd Receipts Recruitment File Only,44869,12072536,1568.15,Agency Staff,Direct Employee Expenses
Southend-on-Sea Borough Council,http://www.opendatacommunities.org/id/unitary-authority/southend,ED Children & Public Health,Children And Education Services,3890,Hays Specialist Recruitment Ltd Receipts Recruitment File Only,44869,12072536,617.97,Agency Staff,Direct Employee Expenses
Southend-on-Sea Borough Council,http://www.opendatacommunities.org/id/unitary-authority/southend,ED Children & Public Health,Children And Education Services,3790,Hays Specialist Recruitment Ltd Receipts Recruitment File Only,44869,12072536,685.8,Agency Staff,Direct Employee Expenses
Southend-on-Sea Borough Council,http://www.opendatacommunities.org/id/unitary-authority/southend,ED Children & Public Health,Children And Education Services,3231,Hays Specialist Recruitment Ltd Receipts Recruitment File Only,44869,12072536,3470.85,Agency Staff,Direct Employee Expenses
Southend-on-Sea Borough Council,http://www.opendatacommunities.org/id/unitary-authority/southend,ED Children & Public Health,Children And Education Services,3265,Hays Specialist Recruitment Ltd Receipts Recruitment File Only,44869,12072536,2012.6,Agency Staff,Direct Employee Expenses
Southend-on-Sea Borough Council,http://www.opendatacommunities.org/id/unitary-authority/southend,ED Children & Public Health,Children And Education Services,3390,Hays Specialist Recruitment Ltd Receipts Recruitment File Only,44869,12072536,2406.1,Agency Staff,Direct Employee Expenses
Southend-on-Sea Borough Council,http://www.opendatacommunities.org/id/unitary-authority/southend,ED Children & Public Health,Children And Education Services,3455,Hays Specialist Recruitment Ltd Receipts Recruitment File Only,44869,12072536,1924.88,Agency Staff,Direct Employee Expenses
Southend-on-Sea Borough Council,http://www.opendatacommunities.org/id/unitary-authority/southend,ED Children & Public Health,Children And Education Services,3220,Hays Specialist Recruitment Ltd Receipts Recruitment File Only,44869,12072536,1823.36,Agency Staff,Direct Employee Expenses
Southend-on-Sea Borough Council,http://www.opendatacommunities.org/id/unitary-authority/southend,ED Children & Public Health,Children And Education Services,3890,Hays Specialist Recruitment Ltd Receipts Recruitment File Only,44869,12072536,1561.4,Agency Staff,Direct Employee Expenses
Southend-on-Sea Borough Council,http://www.opendatacommunities.org/id/unitary-authority/southend,ED Children & Public Health,Children And Education Services,3790,Hays Specialist Recruitment Ltd Receipts Recruitment File Only,44869,12072536,1336.44,Agency Staff,Direct Employee Expenses
Southend-on-Sea Borough Council,http://www.opendatacommunities.org/id/unitary-authority/southend,ED Children & Public Health,Children And Education Services,3183,Hays Specialist Recruitment Ltd Receipts Recruitment File Only,44869,12072536,2600.6,Agency Staff,Direct Employee Expenses
Southend-on-Sea Borough Council,http://www.opendatacommunities.org/id/unitary-authority/southend,ED Children & Public Health,Children And Education Services,3890,Hays Specialist Recruitment Ltd Receipts Recruitment File Only,44869,12072536,1691.64,Agency Staff,Direct Employee Expenses
Southend-on-Sea Borough Council,http://www.opendatacommunities.org/id/unitary-authority/southend,ED Finance & Resources,Central Services,2156,Hays Specialist Recruitment Ltd Receipts Recruitment File Only,44869,12072536,1031.64,Agency Staff,Direct Employee Expenses
Southend-on-Sea Borough Council,http://www.opendatacommunities.org/id/unitary-authority/southend,ED Finance & Resources,Central Services,2156,Hays Specialist Recruitment Ltd Receipts Recruitment File Only,44869,12072536,1059.15,Agency Staff,Direct Employee Expenses
Southend-on-Sea Borough Council,http://www.opendatacommunities.org/id/unitary-authority/southend,ED Finance & Resources,Central Services,2156,Hays Specialist Recruitment Ltd Receipts Recruitment File Only,44869,12072536,1059.15,Agency Staff,Direct Employee Expenses
Southend-on-Sea Borough Council,http://www.opendatacommunities.org/id/unitary-authority/southend,ED Finance & Resources,Central Services,7071,Hays Specialist Recruitment Ltd Receipts Recruitment File Only,44869,12072536,2137.6,Agency Staff,Direct Employee Expenses
Southend-on-Sea Borough Council,http://www.opendatacommunities.org/id/unitary-authority/southend,ED Finance & Resources,Central Services,7071,Hays Specialist Recruitment Ltd Receipts Recruitment File Only,44869,12072536,2021.32,Agency Staff,Direct Employee Expenses
Southend-on-Sea Borough Council,http://www.opendatacommunities.org/id/unitary-authority/southend,ED Finance & Resources,Central Services,7070,Hays Specialist Recruitment Ltd Receipts Recruitment File Only,44869,12072536,3887.6,Agency Staff,Direct Employee Expenses
Southend-on-Sea Borough Council,http://www.opendatacommunities.org/id/unitary-authority/southend,ED Finance & Resources,Central Services,7096,Hays Specialist Recruitment Ltd Receipts Recruitment File Only,44869,12072536,707.25,Agency Staff,Direct Employee Expenses
Southend-on-Sea Borough Council,http://www.opendatacommunities.org/id/unitary-authority/southend,ED Finance & Resources,Central Services,2117,Hays Specialist Recruitment Ltd Receipts Recruitment File Only,44869,12072536,565.75,Agency Staff,Direct Employee Expenses
Southend-on-Sea Borough Council,http://www.opendatacommunities.org/id/unitary-authority/southend,ED Finance & Resources,Central Services,2117,Hays Specialist Recruitment Ltd Receipts Recruitment File Only,44869,12072536,860,Agency Staff,Direct Employee Expenses
Southend-on-Sea Borough Council,http://www.opendatacommunities.org/id/unitary-authority/southend,ED Finance & Resources,Central Services,2117,Hays Specialist Recruitment Ltd Receipts Recruitment File Only,44869,12072536,860,Agency Staff,Direct Employee Expenses
Southend-on-Sea Borough Council,http://www.opendatacommunities.org/id/unitary-authority/southend,ED Finance & Resources,Housing Services,6165,Hays Specialist Recruitment Ltd Receipts Recruitment File Only,44869,12072536,592.55,Agency Staff,Direct Employee Expenses
Southend-on-Sea Borough Council,http://www.opendatacommunities.org/id/unitary-authority/southend,ED Finance & Resources,Housing Services,6165,Hays Specialist Recruitment Ltd Receipts Recruitment File Only,44869,12072536,592.55,Agency Staff,Direct Employee Expenses
Southend-on-Sea Borough Council,http://www.opendatacommunities.org/id/unitary-authority/southend,ED Finance & Resources,Housing Services,6165,Hays Specialist Recruitment Ltd Receipts Recruitment File Only,44869,12072536,592.56,Agency Staff,Direct Employee Expenses
Southend-on-Sea Borough Council,http://www.opendatacommunities.org/id/unitary-authority/southend,ED Finance & Resources,Housing Services,7150,Hays Specialist Recruitment Ltd Receipts Recruitment File Only,44869,12072536,2491.8,Agency Staff,Direct Employee Expenses
Southend-on-Sea Borough Council,http://www.opendatacommunities.org/id/unitary-authority/southend,ED Finance & Resources,Housing Services,6165,Hays Specialist Recruitment Ltd Receipts Recruitment File Only,44869,12072536,592.55,Agency Staff,Direct Employee Expenses
Southend-on-Sea Borough Council,http://www.opendatacommunities.org/id/unitary-authority/southend,ED Growth & Housing,Cultural and Related Services,2139,Hays Specialist Recruitment Ltd Receipts Recruitment File Only,44869,12072536,1010.96,Agency Staff,Direct Employee Expenses
Southend-on-Sea Borough Council,http://www.opendatacommunities.org/id/unitary-authority/southend,ED Growth & Housing,Cultural and Related Services,2139,Hays Specialist Recruitment Ltd Receipts Recruitment File Only,44869,12072536,1747.71,Agency Staff,Direct Employee Expenses
Southend-on-Sea Borough Council,http://www.opendatacommunities.org/id/unitary-authority/southend,ED Growth & Housing,Cultural and Related Services,2139,Hays Specialist Recruitment Ltd Receipts Recruitment File Only,44869,12072536,1010.96,Agency Staff,Direct Employee Expenses
Southend-on-Sea Borough Council,http://www.opendatacommunities.org/id/unitary-authority/southend,ED Growth & Housing,Housing Services,6501,Hays Specialist Recruitment Ltd Receipts Recruitment File Only,44869,12072536,2394,Agency Staff,Direct Employee Expenses
Southend-on-Sea Borough Council,http://www.opendatacommunities.org/id/unitary-authority/southend,ED Growth & Housing,Planning Services,5506,Hays Specialist Recruitment Ltd Receipts Recruitment File Only,44869,12072536,598.8,Agency Staff,Direct Employee Expenses
Southend-on-Sea Borough Council,http://www.opendatacommunities.org/id/unitary-authority/southend,ED Growth & Housing,Planning Services,5530,Hays Specialist Recruitment Ltd Receipts Recruitment File Only,44869,12072536,1063.51,Agency Staff,Direct Employee Expenses
Southend-on-Sea Borough Council,http://www.opendatacommunities.org/id/unitary-authority/southend,ED Growth & Housing,Planning Services,5640,Hays Specialist Recruitment Ltd Receipts Recruitment File Only,44869,12072536,801.5,Agency Staff,Direct Employee Expenses
Southend-on-Sea Borough Council,http://www.opendatacommunities.org/id/unitary-authority/southend,ED Growth & Housing,Planning Services,5640,Hays Specialist Recruitment Ltd Receipts Recruitment File Only,44869,12072536,3420,Agency Staff,Direct Employee Expenses
Southend-on-Sea Borough Council,http://www.opendatacommunities.org/id/unitary-authority/southend,ED Growth & Housing,Planning Services,5535,Hays Specialist Recruitment Ltd Receipts Recruitment File Only,44869,12072536,746.44,Agency Staff,Direct Employee Expenses
Southend-on-Sea Borough Council,http://www.opendatacommunities.org/id/unitary-authority/southend,ED Growth & Housing,Planning Services,5535,Hays Specialist Recruitment Ltd Receipts Recruitment File Only,44869,12072536,1433.16,Agency Staff,Direct Employee Expenses
Southend-on-Sea Borough Council,http://www.opendatacommunities.org/id/unitary-authority/southend,ED Growth & Housing,Central Services,2137,Hays Specialist Recruitment Ltd Receipts Recruitment File Only,44869,12072536,588.82,Agency Staff,Direct Employee Expenses
Southend-on-Sea Borough Council,http://www.opendatacommunities.org/id/unitary-authority/southend,ED Growth & Housing,Central Services,2137,Hays Specialist Recruitment Ltd Receipts Recruitment File Only,44869,12072536,641.2,Agency Staff,Direct Employee Expenses
Southend-on-Sea Borough Council,http://www.opendatacommunities.org/id/unitary-authority/southend,ED Growth & Housing,Central Services,2137,Hays Specialist Recruitment Ltd Receipts Recruitment File Only,44869,12072536,791.06,Agency Staff,Direct Employee Expenses
Southend-on-Sea Borough Council,http://www.opendatacommunities.org/id/unitary-authority/southend,ED Neighbourhoods & Environment,Children And Education Services,4522,Hays Specialist Recruitment Ltd Receipts Recruitment File Only,44869,12072536,3420,Agency Staff,Direct Employee Expenses
Southend-on-Sea Borough Council,http://www.opendatacommunities.org/id/unitary-authority/southend,ED Neighbourhoods & Environment,Cultural and Related Services,7505,Hays Specialist Recruitment Ltd Receipts Recruitment File Only,44869,12072536,565.75,Agency Staff,Direct Employee Expenses
Southend-on-Sea Borough Council,http://www.opendatacommunities.org/id/unitary-authority/southend,ED Neighbourhoods & Environment,Cultural and Related Services,7505,Hays Specialist Recruitment Ltd Receipts Recruitment File Only,44869,12072536,565.75,Agency Staff,Direct Employee Expenses
Southend-on-Sea Borough Council,http://www.opendatacommunities.org/id/unitary-authority/southend,ED Neighbourhoods & Environment,Cultural and Related Services,7510,Hays Specialist Recruitment Ltd Receipts Recruitment File Only,44869,12072536,551.3,Agency Staff,Direct Employee Expenses
Southend-on-Sea Borough Council,http://www.opendatacommunities.org/id/unitary-authority/southend,ED Neighbourhoods & Environment,Cultural and Related Services,7505,Hays Specialist Recruitment Ltd Receipts Recruitment File Only,44869,12072536,711.4,Agency Staff,Direct Employee Expenses
Southend-on-Sea Borough Council,http://www.opendatacommunities.org/id/unitary-authority/southend,ED Neighbourhoods & Environment,Cultural and Related Services,7505,Hays Specialist Recruitment Ltd Receipts Recruitment File Only,44869,12072536,711.4,Agency Staff,Direct Employee Expenses
Southend-on-Sea Borough Council,http://www.opendatacommunities.org/id/unitary-authority/southend,ED Neighbourhoods & Environment,Cultural and Related Services,7505,Hays Specialist Recruitment Ltd Receipts Recruitment File Only,44869,12072536,565.75,Agency Staff,Direct Employee Expenses
Southend-on-Sea Borough Council,http://www.opendatacommunities.org/id/unitary-authority/southend,ED Neighbourhoods & Environment,Cultural and Related Services,7505,Hays Specialist Recruitment Ltd Receipts Recruitment File Only,44869,12072536,565.75,Agency Staff,Direct Employee Expenses
Southend-on-Sea Borough Council,http://www.opendatacommunities.org/id/unitary-authority/southend,ED Neighbourhoods & Environment,Cultural and Related Services,7505,Hays Specialist Recruitment Ltd Receipts Recruitment File Only,44869,12072536,565.75,Agency Staff,Direct Employee Expenses
Southend-on-Sea Borough Council,http://www.opendatacommunities.org/id/unitary-authority/southend,ED Neighbourhoods & Environment,Cultural and Related Services,7505,Hays Specialist Recruitment Ltd Receipts Recruitment File Only,44869,12072536,565.75,Agency Staff,Direct Employee Expenses
Southend-on-Sea Borough Council,http://www.opendatacommunities.org/id/unitary-authority/southend,ED Neighbourhoods & Environment,Cultural and Related Services,7505,Hays Specialist Recruitment Ltd Receipts Recruitment File Only,44869,12072536,565.75,Agency Staff,Direct Employee Expenses
Southend-on-Sea Borough Council,http://www.opendatacommunities.org/id/unitary-authority/southend,ED Neighbourhoods & Environment,Cultural and Related Services,7505,Hays Specialist Recruitment Ltd Receipts Recruitment File Only,44869,12072536,565.75,Agency Staff,Direct Employee Expenses
Southend-on-Sea Borough Council,http://www.opendatacommunities.org/id/unitary-authority/southend,ED Neighbourhoods & Environment,Cultural and Related Services,7505,Hays Specialist Recruitment Ltd Receipts Recruitment File Only,44869,12072536,711.4,Agency Staff,Direct Employee Expenses
Southend-on-Sea Borough Council,http://www.opendatacommunities.org/id/unitary-authority/southend,ED Neighbourhoods & Environment,Cultural And Related Services,4201,Hays Specialist Recruitment Ltd Receipts Recruitment File Only,44869,12072536,3182.35,Agency Staff,Direct Employee Expenses
Southend-on-Sea Borough Council,http://www.opendatacommunities.org/id/unitary-authority/southend,ED Neighbourhoods & Environment,Environmental And Regulatory Services,4526,Hays Specialist Recruitment Ltd Receipts Recruitment File Only,44869,12072536,1082.12,Agency Staff,Direct Employee Expenses
Southend-on-Sea Borough Council,http://www.opendatacommunities.org/id/unitary-authority/southend,ED Neighbourhoods & Environment,Environmental And Regulatory Services,4506,Hays Specialist Recruitment Ltd Receipts Recruitment File Only,44869,12072536,565.75,Agency Staff,Direct Employee Expenses
Southend-on-Sea Borough Council,http://www.opendatacommunities.org/id/unitary-authority/southend,ED Neighbourhoods & Environment,Environmental And Regulatory Services,4526,Hays Specialist Recruitment Ltd Receipts Recruitment File Only,44869,12072536,570.05,Agency Staff,Direct Employee Expenses
Southend-on-Sea Borough Council,http://www.opendatacommunities.org/id/unitary-authority/southend,ED Neighbourhoods & Environment,Environmental And Regulatory Services,7031,Hays Specialist Recruitment Ltd Receipts Recruitment File Only,44869,12072536,1425,Agency Staff,Direct Employee Expenses
Southend-on-Sea Borough Council,http://www.opendatacommunities.org/id/unitary-authority/southend,ED Neighbourhoods & Environment,Environmental And Regulatory Services,4535,Hays Specialist Recruitment Ltd Receipts Recruitment File Only,44869,12072536,582.57,Agency Staff,Direct Employee Expenses
Southend-on-Sea Borough Council,http://www.opendatacommunities.org/id/unitary-authority/southend,ED Neighbourhoods & Environment,Cultural And Related Services,7540,Hays Specialist Recruitment Ltd Receipts Recruitment File Only,44869,12072536,576.11,Agency Staff,Direct Employee Expenses
Southend-on-Sea Borough Council,http://www.opendatacommunities.org/id/unitary-authority/southend,ED Neighbourhoods & Environment,Highways And Transport Services,5180,Hays Specialist Recruitment Ltd Receipts Recruitment File Only,44869,12072536,683.55,Agency Staff,Direct Employee Expenses
Southend-on-Sea Borough Council,http://www.opendatacommunities.org/id/unitary-authority/southend,ED Neighbourhoods & Environment,Highways And Transport Services,5055,Hays Specialist Recruitment Ltd Receipts Recruitment File Only,44869,12072536,6248.65,Agency Staff,Direct Employee Expenses
Southend-on-Sea Borough Council,http://www.opendatacommunities.org/id/unitary-authority/southend,ED Neighbourhoods & Environment,Highways And Transport Services,5180,Hays Specialist Recruitment Ltd Receipts Recruitment File Only,44869,12072536,1701.35,Agency Staff,Direct Employee Expenses
Southend-on-Sea Borough Council,http://www.opendatacommunities.org/id/unitary-authority/southend,ED Neighbourhoods & Environment,Highways And Transport Services,5180,Hays Specialist Recruitment Ltd Receipts Recruitment File Only,44869,12072536,757.28,Agency Staff,Direct Employee Expenses
Southend-on-Sea Borough Council,http://www.opendatacommunities.org/id/unitary-authority/southend,ED Neighbourhoods & Environment,Highways And Transport Services,5180,Hays Specialist Recruitment Ltd Receipts Recruitment File Only,44869,12072536,768.25,Agency Staff,Direct Employee Expenses
Southend-on-Sea Borough Council,http://www.opendatacommunities.org/id/unitary-authority/southend,ED Neighbourhoods & Environment,Highways And Transport Services,5015,Hays Specialist Recruitment Ltd Receipts Recruitment File Only,44869,12072536,1691.03,Agency Staff,Direct Employee Expenses
Southend-on-Sea Borough Council,http://www.opendatacommunities.org/id/unitary-authority/southend,ED Neighbourhoods & Environment,Highways And Transport Services,5021,Hays Specialist Recruitment Ltd Receipts Recruitment File Only,44869,12072536,1492.88,Agency Staff,Direct Employee Expenses
Southend-on-Sea Borough Council,http://www.opendatacommunities.org/id/unitary-authority/southend,ED Neighbourhoods & Environment,Highways And Transport Services,5180,Hays Specialist Recruitment Ltd Receipts Recruitment File Only,44869,12072536,548.75,Agency Staff,Direct Employee Expenses
Southend-on-Sea Borough Council,http://www.opendatacommunities.org/id/unitary-authority/southend,ED Neighbourhoods & Environment,Highways And Transport Services,5180,Hays Specialist Recruitment Ltd Receipts Recruitment File Only,44869,12072536,2451.85,Agency Staff,Direct Employee Expenses
Southend-on-Sea Borough Council,http://www.opendatacommunities.org/id/unitary-authority/southend,"ED Strategy, Change & Governance",Central Services,7105,Hays Specialist Recruitment Ltd Receipts Recruitment File Only,44869,12072536,1581.6,Agency Staff,Direct Employee Expenses
Southend-on-Sea Borough Council,http://www.opendatacommunities.org/id/unitary-authority/southend,"ED Strategy, Change & Governance",Central Services,7130,Hays Specialist Recruitment Ltd Receipts Recruitment File Only,44869,12072536,1690.52,Agency Staff,Direct Employee Expenses
Southend-on-Sea Borough Council,http://www.opendatacommunities.org/id/unitary-authority/southend,"ED Strategy, Change & Governance",Central Services,7105,Hays Specialist Recruitment Ltd Receipts Recruitment File Only,44869,12072536,746.43,Agency Staff,Direct Employee Expenses
Southend-on-Sea Borough Council,http://www.opendatacommunities.org/id/unitary-authority/southend,"ED Strategy, Change & Governance",Central Services,7105,Hays Specialist Recruitment Ltd Receipts Recruitment File Only,44869,12072536,4845,Agency Staff,Direct Employee Expenses
Southend-on-Sea Borough Council,http://www.opendatacommunities.org/id/unitary-authority/southend,"ED Strategy, Change & Governance",Central Services,7139,Hays Specialist Recruitment Ltd Receipts Recruitment File Only,44869,12072536,2315.35,Agency Staff,Direct Employee Expenses
Southend-on-Sea Borough Council,http://www.opendatacommunities.org/id/unitary-authority/southend,"ED Strategy, Change & Governance",Central Services,7137,Hays Specialist Recruitment Ltd Receipts Recruitment File Only,44869,12072536,1331.36,Agency Staff,Direct Employee Expenses
Southend-on-Sea Borough Council,http://www.opendatacommunities.org/id/unitary-authority/southend,"ED Strategy, Change & Governance",Central Services,7137,Hays Specialist Recruitment Ltd Receipts Recruitment File Only,44869,12072536,2431.04,Agency Staff,Direct Employee Expenses
Southend-on-Sea Borough Council,http://www.opendatacommunities.org/id/unitary-authority/southend,ED Children & Public Health,Children And Education Services,3290,Health Assured Ltd,44869,12072536,1250,Private Contractors,Other Agencies
Southend-on-Sea Borough Council,http://www.opendatacommunities.org/id/unitary-authority/southend,ED Children & Public Health,Children And Education Services,3010,Herts For Learning Limited,44869,12072536,4485,3rd Party training,Services
Southend-on-Sea Borough Council,http://www.opendatacommunities.org/id/unitary-authority/southend,ED Adults & Communities,Adult Social Care,1105,Homecare Professionals (Essex) Ltd,44869,12072536,921.5,Private Contractors,Other Agencies
Southend-on-Sea Borough Council,http://www.opendatacommunities.org/id/unitary-authority/southend,ED Children & Public Health,Children And Education Services,3250,Indigo Children'S Care Homes Ltd,44869,12072536,20000,Private Contractors,Other Agencies
Southend-on-Sea Borough Council,http://www.opendatacommunities.org/id/unitary-authority/southend,"ED Strategy, Change & Governance",Adult Social Care,3201,In-Professional Development Limited,44869,12072536,2100,Commissioned Training,Services
Southend-on-Sea Borough Council,http://www.opendatacommunities.org/id/unitary-authority/southend,ED Growth & Housing,Housing Services,6011,Instakil Pest Control Services,44869,12072536,1080,Pest Control Environmental,"Repairs, alterations and maintenance of buildings"
Southend-on-Sea Borough Council,http://www.opendatacommunities.org/id/unitary-authority/southend,ED Adults & Communities,Adult Social Care,1294,J M Carehomes Limited,44869,12072536,4288.8,Private Contractors,Other Agencies
Southend-on-Sea Borough Council,http://www.opendatacommunities.org/id/unitary-authority/southend,ED Growth & Housing,Planning Services,5642,Jmw Media Ltd,44869,12072536,2500,Scientific And Analytical Services,Services
Southend-on-Sea Borough Council,http://www.opendatacommunities.org/id/unitary-authority/southend,ED Children & Public Health,Children And Education Services,3250,Kent Homefinding And Fostering Ltd,44869,12072536,1491.75,Private Contractors,Other Agencies
Southend-on-Sea Borough Council,http://www.opendatacommunities.org/id/unitary-authority/southend,ED Children & Public Health,Children And Education Services,3250,Kent Homefinding And Fostering Ltd,44869,12072536,1446.5,Private Contractors,Other Agencies
Southend-on-Sea Borough Council,http://www.opendatacommunities.org/id/unitary-authority/southend,ED Children & Public Health,Children And Education Services,3250,Kent Homefinding And Fostering Ltd,44869,12072536,1408.15,Private Contractors,Other Agencies
Southend-on-Sea Borough Council,http://www.opendatacommunities.org/id/unitary-authority/southend,ED Children & Public Health,Children And Education Services,3250,Kites Childrens Services Ltd,44869,12072536,2832,Private Contractors,Other Agencies
Southend-on-Sea Borough Council,http://www.opendatacommunities.org/id/unitary-authority/southend,ED Children & Public Health,Children And Education Services,3250,Kites Childrens Services Ltd,44869,12072536,21084,Private Contractors,Other Agencies
Southend-on-Sea Borough Council,http://www.opendatacommunities.org/id/unitary-authority/southend,ED Children & Public Health,Children And Education Services,3250,Kites Childrens Services Ltd,44869,12072536,-2484.9,Private Contractors,Other Agencies
Southend-on-Sea Borough Council,http://www.opendatacommunities.org/id/unitary-authority/southend,ED Finance & Resources,Central Services,8600,Lookers Ford Sheffield,44869,12072536,25138.08,Finance Leasing Charges,Communications And Computing
Southend-on-Sea Borough Council,http://www.opendatacommunities.org/id/unitary-authority/southend,ED Finance & Resources,Central Services,8600,Lookers Ford Sheffield,44869,12072536,25138.08,Finance Leasing Charges,Communications And Computing
Southend-on-Sea Borough Council,http://www.opendatacommunities.org/id/unitary-authority/southend,ED Finance & Resources,Central Services,8600,Lookers Ford Sheffield,44869,12072536,25138.08,Finance Leasing Charges,Communications And Computing
Southend-on-Sea Borough Council,http://www.opendatacommunities.org/id/unitary-authority/southend,ED Finance & Resources,Central Services,8600,Lookers Ford Sheffield,44869,12072536,25138.08,Finance Leasing Charges,Communications And Computing
Southend-on-Sea Borough Council,http://www.opendatacommunities.org/id/unitary-authority/southend,ED Adults & Communities,Adult Social Care,1105,Miss Tarisai Muswaburi T/A Ptsmart Care,44869,12072536,2736,Private Contractors,Other Agencies
Southend-on-Sea Borough Council,http://www.opendatacommunities.org/id/unitary-authority/southend,ED Adults & Communities,Adult Social Care,1105,Miss Tarisai Muswaburi T/A Ptsmart Care,44869,12072536,2432,Private Contractors,Other Agencies
Southend-on-Sea Borough Council,http://www.opendatacommunities.org/id/unitary-authority/southend,ED Adults & Communities,Adult Social Care,1105,Miss Tarisai Muswaburi T/A Ptsmart Care,44869,12072536,2128,Private Contractors,Other Agencies
Southend-on-Sea Borough Council,http://www.opendatacommunities.org/id/unitary-authority/southend,ED Adults & Communities,Adult Social Care,1105,Miss Tarisai Muswaburi T/A Ptsmart Care,44869,12072536,3505.5,Private Contractors,Other Agencies
Southend-on-Sea Borough Council,http://www.opendatacommunities.org/id/unitary-authority/southend,ED Adults & Communities,Adult Social Care,1105,Miss Tarisai Muswaburi T/A Ptsmart Care,44869,12072536,2736,Private Contractors,Other Agencies
Southend-on-Sea Borough Council,http://www.opendatacommunities.org/id/unitary-authority/southend,ED Adults & Communities,Adult Social Care,9010,Mobility Solutions (South) Ltd,44869,12072536,4833,Grants Paid,Grants Paid
Southend-on-Sea Borough Council,http://www.opendatacommunities.org/id/unitary-authority/southend,ED Growth & Housing,Housing Services,9005,Mobility Solutions (South) Ltd,44869,12072536,4863,Contractors General,Contractors General
Southend-on-Sea Borough Council,http://www.opendatacommunities.org/id/unitary-authority/southend,ED Children & Public Health,Children And Education Services,3250,Mosaic Foster Care Ltd,44869,12072536,6400,Private Contractors,Other Agencies
Southend-on-Sea Borough Council,http://www.opendatacommunities.org/id/unitary-authority/southend,ED Growth & Housing,Housing Services,6010,Mr & Mrs G Cetnik T/A Pavilion Hotel,44869,12072536,658,Accommodation Costs,Expenses
Southend-on-Sea Borough Council,http://www.opendatacommunities.org/id/unitary-authority/southend,ED Growth & Housing,Housing Services,6011,Mr & Mrs G Cetnik T/A Pavilion Hotel,44869,12072536,3103,Accommodation Costs,Expenses
Southend-on-Sea Borough Council,http://www.opendatacommunities.org/id/unitary-authority/southend,ED Growth & Housing,Housing Services,6010,Mr & Mrs G Cetnik T/A Pavilion Hotel,44869,12072536,658,Accommodation Costs,Expenses
Southend-on-Sea Borough Council,http://www.opendatacommunities.org/id/unitary-authority/southend,ED Growth & Housing,Housing Services,6011,Mr & Mrs G Cetnik T/A Pavilion Hotel,44869,12072536,2772,Accommodation Costs,Expenses
Southend-on-Sea Borough Council,http://www.opendatacommunities.org/id/unitary-authority/southend,ED Growth & Housing,Housing Services,6011,Mrs D D Grattan T/A Elizabeth Guest House,44869,12072536,1540,Accommodation Costs,Expenses
Southend-on-Sea Borough Council,http://www.opendatacommunities.org/id/unitary-authority/southend,ED Growth & Housing,Housing Services,6011,Mrs D D Grattan T/A Elizabeth Guest House,44869,12072536,1690,Accommodation Costs,Expenses
Southend-on-Sea Borough Council,http://www.opendatacommunities.org/id/unitary-authority/southend,ED Growth & Housing,Planning Services,5550,Nathaniel Lichfield & Partners Limited,44869,12072536,7000,Consultancy Services,Services
Southend-on-Sea Borough Council,http://www.opendatacommunities.org/id/unitary-authority/southend,ED Children & Public Health,Children And Education Services,3250,New Forest Care Ltd,44869,12072536,22080,Private Contractors,Other Agencies
Southend-on-Sea Borough Council,http://www.opendatacommunities.org/id/unitary-authority/southend,"ED Strategy, Change & Governance",Central Services,7130,Ntt United Kingdom Limited,44869,12072536,6997.44,IT Contracts,Communications And Computing
Southend-on-Sea Borough Council,http://www.opendatacommunities.org/id/unitary-authority/southend,ED Adults & Communities,Adult Social Care,1325,Nwg Business Limited,44869,12072536,981.49,Water Services,Water Services
Southend-on-Sea Borough Council,http://www.opendatacommunities.org/id/unitary-authority/southend,ED Adults & Communities,Adult Social Care,1209,Nwg Business Limited,44869,12072536,2559.61,Water Services,Water Services
Southend-on-Sea Borough Council,http://www.opendatacommunities.org/id/unitary-authority/southend,ED Adults & Communities,Adult Social Care,1209,Nwg Business Limited,44869,12072536,553.28,Water Services,Water Services
Southend-on-Sea Borough Council,http://www.opendatacommunities.org/id/unitary-authority/southend,ED Adults & Communities,Cultural And Related Services,4115,Nwg Business Limited,44869,12072536,35716.85,Water Services,Water Services
Southend-on-Sea Borough Council,http://www.opendatacommunities.org/id/unitary-authority/southend,ED Adults & Communities,Cultural And Related Services,4025,Nwg Business Limited,44869,12072536,630.36,Water Services,Water Services
Southend-on-Sea Borough Council,http://www.opendatacommunities.org/id/unitary-authority/southend,ED Adults & Communities,Cultural And Related Services,4045,Nwg Business Limited,44869,12072536,3314.33,Water Services,Water Services
Southend-on-Sea Borough Council,http://www.opendatacommunities.org/id/unitary-authority/southend,ED Adults & Communities,Cultural And Related Services,4115,Nwg Business Limited,44869,12072536,5525.93,Water Services,Water Services
Southend-on-Sea Borough Council,http://www.opendatacommunities.org/id/unitary-authority/southend,ED Adults & Communities,Cultural And Related Services,4140,Nwg Business Limited,44869,12072536,1963.58,Water Services,Water Services
Southend-on-Sea Borough Council,http://www.opendatacommunities.org/id/unitary-authority/southend,ED Adults & Communities,Cultural And Related Services,4115,Nwg Business Limited,44869,12072536,4085.45,Water Services,Water Services
Southend-on-Sea Borough Council,http://www.opendatacommunities.org/id/unitary-authority/southend,ED Adults & Communities,Cultural And Related Services,4115,Nwg Business Limited,44869,12072536,3936.66,Water Services,Water Services
Southend-on-Sea Borough Council,http://www.opendatacommunities.org/id/unitary-authority/southend,ED Adults & Communities,Cultural And Related Services,4115,Nwg Business Limited,44869,12072536,3960.58,Water Services,Water Services
Southend-on-Sea Borough Council,http://www.opendatacommunities.org/id/unitary-authority/southend,ED Children & Public Health,Children And Education Services,3390,Nwg Business Limited,44869,12072536,772.67,Water Services,Water Services
Southend-on-Sea Borough Council,http://www.opendatacommunities.org/id/unitary-authority/southend,ED Children & Public Health,Children And Education Services,3471,Nwg Business Limited,44869,12072536,753.76,Water Services,Water Services
Southend-on-Sea Borough Council,http://www.opendatacommunities.org/id/unitary-authority/southend,ED Finance & Resources,Central Services,7120,Nwg Business Limited,44869,12072536,3568.3,Water Services,Water Services
Southend-on-Sea Borough Council,http://www.opendatacommunities.org/id/unitary-authority/southend,ED Finance & Resources,Central Services,5605,Nwg Business Limited,44869,12072536,764.92,Water Services,Water Services
Southend-on-Sea Borough Council,http://www.opendatacommunities.org/id/unitary-authority/southend,ED Neighbourhoods & Environment,Cultural And Related Services,4200,Nwg Business Limited,44869,12072536,20053.13,Water Services,Water Services
Southend-on-Sea Borough Council,http://www.opendatacommunities.org/id/unitary-authority/southend,ED Neighbourhoods & Environment,Cultural And Related Services,4200,Nwg Business Limited,44869,12072536,1137.82,Water Services,Water Services
Southend-on-Sea Borough Council,http://www.opendatacommunities.org/id/unitary-authority/southend,ED Neighbourhoods & Environment,Cultural and Related Services,7515,Nwg Business Limited,44869,12072536,1018.64,Water Services,Water Services
Southend-on-Sea Borough Council,http://www.opendatacommunities.org/id/unitary-authority/southend,ED Neighbourhoods & Environment,Cultural And Related Services,4200,Nwg Business Limited,44869,12072536,-4217.44,Water Services,Water Services
Southend-on-Sea Borough Council,http://www.opendatacommunities.org/id/unitary-authority/southend,ED Neighbourhoods & Environment,Environmental And Regulatory Services,4605,Nwg Business Limited,44869,12072536,-80570.86,Water Services,Water Services
Southend-on-Sea Borough Council,http://www.opendatacommunities.org/id/unitary-authority/southend,ED Neighbourhoods & Environment,Environmental And Regulatory Services,4605,Nwg Business Limited,44869,12072536,3074.33,Water Services,Water Services
Southend-on-Sea Borough Council,http://www.opendatacommunities.org/id/unitary-authority/southend,ED Neighbourhoods & Environment,Environmental And Regulatory Services,4505,Nwg Business Limited,44869,12072536,836.31,Water Services,Water Services
Southend-on-Sea Borough Council,http://www.opendatacommunities.org/id/unitary-authority/southend,ED Neighbourhoods & Environment,Environmental And Regulatory Services,4506,Nwg Business Limited,44869,12072536,18512.15,Water Services,Water Services
Southend-on-Sea Borough Council,http://www.opendatacommunities.org/id/unitary-authority/southend,ED Neighbourhoods & Environment,Environmental And Regulatory Services,4605,Nwg Business Limited,44869,12072536,12693.31,Water Services,Water Services
Southend-on-Sea Borough Council,http://www.opendatacommunities.org/id/unitary-authority/southend,ED Neighbourhoods & Environment,Highways And Transport Services,5035,Nwg Business Limited,44869,12072536,712.77,Water Services,Water Services
Southend-on-Sea Borough Council,http://www.opendatacommunities.org/id/unitary-authority/southend,ED Neighbourhoods & Environment,Highways And Transport Services,5035,Nwg Business Limited,44869,12072536,603.61,Water Services,Water Services
Southend-on-Sea Borough Council,http://www.opendatacommunities.org/id/unitary-authority/southend,ED Neighbourhoods & Environment,Highways And Transport Services,5035,Nwg Business Limited,44869,12072536,603.39,Water Services,Water Services
Southend-on-Sea Borough Council,http://www.opendatacommunities.org/id/unitary-authority/southend,ED Neighbourhoods & Environment,Highways And Transport Services,5035,Nwg Business Limited,44869,12072536,626.92,Water Services,Water Services
Southend-on-Sea Borough Council,http://www.opendatacommunities.org/id/unitary-authority/southend,"ED Strategy, Change & Governance",Central Services,7145,Nwg Business Limited,44869,12072536,6086.28,Water Services,Water Services
Southend-on-Sea Borough Council,http://www.opendatacommunities.org/id/unitary-authority/southend,ED Neighbourhoods & Environment,Highways And Transport Services,5075,Peoplescout Ltd,44869,12072536,600.48,Non Staff Advertising,Services
Southend-on-Sea Borough Council,http://www.opendatacommunities.org/id/unitary-authority/southend,"ED Strategy, Change & Governance",Central Services,7130,Probrand Limited,44869,12072536,4092,IT Hardware,Communications And Computing
Southend-on-Sea Borough Council,http://www.opendatacommunities.org/id/unitary-authority/southend,ED Children & Public Health,Children And Education Services,3010,Professional Association For Childcare And Early Years,44869,12072536,4689.25,Grants,Grants And Subscriptions
Southend-on-Sea Borough Council,http://www.opendatacommunities.org/id/unitary-authority/southend,ED Children & Public Health,Children And Education Services,3010,Professional Association For Childcare And Early Years,44869,12072536,23000,Grants,Grants And Subscriptions
Southend-on-Sea Borough Council,http://www.opendatacommunities.org/id/unitary-authority/southend,ED Children & Public Health,Children And Education Services,3010,Professional Association For Childcare And Early Years,44869,12072536,2475.87,Grants,Grants And Subscriptions
Southend-on-Sea Borough Council,http://www.opendatacommunities.org/id/unitary-authority/southend,ED Children & Public Health,Children And Education Services,3385,Queensway House,44869,12072536,3913.2,Conveyance of Clients,Contract Hire And Operating Leases
Southend-on-Sea Borough Council,http://www.opendatacommunities.org/id/unitary-authority/southend,ED Children & Public Health,Children And Education Services,3200,REDACTED PERSONAL DATA,44869,12072536,500,Private Contractors,Other Agencies
Southend-on-Sea Borough Council,http://www.opendatacommunities.org/id/unitary-authority/southend,ED Children & Public Health,Children And Education Services,3290,REDACTED PERSONAL DATA,44869,12072536,1500,Private Contractors,Other Agencies
Southend-on-Sea Borough Council,http://www.opendatacommunities.org/id/unitary-authority/southend,ED Children & Public Health,Children And Education Services,3200,REDACTED PERSONAL DATA,44869,12072536,500,Private Contractors,Other Agencies
Southend-on-Sea Borough Council,http://www.opendatacommunities.org/id/unitary-authority/southend,ED Growth & Housing,Housing Services,6010,Regis Group T/A Lifespace,44869,12072536,1410,Accomodation Payment,Services
Southend-on-Sea Borough Council,http://www.opendatacommunities.org/id/unitary-authority/southend,ED Finance & Resources,Central Services,7111,Ricoh Uk Limited,44869,12072536,8033.51,Printing,Printing Stationery And General Office Expenses
Southend-on-Sea Borough Council,http://www.opendatacommunities.org/id/unitary-authority/southend,ED Finance & Resources,Central Services,8607,Ricoh Uk Limited,44869,12072536,33702.71,Photocopier Operating Lease,Printing Stationery And General Office Expenses
Southend-on-Sea Borough Council,http://www.opendatacommunities.org/id/unitary-authority/southend,ED Finance & Resources,Central Services,8607,Ricoh Uk Limited,44869,12072536,-33702.71,Photocopier Operating Lease,Printing Stationery And General Office Expenses
Southend-on-Sea Borough Council,http://www.opendatacommunities.org/id/unitary-authority/southend,ED Adults & Communities,Adult Social Care,1105,Royale Carers Limited,44869,12072536,1453.5,Private Contractors,Other Agencies
Southend-on-Sea Borough Council,http://www.opendatacommunities.org/id/unitary-authority/southend,ED Adults & Communities,Adult Social Care,1105,Seven Day Care (Essex) Ltd T/A Surecare Southend,44869,12072536,574.75,Private Contractors,Other Agencies
Southend-on-Sea Borough Council,http://www.opendatacommunities.org/id/unitary-authority/southend,ED Children & Public Health,Children And Education Services,3250,Shalamar Children Limited,44869,12072536,20929.42,Private Contractors,Other Agencies
Southend-on-Sea Borough Council,http://www.opendatacommunities.org/id/unitary-authority/southend,ED Children & Public Health,Public Health,7645,Social Engine Ltd,44869,12072536,5000,Scientific And Analytical Services,Services
Southend-on-Sea Borough Council,http://www.opendatacommunities.org/id/unitary-authority/southend,ED Growth & Housing,Planning Services,5641,Specialist Trade Courses Limited,44869,12072536,1960.2,3rd Party training,Services
Southend-on-Sea Borough Council,http://www.opendatacommunities.org/id/unitary-authority/southend,ED Children & Public Health,Children And Education Services,3250,St Christopher'S Fellowship,44869,12072536,3920,Private Contractors,Other Agencies
Southend-on-Sea Borough Council,http://www.opendatacommunities.org/id/unitary-authority/southend,ED Children & Public Health,Children And Education Services,3250,St Christopher'S Fellowship,44869,12072536,3799.88,Private Contractors,Other Agencies
Southend-on-Sea Borough Council,http://www.opendatacommunities.org/id/unitary-authority/southend,ED Adults & Communities,Cultural And Related Services,4120,T R Fossett Ltd,44869,12072536,1640,Private Contractors,Other Agencies
Southend-on-Sea Borough Council,http://www.opendatacommunities.org/id/unitary-authority/southend,ED Adults & Communities,Public Health,1512,The Centre For Public Innovation Cic,44869,12072536,8970,Consultancy Services,Services
Southend-on-Sea Borough Council,http://www.opendatacommunities.org/id/unitary-authority/southend,ED Adults & Communities,Adult Social Care,1145,The Peaceful Place,44869,12072536,1200,Private Contractors,Other Agencies
Southend-on-Sea Borough Council,http://www.opendatacommunities.org/id/unitary-authority/southend,ED Children & Public Health,Children And Education Services,3483,The St. Christopher School Academy Trust,44869,12072536,49797,Private Contractors,Other Agencies
Southend-on-Sea Borough Council,http://www.opendatacommunities.org/id/unitary-authority/southend,ED Adults & Communities,Cultural And Related Services,4230,Triple L Training & Medical Ltd,44869,12072536,2250,Cultural And Entertainment Services,Services
Southend-on-Sea Borough Council,http://www.opendatacommunities.org/id/unitary-authority/southend,ED Growth & Housing,Planning Services,5642,Unpuzzled Theatre Company Cic,44869,12072536,500,Professional Fees,Services
Southend-on-Sea Borough Council,http://www.opendatacommunities.org/id/unitary-authority/southend,ED Adults & Communities,Adult Social Care,1105,Volsec Ltd T/A Volsec Healthcare,44869,12072536,1197,Private Contractors,Other Agencies
Southend-on-Sea Borough Council,http://www.opendatacommunities.org/id/unitary-authority/southend,ED Adults & Communities,Adult Social Care,1105,Volsec Ltd T/A Volsec Healthcare,44869,12072536,769.5,Private Contractors,Other Agencies
Southend-on-Sea Borough Council,http://www.opendatacommunities.org/id/unitary-authority/southend,ED Adults & Communities,Adult Social Care,1105,Volsec Ltd T/A Volsec Healthcare,44869,12072536,1197,Private Contractors,Other Agencies
Southend-on-Sea Borough Council,http://www.opendatacommunities.org/id/unitary-authority/southend,ED Adults & Communities,Adult Social Care,1205,Volsec Ltd T/A Volsec Healthcare,44869,12072536,1197,Private Contractors,Other Agencies
Southend-on-Sea Borough Council,http://www.opendatacommunities.org/id/unitary-authority/southend,ED Adults & Communities,Adult Social Care,1105,Volsec Ltd T/A Volsec Healthcare,44869,12072536,593.75,Private Contractors,Other Agencies
Southend-on-Sea Borough Council,http://www.opendatacommunities.org/id/unitary-authority/southend,ED Adults & Communities,Adult Social Care,1105,Volsec Ltd T/A Volsec Healthcare,44869,12072536,798,Private Contractors,Other Agencies
Southend-on-Sea Borough Council,http://www.opendatacommunities.org/id/unitary-authority/southend,ED Adults & Communities,Adult Social Care,1105,Volsec Ltd T/A Volsec Healthcare,44869,12072536,1197,Private Contractors,Other Agencies
Southend-on-Sea Borough Council,http://www.opendatacommunities.org/id/unitary-authority/southend,ED Adults & Communities,Adult Social Care,1105,Volsec Ltd T/A Volsec Healthcare,44869,12072536,798,Private Contractors,Other Agencies
Southend-on-Sea Borough Council,http://www.opendatacommunities.org/id/unitary-authority/southend,ED Adults & Communities,Adult Social Care,1205,Volsec Ltd T/A Volsec Healthcare,44869,12072536,503.5,Private Contractors,Other Agencies
Southend-on-Sea Borough Council,http://www.opendatacommunities.org/id/unitary-authority/southend,ED Adults & Communities,Adult Social Care,1105,Volsec Ltd T/A Volsec Healthcare,44869,12072536,1406,Private Contractors,Other Agencies
Southend-on-Sea Borough Council,http://www.opendatacommunities.org/id/unitary-authority/southend,ED Adults & Communities,Adult Social Care,1205,Volsec Ltd T/A Volsec Healthcare,44869,12072536,1292,Private Contractors,Other Agencies
Southend-on-Sea Borough Council,http://www.opendatacommunities.org/id/unitary-authority/southend,ED Children & Public Health,Children And Education Services,3265,Ward Hadaway Client Premium Account,44869,12072536,719.5,Court Costs And Legal Fees,Services
Southend-on-Sea Borough Council,http://www.opendatacommunities.org/id/unitary-authority/southend,ED Children & Public Health,Children And Education Services,3265,Ward Hadaway Client Premium Account,44869,12072536,1211.81,Court Costs And Legal Fees,Services
Southend-on-Sea Borough Council,http://www.opendatacommunities.org/id/unitary-authority/southend,"ED Strategy, Change & Governance",Adult Social Care,3201,Writtle College,44869,12072536,2568,Commissioned Training,Services
Southend-on-Sea Borough Council,http://www.opendatacommunities.org/id/unitary-authority/southend,ED Adults & Communities,Adult Social Care,9010,(G) Edmunds Design & Construction Ltd,44872,12072538,39791.22,Main Contractor,Main Contractor
Southend-on-Sea Borough Council,http://www.opendatacommunities.org/id/unitary-authority/southend,ED Growth & Housing,Housing Services,9005,(G) Gracelands Cms Ltd,44872,12072538,8068.37,Contractors General,Contractors General
Southend-on-Sea Borough Council,http://www.opendatacommunities.org/id/unitary-authority/southend,ED Adults & Communities,Adult Social Care,9010,(G) Millane Contract Services Ltd,44872,12072538,42275.95,Main Contractor,Main Contractor
Southend-on-Sea Borough Council,http://www.opendatacommunities.org/id/unitary-authority/southend,ED Children & Public Health,Children And Education Services,3481,Badgers Den (Care) Limited T/A Badgers Den Day Opportunities,44872,12072538,528,Childrens outings,Services
Southend-on-Sea Borough Council,http://www.opendatacommunities.org/id/unitary-authority/southend,ED Children & Public Health,Children And Education Services,3250,Bramley Care Ltd T/A Apple Orchard,44872,12072538,23426.7,Private Contractors,Other Agencies
Southend-on-Sea Borough Council,http://www.opendatacommunities.org/id/unitary-authority/southend,ED Children & Public Health,Children And Education Services,3250,Carterhatch Homes Limited,44872,12072538,34321.34,Private Contractors,Other Agencies
Southend-on-Sea Borough Council,http://www.opendatacommunities.org/id/unitary-authority/southend,ED Children & Public Health,Children And Education Services,3250,Channels & Choices Therapeutic Community,44872,12072538,21384.7,Private Contractors,Other Agencies
Southend-on-Sea Borough Council,http://www.opendatacommunities.org/id/unitary-authority/southend,ED Adults & Communities,Adult Social Care,1105,Choices Healthcare Ltd,44872,12072538,606.24,Private Contractors,Other Agencies
Southend-on-Sea Borough Council,http://www.opendatacommunities.org/id/unitary-authority/southend,ED Adults & Communities,Adult Social Care,1105,Choices Healthcare Ltd,44872,12072538,-596.16,Private Contractors,Other Agencies
Southend-on-Sea Borough Council,http://www.opendatacommunities.org/id/unitary-authority/southend,ED Adults & Communities,Adult Social Care,1205,Christies Care Ltd.,44872,12072538,4942.56,Private Contractors,Other Agencies
Southend-on-Sea Borough Council,http://www.opendatacommunities.org/id/unitary-authority/southend,ED Adults & Communities,Adult Social Care,1260,Craegmoor Turketel Road Priory,44872,12072538,9216.76,Private Contractors,Other Agencies
Southend-on-Sea Borough Council,http://www.opendatacommunities.org/id/unitary-authority/southend,ED Growth & Housing,Planning Services,5637,D & D Autos (Ashford) Limited T/A D & D Auto Repairs,44872,12072538,919.76,Grants,Grants And Subscriptions
Southend-on-Sea Borough Council,http://www.opendatacommunities.org/id/unitary-authority/southend,ED Children & Public Health,Children And Education Services,3250,Eastern Family Services T/A Eastern Fostering Services Ltd,44872,12072538,3416,Private Contractors,Other Agencies
Southend-on-Sea Borough Council,http://www.opendatacommunities.org/id/unitary-authority/southend,ED Children & Public Health,Children And Education Services,3250,Eastern Family Services T/A Eastern Fostering Services Ltd,44872,12072538,3500,Private Contractors,Other Agencies
Southend-on-Sea Borough Council,http://www.opendatacommunities.org/id/unitary-authority/southend,ED Children & Public Health,Children And Education Services,3250,Eastern Family Services T/A Eastern Fostering Services Ltd,44872,12072538,3399.76,Private Contractors,Other Agencies
Southend-on-Sea Borough Council,http://www.opendatacommunities.org/id/unitary-authority/southend,ED Children & Public Health,Children And Education Services,3250,Fusion Fostering Ltd,44872,12072538,3852.86,Private Contractors,Other Agencies
Southend-on-Sea Borough Council,http://www.opendatacommunities.org/id/unitary-authority/southend,ED Children & Public Health,Children And Education Services,3250,Greenfields Adolescent Development Ltd,44872,12072538,35007.14,Private Contractors,Other Agencies
Southend-on-Sea Borough Council,http://www.opendatacommunities.org/id/unitary-authority/southend,ED Adults & Communities,Adult Social Care,1145,Harwood House Day Centre,44872,12072538,655.5,Private Contractors,Other Agencies
Southend-on-Sea Borough Council,http://www.opendatacommunities.org/id/unitary-authority/southend,ED Adults & Communities,Adult Social Care,1145,Harwood House Day Centre,44872,12072538,983.25,Private Contractors,Other Agencies
Southend-on-Sea Borough Council,http://www.opendatacommunities.org/id/unitary-authority/southend,ED Adults & Communities,Adult Social Care,1176,Harwood House Day Centre,44872,12072538,524.4,Private Contractors,Other Agencies
Southend-on-Sea Borough Council,http://www.opendatacommunities.org/id/unitary-authority/southend,ED Adults & Communities,Adult Social Care,1145,Harwood House Day Centre,44872,12072538,983.25,Private Contractors,Other Agencies
Southend-on-Sea Borough Council,http://www.opendatacommunities.org/id/unitary-authority/southend,ED Adults & Communities,Adult Social Care,1145,Harwood House Day Centre,44872,12072538,524.4,Private Contractors,Other Agencies
Southend-on-Sea Borough Council,http://www.opendatacommunities.org/id/unitary-authority/southend,ED Adults & Communities,Adult Social Care,1145,Harwood House Day Centre,44872,12072538,786.6,Private Contractors,Other Agencies
Southend-on-Sea Borough Council,http://www.opendatacommunities.org/id/unitary-authority/southend,ED Adults & Communities,Adult Social Care,1176,Harwood House Day Centre,44872,12072538,524.4,Private Contractors,Other Agencies
Southend-on-Sea Borough Council,http://www.opendatacommunities.org/id/unitary-authority/southend,ED Adults & Communities,Adult Social Care,1145,Harwood House Day Centre,44872,12072538,524.4,Private Contractors,Other Agencies
Southend-on-Sea Borough Council,http://www.opendatacommunities.org/id/unitary-authority/southend,ED Adults & Communities,Adult Social Care,1145,Harwood House Day Centre,44872,12072538,524.4,Private Contractors,Other Agencies
Southend-on-Sea Borough Council,http://www.opendatacommunities.org/id/unitary-authority/southend,ED Neighbourhoods & Environment,Cultural And Related Services,4201,James Coles & Sons (Nurseries) Ltd,44872,12072538,585.05,Materials,Equipment Furniture And Materials
Southend-on-Sea Borough Council,http://www.opendatacommunities.org/id/unitary-authority/southend,ED Finance & Resources,Central Services,8605,Kennedys Law Llp Office A/C,44872,12072538,5104.16,Professional Fees,Services
Southend-on-Sea Borough Council,http://www.opendatacommunities.org/id/unitary-authority/southend,ED Finance & Resources,Central Services,8605,Kennedys Law Llp Office A/C,44872,12072538,1308,Court Costs And Legal Fees,Services
Southend-on-Sea Borough Council,http://www.opendatacommunities.org/id/unitary-authority/southend,ED Adults & Communities,Adult Social Care,1105,Newday Healthcare Professionals Ltd,44872,12072538,931,Private Contractors,Other Agencies
Southend-on-Sea Borough Council,http://www.opendatacommunities.org/id/unitary-authority/southend,ED Adults & Communities,Adult Social Care,1105,Newday Healthcare Professionals Ltd,44872,12072538,684,Private Contractors,Other Agencies
Southend-on-Sea Borough Council,http://www.opendatacommunities.org/id/unitary-authority/southend,ED Children & Public Health,Children And Education Services,3250,Nexus Fostering Limited,44872,12072538,6216,Private Contractors,Other Agencies
Southend-on-Sea Borough Council,http://www.opendatacommunities.org/id/unitary-authority/southend,ED Children & Public Health,Children And Education Services,3250,Oakhills Care Services Ltd,44872,12072538,4831.6,Private Contractors,Other Agencies
Southend-on-Sea Borough Council,http://www.opendatacommunities.org/id/unitary-authority/southend,ED Neighbourhoods & Environment,Highways And Transport Services,5075,Peoplescout Ltd,44872,12072538,600.48,Non Staff Advertising,Services
Southend-on-Sea Borough Council,http://www.opendatacommunities.org/id/unitary-authority/southend,ED Neighbourhoods & Environment,Highways And Transport Services,5075,Peoplescout Ltd,44872,12072538,600.48,Non Staff Advertising,Services
Southend-on-Sea Borough Council,http://www.opendatacommunities.org/id/unitary-authority/southend,ED Growth & Housing,Planning Services,5637,Personalised Warehouse,44872,12072538,6364.79,Grants,Grants And Subscriptions
Southend-on-Sea Borough Council,http://www.opendatacommunities.org/id/unitary-authority/southend,ED Neighbourhoods & Environment,Cultural And Related Services,4200,Premier Plants Uk Ltd,44872,12072538,2541.8,Materials,Equipment Furniture And Materials
Southend-on-Sea Borough Council,http://www.opendatacommunities.org/id/unitary-authority/southend,ED Adults & Communities,Cultural And Related Services,4010,REDACTED PERSONAL DATA,44872,12072538,1617.5,Professional Fees,Services
Southend-on-Sea Borough Council,http://www.opendatacommunities.org/id/unitary-authority/southend,ED Adults & Communities,Adult Social Care,1294,Spotlight Healthcare Services Limited,44872,12072538,12936,Private Contractors,Other Agencies
Southend-on-Sea Borough Council,http://www.opendatacommunities.org/id/unitary-authority/southend,ED Children & Public Health,Children And Education Services,3250,Surecare Residential Ltd,44872,12072538,16714.2,Private Contractors,Other Agencies
Southend-on-Sea Borough Council,http://www.opendatacommunities.org/id/unitary-authority/southend,ED Adults & Communities,Adult Social Care,1145,The Harbour Club (Care) Ltd,44872,12072538,1360,Private Contractors,Other Agencies
Southend-on-Sea Borough Council,http://www.opendatacommunities.org/id/unitary-authority/southend,ED Finance & Resources,Central Services,2070,The Society Of Local Authority Chief Executives And Senior Managers (Solace Group) Ltd,44872,12072538,1520,Subscriptions,Grants And Subscriptions
Southend-on-Sea Borough Council,http://www.opendatacommunities.org/id/unitary-authority/southend,ED Neighbourhoods & Environment,Highways And Transport Services,9008,(G) Marlborough Surfacing Limited,44873,12072539,31858.37,Contractors General,Contractors General
Southend-on-Sea Borough Council,http://www.opendatacommunities.org/id/unitary-authority/southend,ED Adults & Communities,Adult Social Care,8601,Allpay . Net Limited,44873,12072539,3572.51,Services Fees And Charges,Services
Southend-on-Sea Borough Council,http://www.opendatacommunities.org/id/unitary-authority/southend,ED Finance & Resources,Housing Services,6165,Allpay . Net Limited,44873,12072539,3612.47,Services Fees And Charges,Services
Southend-on-Sea Borough Council,http://www.opendatacommunities.org/id/unitary-authority/southend,ED Finance & Resources,Housing Services,6165,Allpay . Net Limited,44873,12072539,11138.94,Services Fees And Charges,Services
Southend-on-Sea Borough Council,http://www.opendatacommunities.org/id/unitary-authority/southend,ED Children & Public Health,Children And Education Services,3290,Avance Limited T/A Avance Care Services,44873,12072539,2955,Accomodation Payment,Services
Southend-on-Sea Borough Council,http://www.opendatacommunities.org/id/unitary-authority/southend,ED Adults & Communities,Adult Social Care,1320,Badgers Den (Care) Limited T/A Badgers Den Day Opportunities,44873,12072539,882,Private Contractors,Other Agencies
Southend-on-Sea Borough Council,http://www.opendatacommunities.org/id/unitary-authority/southend,ED Children & Public Health,Children And Education Services,3290,Canary House Care Limited,44873,12072539,650,Accomodation Payment,Services
Southend-on-Sea Borough Council,http://www.opendatacommunities.org/id/unitary-authority/southend,ED Children & Public Health,Children And Education Services,3307,Canary House Care Limited,44873,12072539,2371.43,Accomodation Payment,Services
Southend-on-Sea Borough Council,http://www.opendatacommunities.org/id/unitary-authority/southend,ED Children & Public Health,Children And Education Services,3308,Canary House Care Limited,44873,12072539,1750,Accomodation Payment,Services
Southend-on-Sea Borough Council,http://www.opendatacommunities.org/id/unitary-authority/southend,ED Children & Public Health,Public Health,7625,Dr Irlam & Partners,44873,12072539,500,Medical And Health Services,Services
Southend-on-Sea Borough Council,http://www.opendatacommunities.org/id/unitary-authority/southend,ED Children & Public Health,Public Health,7625,Dr S Zaidi'S Practice,44873,12072539,840,Medical And Health Services,Services
Southend-on-Sea Borough Council,http://www.opendatacommunities.org/id/unitary-authority/southend,ED Neighbourhoods & Environment,Environmental And Regulatory Services,4661,Enovert South Limited,44873,12072539,83520.99,Waste Management,Cleaning And Domestic Supplies
Southend-on-Sea Borough Council,http://www.opendatacommunities.org/id/unitary-authority/southend,ED Neighbourhoods & Environment,Environmental And Regulatory Services,4660,Enovert South Limited,44873,12072539,4541.4,Waste Management,Cleaning And Domestic Supplies
Southend-on-Sea Borough Council,http://www.opendatacommunities.org/id/unitary-authority/southend,ED Neighbourhoods & Environment,Environmental And Regulatory Services,4661,Enovert South Limited,44873,12072539,15440.77,Waste Management,Cleaning And Domestic Supplies
Southend-on-Sea Borough Council,http://www.opendatacommunities.org/id/unitary-authority/southend,ED Adults & Communities,Cultural And Related Services,4010,Fraser Muggeridge Studio,44873,12072539,3423,Professional Fees,Services
Southend-on-Sea Borough Council,http://www.opendatacommunities.org/id/unitary-authority/southend,ED Neighbourhoods & Environment,Cultural and Related Services,7505,Fueloils,44873,12072539,823.8,Petrol Diesel Or Liquid Petroleum Gas,Direct Transport Costs
Southend-on-Sea Borough Council,http://www.opendatacommunities.org/id/unitary-authority/southend,ED Children & Public Health,Children And Education Services,3308,Great Future Support Ltd,44873,12072539,2680,Accomodation Payment,Services
Southend-on-Sea Borough Council,http://www.opendatacommunities.org/id/unitary-authority/southend,ED Children & Public Health,Children And Education Services,3290,Griha Care And Support Limited,44873,12072539,3152,Accomodation Payment,Services
Southend-on-Sea Borough Council,http://www.opendatacommunities.org/id/unitary-authority/southend,ED Children & Public Health,Children And Education Services,3290,Griha Care And Support Limited,44873,12072539,650,Accomodation Payment,Services
Southend-on-Sea Borough Council,http://www.opendatacommunities.org/id/unitary-authority/southend,ED Children & Public Health,Children And Education Services,3307,Griha Care And Support Limited,44873,12072539,3450,Accomodation Payment,Services
Southend-on-Sea Borough Council,http://www.opendatacommunities.org/id/unitary-authority/southend,ED Children & Public Health,Children And Education Services,3308,Griha Care And Support Limited,44873,12072539,1890,Accomodation Payment,Services
Southend-on-Sea Borough Council,http://www.opendatacommunities.org/id/unitary-authority/southend,ED Growth & Housing,Housing Services,9007,Kiwi Community Events C I C,44873,12072539,15000,Main Contractor,Main Contractor
Southend-on-Sea Borough Council,http://www.opendatacommunities.org/id/unitary-authority/southend,ED Children & Public Health,Children And Education Services,3290,Leighview House Ltd,44873,12072539,8110,Accomodation Payment,Services
Southend-on-Sea Borough Council,http://www.opendatacommunities.org/id/unitary-authority/southend,ED Children & Public Health,Children And Education Services,3290,Leighview House Ltd,44873,12072539,1100,Accomodation Payment,Services
Southend-on-Sea Borough Council,http://www.opendatacommunities.org/id/unitary-authority/southend,ED Children & Public Health,Children And Education Services,3307,Leighview House Ltd,44873,12072539,2515,Accomodation Payment,Services
Southend-on-Sea Borough Council,http://www.opendatacommunities.org/id/unitary-authority/southend,ED Children & Public Health,Children And Education Services,3308,Leighview House Ltd,44873,12072539,3850,Accomodation Payment,Services
Southend-on-Sea Borough Council,http://www.opendatacommunities.org/id/unitary-authority/southend,ED Children & Public Health,Children And Education Services,3290,Leighview House Ltd T/A Leighview House Romford Ltd,44873,12072539,1809,Accomodation Payment,Services
Southend-on-Sea Borough Council,http://www.opendatacommunities.org/id/unitary-authority/southend,ED Children & Public Health,Children And Education Services,3290,Leighview House Ltd T/A Leighview House Romford Ltd,44873,12072539,1450,Accomodation Payment,Services
Southend-on-Sea Borough Council,http://www.opendatacommunities.org/id/unitary-authority/southend,ED Children & Public Health,Children And Education Services,3307,Leighview House Ltd T/A Leighview House Romford Ltd,44873,12072539,1345,Accomodation Payment,Services
Southend-on-Sea Borough Council,http://www.opendatacommunities.org/id/unitary-authority/southend,ED Children & Public Health,Children And Education Services,3308,Leighview House Ltd T/A Leighview House Romford Ltd,44873,12072539,1650,Accomodation Payment,Services
Southend-on-Sea Borough Council,http://www.opendatacommunities.org/id/unitary-authority/southend,ED Adults & Communities,Adult Social Care,1294,Nexus Support Ltd,44873,12072539,3187.08,Private Contractors,Other Agencies
Southend-on-Sea Borough Council,http://www.opendatacommunities.org/id/unitary-authority/southend,ED Adults & Communities,Adult Social Care,1205,Pro Solutions Ltd T/A Ecc Care,44873,12072539,1064,Private Contractors,Other Agencies
Southend-on-Sea Borough Council,http://www.opendatacommunities.org/id/unitary-authority/southend,ED Adults & Communities,Adult Social Care,1105,Pro Solutions Ltd T/A Ecc Care,44873,12072539,1434.5,Private Contractors,Other Agencies
Southend-on-Sea Borough Council,http://www.opendatacommunities.org/id/unitary-authority/southend,ED Adults & Communities,Adult Social Care,1105,Pro Solutions Ltd T/A Ecc Care,44873,12072539,1862,Private Contractors,Other Agencies
Southend-on-Sea Borough Council,http://www.opendatacommunities.org/id/unitary-authority/southend,ED Adults & Communities,Adult Social Care,1320,Re House Limited,44873,12072539,1121.44,Private Contractors,Other Agencies
Southend-on-Sea Borough Council,http://www.opendatacommunities.org/id/unitary-authority/southend,ED Adults & Communities,Adult Social Care,1320,Re House Limited,44873,12072539,1722.6,Private Contractors,Other Agencies
Southend-on-Sea Borough Council,http://www.opendatacommunities.org/id/unitary-authority/southend,ED Adults & Communities,Adult Social Care,1320,Re House Limited,44873,12072539,858.72,Private Contractors,Other Agencies
Southend-on-Sea Borough Council,http://www.opendatacommunities.org/id/unitary-authority/southend,ED Adults & Communities,Adult Social Care,1320,Re House Limited,44873,12072539,1431.2,Private Contractors,Other Agencies
Southend-on-Sea Borough Council,http://www.opendatacommunities.org/id/unitary-authority/southend,ED Adults & Communities,Adult Social Care,1320,Re House Limited,44873,12072539,764,Private Contractors,Other Agencies
Southend-on-Sea Borough Council,http://www.opendatacommunities.org/id/unitary-authority/southend,ED Adults & Communities,Adult Social Care,1320,Re House Limited,44873,12072539,595.2,Private Contractors,Other Agencies
Southend-on-Sea Borough Council,http://www.opendatacommunities.org/id/unitary-authority/southend,ED Adults & Communities,Adult Social Care,1320,Re House Limited,44873,12072539,768,Private Contractors,Other Agencies
Southend-on-Sea Borough Council,http://www.opendatacommunities.org/id/unitary-authority/southend,ED Adults & Communities,Adult Social Care,1320,Re House Limited,44873,12072539,634.92,Private Contractors,Other Agencies
Southend-on-Sea Borough Council,http://www.opendatacommunities.org/id/unitary-authority/southend,ED Adults & Communities,Adult Social Care,1320,Re House Limited,44873,12072539,1161.12,Private Contractors,Other Agencies
Southend-on-Sea Borough Council,http://www.opendatacommunities.org/id/unitary-authority/southend,ED Children & Public Health,Children And Education Services,3265,REDACTED PERSONAL DATA,44873,12072539,815.02,Foster Carer Allowance,Other Agencies
Southend-on-Sea Borough Council,http://www.opendatacommunities.org/id/unitary-authority/southend,ED Children & Public Health,Children And Education Services,3265,REDACTED PERSONAL DATA,44873,12072539,544.57,Foster Carer Allowance,Other Agencies
Southend-on-Sea Borough Council,http://www.opendatacommunities.org/id/unitary-authority/southend,ED Children & Public Health,Children And Education Services,3265,REDACTED PERSONAL DATA,44873,12072539,558.21,Foster Carer Specialist,Other Agencies
Southend-on-Sea Borough Council,http://www.opendatacommunities.org/id/unitary-authority/southend,ED Children & Public Health,Children And Education Services,3265,REDACTED PERSONAL DATA,44873,12072539,558.21,Foster Carer Specialist,Other Agencies
Southend-on-Sea Borough Council,http://www.opendatacommunities.org/id/unitary-authority/southend,ED Children & Public Health,Children And Education Services,3265,REDACTED PERSONAL DATA,44873,12072539,558.21,Foster Carer Specialist,Other Agencies
Southend-on-Sea Borough Council,http://www.opendatacommunities.org/id/unitary-authority/southend,ED Children & Public Health,Children And Education Services,3265,REDACTED PERSONAL DATA,44873,12072539,558.21,Foster Carer Specialist,Other Agencies
Southend-on-Sea Borough Council,http://www.opendatacommunities.org/id/unitary-authority/southend,ED Children & Public Health,Children And Education Services,3265,REDACTED PERSONAL DATA,44873,12072539,638.2,Foster Carer Allowance,Other Agencies
Southend-on-Sea Borough Council,http://www.opendatacommunities.org/id/unitary-authority/southend,ED Children & Public Health,Children And Education Services,3265,REDACTED PERSONAL DATA,44873,12072539,881.22,Foster Carer Allowance,Other Agencies
Southend-on-Sea Borough Council,http://www.opendatacommunities.org/id/unitary-authority/southend,ED Children & Public Health,Children And Education Services,3265,REDACTED PERSONAL DATA,44873,12072539,616.25,Foster Carer Allowance,Other Agencies
Southend-on-Sea Borough Council,http://www.opendatacommunities.org/id/unitary-authority/southend,ED Children & Public Health,Children And Education Services,3265,REDACTED PERSONAL DATA,44873,12072539,558.21,Foster Carer Specialist,Other Agencies
Southend-on-Sea Borough Council,http://www.opendatacommunities.org/id/unitary-authority/southend,ED Children & Public Health,Children And Education Services,3265,REDACTED PERSONAL DATA,44873,12072539,558.21,Foster Carer Specialist,Other Agencies
Southend-on-Sea Borough Council,http://www.opendatacommunities.org/id/unitary-authority/southend,ED Children & Public Health,Children And Education Services,3265,REDACTED PERSONAL DATA,44873,12072539,500.96,Foster Carer Allowance,Other Agencies
Southend-on-Sea Borough Council,http://www.opendatacommunities.org/id/unitary-authority/southend,ED Children & Public Health,Children And Education Services,3265,REDACTED PERSONAL DATA,44873,12072539,993.03,Foster Carer Allowance,Other Agencies
Southend-on-Sea Borough Council,http://www.opendatacommunities.org/id/unitary-authority/southend,ED Children & Public Health,Children And Education Services,3455,REDACTED PERSONAL DATA,44873,12072539,574.69,Guardianship Orders,Other Agencies
Southend-on-Sea Borough Council,http://www.opendatacommunities.org/id/unitary-authority/southend,ED Children & Public Health,Children And Education Services,3265,REDACTED PERSONAL DATA,44873,12072539,876.78,Foster Carer Allowance,Other Agencies
Southend-on-Sea Borough Council,http://www.opendatacommunities.org/id/unitary-authority/southend,ED Children & Public Health,Children And Education Services,3265,REDACTED PERSONAL DATA,44873,12072539,1157.81,Foster Carer Allowance,Other Agencies
Southend-on-Sea Borough Council,http://www.opendatacommunities.org/id/unitary-authority/southend,ED Children & Public Health,Children And Education Services,3265,REDACTED PERSONAL DATA,44873,12072539,529.94,Foster Carer Allowance,Other Agencies
Southend-on-Sea Borough Council,http://www.opendatacommunities.org/id/unitary-authority/southend,ED Children & Public Health,Children And Education Services,3265,REDACTED PERSONAL DATA,44873,12072539,558.21,Foster Carer Specialist,Other Agencies
Southend-on-Sea Borough Council,http://www.opendatacommunities.org/id/unitary-authority/southend,ED Children & Public Health,Children And Education Services,3265,REDACTED PERSONAL DATA,44873,12072539,558.21,Foster Carer Specialist,Other Agencies
Southend-on-Sea Borough Council,http://www.opendatacommunities.org/id/unitary-authority/southend,ED Children & Public Health,Children And Education Services,3265,REDACTED PERSONAL DATA,44873,12072539,620.39,Foster Carer Allowance,Other Agencies
Southend-on-Sea Borough Council,http://www.opendatacommunities.org/id/unitary-authority/southend,ED Children & Public Health,Children And Education Services,3265,REDACTED PERSONAL DATA,44873,12072539,764.97,Foster Carer Allowance,Other Agencies
Southend-on-Sea Borough Council,http://www.opendatacommunities.org/id/unitary-authority/southend,ED Children & Public Health,Children And Education Services,3290,Safe Haven Services Ltd,44873,12072539,1257.14,Accomodation Payment,Services
Southend-on-Sea Borough Council,http://www.opendatacommunities.org/id/unitary-authority/southend,ED Children & Public Health,Children And Education Services,3307,Safe Haven Services Ltd,44873,12072539,2080,Accomodation Payment,Services
Southend-on-Sea Borough Council,http://www.opendatacommunities.org/id/unitary-authority/southend,ED Children & Public Health,Children And Education Services,3308,Safe Haven Services Ltd,44873,12072539,1491.54,Accomodation Payment,Services
Southend-on-Sea Borough Council,http://www.opendatacommunities.org/id/unitary-authority/southend,ED Finance & Resources,Central Services,8606,South Essex Property Services,44873,12072539,561.37,Catering Refreshments,Catering
Southend-on-Sea Borough Council,http://www.opendatacommunities.org/id/unitary-authority/southend,ED Neighbourhoods & Environment,Cultural And Related Services,7540,South Essex Property Services,44873,12072539,830.53,Private Contractors,Other Agencies
Southend-on-Sea Borough Council,http://www.opendatacommunities.org/id/unitary-authority/southend,ED Adults & Communities,Adult Social Care,1231,Southend Central Hotel Ltd,44873,12072539,1860,Social Care Services,Services
Southend-on-Sea Borough Council,http://www.opendatacommunities.org/id/unitary-authority/southend,ED Adults & Communities,Adult Social Care,1350,Southend Central Hotel Ltd,44873,12072539,1860,Social Care Services,Services
Southend-on-Sea Borough Council,http://www.opendatacommunities.org/id/unitary-authority/southend,ED Children & Public Health,Public Health,7625,Southend Medical Centre,44873,12072539,680,Medical And Health Services,Services
Southend-on-Sea Borough Council,http://www.opendatacommunities.org/id/unitary-authority/southend,ED Children & Public Health,Children And Education Services,3250,Sunbeam Fostering Agency Ltd,44873,12072539,3288.21,Private Contractors,Other Agencies
Southend-on-Sea Borough Council,http://www.opendatacommunities.org/id/unitary-authority/southend,ED Children & Public Health,Children And Education Services,3250,Sunbeam Fostering Agency Ltd,44873,12072539,3178.61,Private Contractors,Other Agencies
Southend-on-Sea Borough Council,http://www.opendatacommunities.org/id/unitary-authority/southend,ED Children & Public Health,Children And Education Services,3250,The Loddon Foundation Ltd,44873,12072539,21734.01,Private Contractors,Other Agencies
Southend-on-Sea Borough Council,http://www.opendatacommunities.org/id/unitary-authority/southend,ED Children & Public Health,Children And Education Services,3250,The National Fostering Agency Ltd,44873,12072539,2688,Private Contractors,Other Agencies
Southend-on-Sea Borough Council,http://www.opendatacommunities.org/id/unitary-authority/southend,ED Neighbourhoods & Environment,Cultural and Related Services,7505,Tree Fella Limited,44873,12072539,505.15,Private Contractors,Other Agencies
Southend-on-Sea Borough Council,http://www.opendatacommunities.org/id/unitary-authority/southend,ED Neighbourhoods & Environment,Cultural and Related Services,7520,Tree Fella Limited,44873,12072539,739.01,Private Contractors,Other Agencies
Southend-on-Sea Borough Council,http://www.opendatacommunities.org/id/unitary-authority/southend,ED Adults & Communities,Adult Social Care,1320,Vibe Southend Ltd,44873,12072539,1373.99,Private Contractors,Other Agencies
Southend-on-Sea Borough Council,http://www.opendatacommunities.org/id/unitary-authority/southend,ED Neighbourhoods & Environment,Highways And Transport Services,9008,(G) Marlborough Surfacing Limited,44874,12072546,721.38,Contractors General,Contractors General
Southend-on-Sea Borough Council,http://www.opendatacommunities.org/id/unitary-authority/southend,ED Neighbourhoods & Environment,Highways And Transport Services,9008,(G) Marlborough Surfacing Limited,44874,12072546,3563.85,Contractors General,Contractors General
Southend-on-Sea Borough Council,http://www.opendatacommunities.org/id/unitary-authority/southend,ED Neighbourhoods & Environment,Highways And Transport Services,9008,(G) Marlborough Surfacing Limited,44874,12072546,127327.2,Main Contractor,Main Contractor
Southend-on-Sea Borough Council,http://www.opendatacommunities.org/id/unitary-authority/southend,ED Neighbourhoods & Environment,Highways And Transport Services,9008,(G) Marlborough Surfacing Limited,44874,12072546,65737,Main Contractor,Main Contractor
Southend-on-Sea Borough Council,http://www.opendatacommunities.org/id/unitary-authority/southend,ED Neighbourhoods & Environment,Highways And Transport Services,9008,(G) Marlborough Surfacing Limited,44874,12072546,36769.55,Main Contractor,Main Contractor
Southend-on-Sea Borough Council,http://www.opendatacommunities.org/id/unitary-authority/southend,ED Neighbourhoods & Environment,Highways And Transport Services,9008,(G) Marlborough Surfacing Limited,44874,12072546,73628.46,Main Contractor,Main Contractor
Southend-on-Sea Borough Council,http://www.opendatacommunities.org/id/unitary-authority/southend,ED Neighbourhoods & Environment,Highways And Transport Services,9008,(G) Marlborough Surfacing Limited,44874,12072546,75828.37,Main Contractor,Main Contractor
Southend-on-Sea Borough Council,http://www.opendatacommunities.org/id/unitary-authority/southend,ED Adults & Communities,Cultural And Related Services,4230,(G) Marlborough Surfacing Limited,44874,12072546,9250,Cultural And Entertainment Services,Services
Southend-on-Sea Borough Council,http://www.opendatacommunities.org/id/unitary-authority/southend,ED Neighbourhoods & Environment,Environmental And Regulatory Services,4545,(G) Marlborough Surfacing Limited,44874,12072546,620,Private Contractors,Other Agencies
Southend-on-Sea Borough Council,http://www.opendatacommunities.org/id/unitary-authority/southend,ED Neighbourhoods & Environment,Highways And Transport Services,5170,(G) Marlborough Surfacing Limited,44874,12072546,9781.23,Private Contractors,Other Agencies
Southend-on-Sea Borough Council,http://www.opendatacommunities.org/id/unitary-authority/southend,ED Neighbourhoods & Environment,Highways And Transport Services,5122,(G) Marlborough Surfacing Limited,44874,12072546,15067.54,Private Contractors,Other Agencies
Southend-on-Sea Borough Council,http://www.opendatacommunities.org/id/unitary-authority/southend,ED Children & Public Health,Children And Education Services,9009,(G) Sos Electricals & Services Ltd,44874,12072546,7318.76,Main Contractor,Main Contractor
Southend-on-Sea Borough Council,http://www.opendatacommunities.org/id/unitary-authority/southend,ED Children & Public Health,Children And Education Services,3220,Ac Independent Social Care Ltd,44874,12072546,8600,Audit Costs,Services
Southend-on-Sea Borough Council,http://www.opendatacommunities.org/id/unitary-authority/southend,ED Adults & Communities,Adult Social Care,1060,Access Anyone Ltd,44874,12072546,1325,Conveyance of Clients,Contract Hire And Operating Leases
Southend-on-Sea Borough Council,http://www.opendatacommunities.org/id/unitary-authority/southend,ED Adults & Communities,Adult Social Care,1350,Access Anyone Ltd,44874,12072546,750,Conveyance of Clients,Contract Hire And Operating Leases
Southend-on-Sea Borough Council,http://www.opendatacommunities.org/id/unitary-authority/southend,ED Children & Public Health,Children And Education Services,3250,Acorn Care & Education Ltd (Sales),44874,12072546,21384.48,Private Contractors,Other Agencies
Southend-on-Sea Borough Council,http://www.opendatacommunities.org/id/unitary-authority/southend,ED Adults & Communities,Adult Social Care,1209,Aidapt Bathrooms Ltd,44874,12072546,555,Tools And Equipment Purchase,Equipment Furniture And Materials
Southend-on-Sea Borough Council,http://www.opendatacommunities.org/id/unitary-authority/southend,ED Children & Public Health,Children And Education Services,3290,Beacon Placements Ltd,44874,12072546,4583.57,Accomodation Payment,Services
Southend-on-Sea Borough Council,http://www.opendatacommunities.org/id/unitary-authority/southend,ED Adults & Communities,Adult Social Care,1105,Choices Healthcare Ltd,44874,12072546,606.24,Private Contractors,Other Agencies
Southend-on-Sea Borough Council,http://www.opendatacommunities.org/id/unitary-authority/southend,ED Adults & Communities,Cultural And Related Services,4245,Dorrigo,44874,12072546,550,Materials,Equipment Furniture And Materials
Southend-on-Sea Borough Council,http://www.opendatacommunities.org/id/unitary-authority/southend,ED Neighbourhoods & Environment,Environmental And Regulatory Services,4716,Dr Phil Back,44874,12072546,562.5,Consultancy Services,Services
Southend-on-Sea Borough Council,http://www.opendatacommunities.org/id/unitary-authority/southend,"ED Strategy, Change & Governance",Central Services,7105,East Anglian Chambers T/A Lorene Hodkinson,44874,12072546,750,Barristers fees,Services
Southend-on-Sea Borough Council,http://www.opendatacommunities.org/id/unitary-authority/southend,"ED Strategy, Change & Governance",Central Services,7105,East Anglian Chambers T/A Miss Claire Thorne,44874,12072546,650,Barristers fees,Services
Southend-on-Sea Borough Council,http://www.opendatacommunities.org/id/unitary-authority/southend,"ED Strategy, Change & Governance",Central Services,7105,East Anglian Chambers T/A Ms Sarah Duxbury,44874,12072546,600,Barristers fees,Services
Southend-on-Sea Borough Council,http://www.opendatacommunities.org/id/unitary-authority/southend,"ED Strategy, Change & Governance",Central Services,7105,East Anglian Chambers T/A Ms Sarah Duxbury,44874,12072546,900,Barristers fees,Services
Southend-on-Sea Borough Council,http://www.opendatacommunities.org/id/unitary-authority/southend,"ED Strategy, Change & Governance",Central Services,7105,East Anglian Chambers T/A Ms Sarah Duxbury,44874,12072546,1650,Barristers fees,Services
Southend-on-Sea Borough Council,http://www.opendatacommunities.org/id/unitary-authority/southend,ED Children & Public Health,Children And Education Services,3008,Fairways Pre School Playgroup,44874,12072546,800,Grants,Grants And Subscriptions
Southend-on-Sea Borough Council,http://www.opendatacommunities.org/id/unitary-authority/southend,ED Adults & Communities,Cultural And Related Services,4245,Farrah'S Of Harrogate Limited,44874,12072546,703.73,Catering Food And Beverages,Catering
Southend-on-Sea Borough Council,http://www.opendatacommunities.org/id/unitary-authority/southend,ED Finance & Resources,Central Services,2105,Formara Limited T/A Formara Print,44874,12072546,18842.94,Printing,Printing Stationery And General Office Expenses
Southend-on-Sea Borough Council,http://www.opendatacommunities.org/id/unitary-authority/southend,"ED Strategy, Change & Governance",Central Services,2200,Formara Limited T/A Formara Print,44874,12072546,526,Printing,Printing Stationery And General Office Expenses
Southend-on-Sea Borough Council,http://www.opendatacommunities.org/id/unitary-authority/southend,"ED Strategy, Change & Governance",Central Services,2045,Formara Limited T/A Formara Print,44874,12072546,1560,Printing,Printing Stationery And General Office Expenses
Southend-on-Sea Borough Council,http://www.opendatacommunities.org/id/unitary-authority/southend,ED Children & Public Health,Children And Education Services,3250,Fostering Support Group,44874,12072546,3568.41,Private Contractors,Other Agencies
Southend-on-Sea Borough Council,http://www.opendatacommunities.org/id/unitary-authority/southend,"ED Strategy, Change & Governance",Central Services,8602,Gamma Business Communication Limited,44874,12072546,715.5,Telephone - Mobile,Communications And Computing
Southend-on-Sea Borough Council,http://www.opendatacommunities.org/id/unitary-authority/southend,ED Adults & Communities,Adult Social Care,1105,Golden Keys Care Agency Limited,44874,12072546,2394,Private Contractors,Other Agencies
Southend-on-Sea Borough Council,http://www.opendatacommunities.org/id/unitary-authority/southend,ED Adults & Communities,Adult Social Care,1105,Golden Keys Care Agency Limited,44874,12072546,1596,Private Contractors,Other Agencies
Southend-on-Sea Borough Council,http://www.opendatacommunities.org/id/unitary-authority/southend,ED Adults & Communities,Adult Social Care,1105,Golden Keys Care Agency Limited,44874,12072546,798,Private Contractors,Other Agencies
Southend-on-Sea Borough Council,http://www.opendatacommunities.org/id/unitary-authority/southend,ED Adults & Communities,Adult Social Care,1105,Golden Keys Care Agency Limited,44874,12072546,1833.5,Private Contractors,Other Agencies
Southend-on-Sea Borough Council,http://www.opendatacommunities.org/id/unitary-authority/southend,ED Finance & Resources,Central Services,7070,Grant Thornton Uk Llp,44874,12072546,41000,Consultancy Services,Services
Southend-on-Sea Borough Council,http://www.opendatacommunities.org/id/unitary-authority/southend,ED Children & Public Health,Children And Education Services,3290,Griha Care And Support Limited,44874,12072546,5484,Accomodation Payment,Services
Southend-on-Sea Borough Council,http://www.opendatacommunities.org/id/unitary-authority/southend,ED Children & Public Health,Children And Education Services,3290,Griha Care And Support Limited,44874,12072546,9401.15,Accomodation Payment,Services
Southend-on-Sea Borough Council,http://www.opendatacommunities.org/id/unitary-authority/southend,ED Adults & Communities,Adult Social Care,1320,Hamelin Trust,44874,12072546,777.84,Private Contractors,Other Agencies
Southend-on-Sea Borough Council,http://www.opendatacommunities.org/id/unitary-authority/southend,ED Adults & Communities,Adult Social Care,1209,Jenx Limited,44874,12072546,628,Tools And Equipment Purchase,Equipment Furniture And Materials
Southend-on-Sea Borough Council,http://www.opendatacommunities.org/id/unitary-authority/southend,ED Growth & Housing,Planning Services,5637,Kemo Limited,44874,12072546,2263.94,Grants,Grants And Subscriptions
Southend-on-Sea Borough Council,http://www.opendatacommunities.org/id/unitary-authority/southend,ED Children & Public Health,Children And Education Services,3008,Learning In Harmony Trust T/A Temple Sutton Primary School,44874,12072546,1600,Grants,Grants And Subscriptions
Southend-on-Sea Borough Council,http://www.opendatacommunities.org/id/unitary-authority/southend,ED Children & Public Health,Children And Education Services,3250,Leighview House Ltd,44874,12072546,39573.67,Private Contractors,Other Agencies
Southend-on-Sea Borough Council,http://www.opendatacommunities.org/id/unitary-authority/southend,ED Children & Public Health,Children And Education Services,3250,Leighview House Ltd,44874,12072546,1276.57,Private Contractors,Other Agencies
Southend-on-Sea Borough Council,http://www.opendatacommunities.org/id/unitary-authority/southend,ED Children & Public Health,Children And Education Services,3692,Lorraine Pilime T/A Penina Social Work Services Ltd,44874,12072546,5118.1,Professional Fees,Services
Southend-on-Sea Borough Council,http://www.opendatacommunities.org/id/unitary-authority/southend,ED Children & Public Health,Children And Education Services,3008,Mid And South Essex Nhs Foundation Trust T/A Ladybird Nhs Nursery,44874,12072546,800,Grants,Grants And Subscriptions
Southend-on-Sea Borough Council,http://www.opendatacommunities.org/id/unitary-authority/southend,ED Growth & Housing,Housing Services,6010,Mr & Mrs G Cetnik T/A Pavilion Hotel,44874,12072546,658,Accommodation Costs,Expenses
Southend-on-Sea Borough Council,http://www.opendatacommunities.org/id/unitary-authority/southend,ED Growth & Housing,Housing Services,6011,Mr & Mrs G Cetnik T/A Pavilion Hotel,44874,12072546,3529,Accommodation Costs,Expenses
Southend-on-Sea Borough Council,http://www.opendatacommunities.org/id/unitary-authority/southend,ED Adults & Communities,Adult Social Care,1209,Nottingham Rehab Ltd,44874,12072546,548.8,Tools And Equipment Purchase,Equipment Furniture And Materials
Southend-on-Sea Borough Council,http://www.opendatacommunities.org/id/unitary-authority/southend,ED Adults & Communities,Cultural And Related Services,4225,Oh Digital Ltd,44874,12072546,750,Internet,Communications And Computing
Southend-on-Sea Borough Council,http://www.opendatacommunities.org/id/unitary-authority/southend,ED Growth & Housing,Housing Services,6011,Pathfinder Gtm Limited,44874,12072546,625,Telephone - Mobile,Communications And Computing
Southend-on-Sea Borough Council,http://www.opendatacommunities.org/id/unitary-authority/southend,ED Neighbourhoods & Environment,Highways And Transport Services,5075,Peoplescout Ltd,44874,12072546,798.97,Non Staff Advertising,Services
Southend-on-Sea Borough Council,http://www.opendatacommunities.org/id/unitary-authority/southend,ED Neighbourhoods & Environment,Highways And Transport Services,5075,Peoplescout Ltd,44874,12072546,1200.96,Non Staff Advertising,Services
Southend-on-Sea Borough Council,http://www.opendatacommunities.org/id/unitary-authority/southend,ED Neighbourhoods & Environment,Highways And Transport Services,5075,Peoplescout Ltd,44874,12072546,1136.41,Non Staff Advertising,Services
Southend-on-Sea Borough Council,http://www.opendatacommunities.org/id/unitary-authority/southend,ED Neighbourhoods & Environment,Highways And Transport Services,5075,Peoplescout Ltd,44874,12072546,540.93,Non Staff Advertising,Services
Southend-on-Sea Borough Council,http://www.opendatacommunities.org/id/unitary-authority/southend,ED Children & Public Health,Children And Education Services,3020,Peter Pan Pre-School Playgroup,44874,12072546,2346,Other Establishments,Other Establishments
Southend-on-Sea Borough Council,http://www.opendatacommunities.org/id/unitary-authority/southend,ED Children & Public Health,Children And Education Services,3250,Pilgrims Corner Ltd,44874,12072546,21214.2,Private Contractors,Other Agencies
Southend-on-Sea Borough Council,http://www.opendatacommunities.org/id/unitary-authority/southend,ED Children & Public Health,Children And Education Services,3008,Portico Academy Trust,44874,12072546,800,Grants,Grants And Subscriptions
Southend-on-Sea Borough Council,http://www.opendatacommunities.org/id/unitary-authority/southend,ED Children & Public Health,Children And Education Services,3250,Quality Foster Care Limited,44874,12072546,4390.8,Private Contractors,Other Agencies
Southend-on-Sea Borough Council,http://www.opendatacommunities.org/id/unitary-authority/southend,ED Children & Public Health,Children And Education Services,3250,Quality Foster Care Limited,44874,12072546,3309.6,Private Contractors,Other Agencies
Southend-on-Sea Borough Council,http://www.opendatacommunities.org/id/unitary-authority/southend,ED Children & Public Health,Children And Education Services,3250,Quality Foster Care Limited,44874,12072546,3309.6,Private Contractors,Other Agencies
Southend-on-Sea Borough Council,http://www.opendatacommunities.org/id/unitary-authority/southend,ED Children & Public Health,Children And Education Services,3250,Quality Foster Care Limited,44874,12072546,2978.66,Private Contractors,Other Agencies
Southend-on-Sea Borough Council,http://www.opendatacommunities.org/id/unitary-authority/southend,ED Children & Public Health,Children And Education Services,3250,Quality Foster Care Limited,44874,12072546,3309.6,Private Contractors,Other Agencies
Southend-on-Sea Borough Council,http://www.opendatacommunities.org/id/unitary-authority/southend,ED Children & Public Health,Children And Education Services,3250,Quality Foster Care Limited,44874,12072546,2978.66,Private Contractors,Other Agencies
Southend-on-Sea Borough Council,http://www.opendatacommunities.org/id/unitary-authority/southend,ED Neighbourhoods & Environment,Cultural and Related Services,7515,Quantil Limited,44874,12072546,575,Materials,Equipment Furniture And Materials
Southend-on-Sea Borough Council,http://www.opendatacommunities.org/id/unitary-authority/southend,"ED Strategy, Change & Governance",Central Services,8603,REDACTED PERSONAL DATA,44874,12072546,1720,Public Transport,Public Transport
Southend-on-Sea Borough Council,http://www.opendatacommunities.org/id/unitary-authority/southend,"ED Strategy, Change & Governance",Central Services,7105,Miss Natasha Miller,44874,12072546,983.33,Barristers fees,Services
Southend-on-Sea Borough Council,http://www.opendatacommunities.org/id/unitary-authority/southend,"ED Strategy, Change & Governance",Central Services,7105,Mr J Dove,44874,12072546,1300,Barristers fees,Services
Southend-on-Sea Borough Council,http://www.opendatacommunities.org/id/unitary-authority/southend,ED Children & Public Health,Children And Education Services,3055,REDACTED PERSONAL DATA,44874,12072546,960,Direct Payments,Housing Benefits
Southend-on-Sea Borough Council,http://www.opendatacommunities.org/id/unitary-authority/southend,ED Finance & Resources,Central Services,7111,Ricoh Uk Limited,44874,12072546,31794.84,Printing,Printing Stationery And General Office Expenses
Southend-on-Sea Borough Council,http://www.opendatacommunities.org/id/unitary-authority/southend,ED Finance & Resources,Central Services,7111,Ricoh Uk Limited,44874,12072546,687.1,Printing,Printing Stationery And General Office Expenses
Southend-on-Sea Borough Council,http://www.opendatacommunities.org/id/unitary-authority/southend,ED Children & Public Health,Children And Education Services,3000,Secat T/A Thorpedene Primary School,44874,12072546,20314.37,Grants,Grants And Subscriptions
Southend-on-Sea Borough Council,http://www.opendatacommunities.org/id/unitary-authority/southend,ED Adults & Communities,Adult Social Care,1209,Societe Generale Equipment Finance Limited,44874,12072546,950,Vehicle Operating Lease,Contract Hire And Operating Leases
Southend-on-Sea Borough Council,http://www.opendatacommunities.org/id/unitary-authority/southend,ED Neighbourhoods & Environment,Cultural and Related Services,7505,Societe Generale Equipment Finance Limited,44874,12072546,1013,Vehicle Operating Lease,Contract Hire And Operating Leases
Southend-on-Sea Borough Council,http://www.opendatacommunities.org/id/unitary-authority/southend,ED Neighbourhoods & Environment,Cultural and Related Services,7510,Societe Generale Equipment Finance Limited,44874,12072546,518,Vehicle Operating Lease,Contract Hire And Operating Leases
Southend-on-Sea Borough Council,http://www.opendatacommunities.org/id/unitary-authority/southend,ED Neighbourhoods & Environment,Cultural and Related Services,7520,Societe Generale Equipment Finance Limited,44874,12072546,1309,Vehicle Operating Lease,Contract Hire And Operating Leases
Southend-on-Sea Borough Council,http://www.opendatacommunities.org/id/unitary-authority/southend,ED Neighbourhoods & Environment,Cultural and Related Services,7505,Societe Generale Equipment Finance Limited,44874,12072546,990,Vehicle Operating Lease,Contract Hire And Operating Leases
Southend-on-Sea Borough Council,http://www.opendatacommunities.org/id/unitary-authority/southend,ED Neighbourhoods & Environment,Cultural and Related Services,7520,Societe Generale Equipment Finance Limited,44874,12072546,990,Vehicle Operating Lease,Contract Hire And Operating Leases
Southend-on-Sea Borough Council,http://www.opendatacommunities.org/id/unitary-authority/southend,ED Children & Public Health,Children And Education Services,3010,Southchurch Park Playgroup,44874,12072546,1789.5,Grants,Grants And Subscriptions
Southend-on-Sea Borough Council,http://www.opendatacommunities.org/id/unitary-authority/southend,ED Adults & Communities,Cultural And Related Services,4120,St John Ambulance,44874,12072546,856.73,Medical And Health Services,Services
Southend-on-Sea Borough Council,http://www.opendatacommunities.org/id/unitary-authority/southend,ED Adults & Communities,Cultural And Related Services,4230,Stambridge Security Services Ltd,44874,12072546,3078.75,Cultural And Entertainment Services,Services
Southend-on-Sea Borough Council,http://www.opendatacommunities.org/id/unitary-authority/southend,ED Children & Public Health,Children And Education Services,3005,Stepping Stones Day Nursery & Preschool Ltd,44874,12072546,530.01,Grants,Grants And Subscriptions
Southend-on-Sea Borough Council,http://www.opendatacommunities.org/id/unitary-authority/southend,ED Adults & Communities,Cultural And Related Services,4120,T C Sutch T/A Individual Sea Angling Club,44874,12072546,500,Printing,Printing Stationery And General Office Expenses
Southend-on-Sea Borough Council,http://www.opendatacommunities.org/id/unitary-authority/southend,ED Children & Public Health,Children And Education Services,3992,The Peaceful Pony Cic,44874,12072546,530,Private Contractors,Other Agencies
Southend-on-Sea Borough Council,http://www.opendatacommunities.org/id/unitary-authority/southend,ED Neighbourhoods & Environment,Highways And Transport Services,5200,Traffic Technology Limited,44874,12072546,23516,Tools And Equipment Purchase,Equipment Furniture And Materials
Southend-on-Sea Borough Council,http://www.opendatacommunities.org/id/unitary-authority/southend,ED Adults & Communities,Cultural And Related Services,4120,Wilkin & Sons Ltd,44874,12072546,1133.13,Catering Food And Beverages,Catering
Southend-on-Sea Borough Council,http://www.opendatacommunities.org/id/unitary-authority/southend,ED Adults & Communities,Adult Social Care,1180,Your World Recruitment Ltd,44874,12072546,1480,Agency Staff,Direct Employee Expenses
Southend-on-Sea Borough Council,http://www.opendatacommunities.org/id/unitary-authority/southend,ED Neighbourhoods & Environment,Environmental And Regulatory Services,4535,(G) Eurovia Infrastructure Limited,44876,12072556,7404,Tools And Equipment Repair And Maintenance,Equipment Furniture And Materials
Southend-on-Sea Borough Council,http://www.opendatacommunities.org/id/unitary-authority/southend,ED Neighbourhoods & Environment,Environmental And Regulatory Services,4505,(G) Facultatieve Technologies Limited,44876,12072556,1793.28,Tools And Equipment Repair And Maintenance,Equipment Furniture And Materials
Southend-on-Sea Borough Council,http://www.opendatacommunities.org/id/unitary-authority/southend,ED Adults & Communities,Adult Social Care,9010,(G) Heritage Plaster Services Ltd,44876,12072556,1080,Main Contractor,Main Contractor
Southend-on-Sea Borough Council,http://www.opendatacommunities.org/id/unitary-authority/southend,ED Adults & Communities,Adult Social Care,9010,(G) Kieran Lucas Contractors Ltd,44876,12072556,728,Main Contractor,Main Contractor
Southend-on-Sea Borough Council,http://www.opendatacommunities.org/id/unitary-authority/southend,ED Adults & Communities,Adult Social Care,9010,(G) Kieran Lucas Contractors Ltd,44876,12072556,1382.89,Main Contractor,Main Contractor
Southend-on-Sea Borough Council,http://www.opendatacommunities.org/id/unitary-authority/southend,ED Neighbourhoods & Environment,Highways And Transport Services,9008,(G) Marlborough Surfacing Limited,44876,12072556,1157.84,Contractors General,Contractors General
Southend-on-Sea Borough Council,http://www.opendatacommunities.org/id/unitary-authority/southend,ED Neighbourhoods & Environment,Highways And Transport Services,9008,(G) Marlborough Surfacing Limited,44876,12072556,4149.52,Main Contractor,Main Contractor
Southend-on-Sea Borough Council,http://www.opendatacommunities.org/id/unitary-authority/southend,ED Neighbourhoods & Environment,Highways And Transport Services,9008,(G) Marlborough Surfacing Limited,44876,12072556,1971.91,Main Contractor,Main Contractor
Southend-on-Sea Borough Council,http://www.opendatacommunities.org/id/unitary-authority/southend,ED Neighbourhoods & Environment,Highways And Transport Services,9008,(G) Marlborough Surfacing Limited,44876,12072556,2369.96,Main Contractor,Main Contractor
Southend-on-Sea Borough Council,http://www.opendatacommunities.org/id/unitary-authority/southend,ED Neighbourhoods & Environment,Highways And Transport Services,9008,(G) Marlborough Surfacing Limited,44876,12072556,1688.13,Main Contractor,Main Contractor
Southend-on-Sea Borough Council,http://www.opendatacommunities.org/id/unitary-authority/southend,ED Neighbourhoods & Environment,Highways And Transport Services,9008,(G) Marlborough Surfacing Limited,44876,12072556,70681.46,Contractors General,Contractors General
Southend-on-Sea Borough Council,http://www.opendatacommunities.org/id/unitary-authority/southend,ED Neighbourhoods & Environment,Highways And Transport Services,9008,(G) Marlborough Surfacing Limited,44876,12072556,244904.93,Contractors General,Contractors General
Southend-on-Sea Borough Council,http://www.opendatacommunities.org/id/unitary-authority/southend,ED Neighbourhoods & Environment,Highways And Transport Services,9008,(G) Marlborough Surfacing Limited,44876,12072556,56192.17,Contractors General,Contractors General
Southend-on-Sea Borough Council,http://www.opendatacommunities.org/id/unitary-authority/southend,ED Neighbourhoods & Environment,Highways And Transport Services,9008,(G) Marlborough Surfacing Limited,44876,12072556,2359.5,Contractors General,Contractors General
Southend-on-Sea Borough Council,http://www.opendatacommunities.org/id/unitary-authority/southend,ED Neighbourhoods & Environment,Highways And Transport Services,9008,(G) Marlborough Surfacing Limited,44876,12072556,18661.04,Contractors General,Contractors General
Southend-on-Sea Borough Council,http://www.opendatacommunities.org/id/unitary-authority/southend,ED Neighbourhoods & Environment,Highways And Transport Services,9008,(G) Marlborough Surfacing Limited,44876,12072556,63666.04,Contractors General,Contractors General
Southend-on-Sea Borough Council,http://www.opendatacommunities.org/id/unitary-authority/southend,ED Neighbourhoods & Environment,Highways And Transport Services,9008,(G) Marlborough Surfacing Limited,44876,12072556,86642.22,Contractors General,Contractors General
Southend-on-Sea Borough Council,http://www.opendatacommunities.org/id/unitary-authority/southend,ED Neighbourhoods & Environment,Highways And Transport Services,9008,(G) Marlborough Surfacing Limited,44876,12072556,46516.89,Contractors General,Contractors General
Southend-on-Sea Borough Council,http://www.opendatacommunities.org/id/unitary-authority/southend,ED Neighbourhoods & Environment,Highways And Transport Services,5710,(G) Marlborough Surfacing Limited,44876,12072556,17109.87,Private Contractors,Other Agencies
Southend-on-Sea Borough Council,http://www.opendatacommunities.org/id/unitary-authority/southend,ED Neighbourhoods & Environment,Cultural And Related Services,4200,(G) Rw & Jr Burroughs,44876,12072556,1685,Private Contractors,Other Agencies
Southend-on-Sea Borough Council,http://www.opendatacommunities.org/id/unitary-authority/southend,ED Neighbourhoods & Environment,Cultural And Related Services,4200,(G) Rw & Jr Burroughs,44876,12072556,4936,Private Contractors,Other Agencies
Southend-on-Sea Borough Council,http://www.opendatacommunities.org/id/unitary-authority/southend,ED Adults & Communities,Adult Social Care,9010,(G) Uk Industrial Services Ltd,44876,12072556,11041.77,Main Contractor,Main Contractor
Southend-on-Sea Borough Council,http://www.opendatacommunities.org/id/unitary-authority/southend,ED Adults & Communities,Adult Social Care,1209,(N) Chiltern Invadex (Uk) Ltd,44876,12072556,1700.9,Tools And Equipment Repair And Maintenance,Equipment Furniture And Materials
Southend-on-Sea Borough Council,http://www.opendatacommunities.org/id/unitary-authority/southend,ED Adults & Communities,Adult Social Care,1391,A K Support Housing Limited,44876,12072556,2310,Private Contractors,Other Agencies
Southend-on-Sea Borough Council,http://www.opendatacommunities.org/id/unitary-authority/southend,ED Adults & Communities,Adult Social Care,1070,Aarandale Lodge Ltd,44876,12072556,15646.5,Private Contractors,Other Agencies
Southend-on-Sea Borough Council,http://www.opendatacommunities.org/id/unitary-authority/southend,ED Adults & Communities,Adult Social Care,1079,Aarandale Lodge Ltd,44876,12072556,2305.8,Private Contractors,Other Agencies
Southend-on-Sea Borough Council,http://www.opendatacommunities.org/id/unitary-authority/southend,ED Adults & Communities,Adult Social Care,1083,Aarandale Lodge Ltd,44876,12072556,7905.6,Private Contractors,Other Agencies
Southend-on-Sea Borough Council,http://www.opendatacommunities.org/id/unitary-authority/southend,ED Adults & Communities,Adult Social Care,1671,Aarandale Lodge Ltd,44876,12072556,2305.8,Private Contractors,Other Agencies
Southend-on-Sea Borough Council,http://www.opendatacommunities.org/id/unitary-authority/southend,ED Adults & Communities,Adult Social Care,1115,Aarandale Lodge Ltd,44876,12072556,5188.15,Contractor - Programmed Works,Other Agencies
Southend-on-Sea Borough Council,http://www.opendatacommunities.org/id/unitary-authority/southend,ED Adults & Communities,Adult Social Care,1260,Abbey Care Saxon Ltd T/A Saxon Court,44876,12072556,2998.64,Private Contractors,Other Agencies
Southend-on-Sea Borough Council,http://www.opendatacommunities.org/id/unitary-authority/southend,ED Adults & Communities,Adult Social Care,1070,Abbeyfield Society Ltd,44876,12072556,5040,Private Contractors,Other Agencies
Southend-on-Sea Borough Council,http://www.opendatacommunities.org/id/unitary-authority/southend,ED Adults & Communities,Adult Social Care,1260,Achieve Together Limited,44876,12072556,7816.76,Private Contractors,Other Agencies
